Workbook

Sheet 基本情報 (hidden)
A1: 設定
A2: 本官 | B2: 分任契約担当官 | C2: 陸上自衛隊宮古島駐屯地 | D2: 第４４４会計隊長 藤澤 竹広
A3: 代理官 | B3: 分任契約担当官代理 | C3: 陸上自衛隊宮古島駐屯地 | D3: 第４４４会計隊契約班長 草塲 辰則
A5: 現在の設定
A6: =契約内容!M7 -> 本官 | B6: =VLOOKUP($A$6,$A$2:$E$4,2,FALSE) -> 分任契約担当官
B7: =VLOOKUP($A$6,$A$2:$E$4,3,FALSE) -> 陸上自衛隊宮古島駐屯地
B8: =VLOOKUP($A$6,$A$2:$E$4,4,FALSE) -> 第４４４会計隊長 藤澤 竹広
A11: 契約相手方 | B11: =VLOOKUP(業者一覧!$A$2,業者一覧!$B$2:$J$233,7) -> 
B12: =VLOOKUP(業者一覧!$A$2,業者一覧!$B$2:$J$233,3) -> 
B13: =VLOOKUP(業者一覧!$A$2,業者一覧!$B$2:$J$233,8) & " " & VLOOKUP(業者一覧!$A$2,業者一覧!$B$2:$J$233,9) -> 
B14: ="担当者 " & VLOOKUP(業者一覧!$A$2,業者一覧!$B$2:$M$233,11) & " （" &VLOOKUP(業者一覧!$A$2,業者一覧!$B$2:$M$233,4) &"）" -> 
A16: 支払 | B16: 分任資金前渡官吏
B17: 陸上自衛隊宮古島駐屯地
B18: 第４４４会計隊長 藤澤 竹広

Sheet 業者一覧 (hidden)
A1: ="番号 → " & 請求書!H16 ->  | B1: 番号 | C1: 頭文字 | D1: 業者名 | E1: 電話番号 | F1: ＦＡＸ番号 | G1: 郵便番号 | H1: 住所 | I1: 職名 | J1: 代表者名 | K1: 市町村 | L1: 担当者 | M1: 備考
B2: 1 | C2: あ | D2: アールエム | E2: 090-8418-3455 | F2: 098-854-1038 | G2: 902-0076 | H2: 沖縄県那覇市与儀３８０－１ サンヒルズ２０１ | I2: 代表者 | J2: 屋比久 孟 | K2: 那覇市
B3: =B2+1 -> 2 | C3: あ | D3: 株式会社 アート企画 | E3: 0980-72-4402 | F3: 0980-73-5551 | G3: 906-0018 | H3: 沖縄県宮古島市平良字下里１１７７－１ | I3: 代表取締役 | J3: 垣花 厳志 | K3: 宮古島市
B4: 3 | C4: あ | D4: 有限会社 青谷製作所 | E4: 03-3268-5425 | F4: 03-3268-5426 | G4: 162-0801 | H4: 東京都新宿区山吹町１３０番地 | I4: 代表取締役 | J4: 青谷 好憲 | K4: 新宿区
B5: 4 | C5: あ | D5: ＲＧＣ 株式会社 | E5: 098-961-6800 | F5: 098-961-6801 | G5: 901-0345 | H5: 沖縄県糸満市福地１６９番地 | I5: 代表取締役 | J5: 稲嶺 佳乃 | K5: 糸満市
B6: 5 | C6: い | D6: 有限会社ＥＦＣ沖縄 | E6: 098-867-0049 | F6: 098-863-1754 | G6: 900-0012 | H6: 沖縄県那覇市泊３丁目１７－８ | I6: 代表取締役 | J6: 長嶺 明 | K6: 那覇市
B7: 6 | C7: い | D7: 株式会社 いわさき 沖縄営業所 | E7: 098-850-3807 | F7: 098-850-3897 | G7: 901-0241 | H7: 沖縄県豊見城市豊見城７３番地 | I7: 所長 | J7: 大城 裕靖 | K7: 豊見城市
B8: 7 | C8: い | D8: 株式会社 いさむ自動車 | E8: 0980-72-9654 | F8: 0980-72-7084 | G8: 906-0012 | H8: 沖縄県宮古島市平良字西里８３６番地 | I8: 代表取締役 | J8: 来間 勇人 | K8: 宮古島市
B9: 8 | C9: う | D9: 内川商事 株式会社 | E9: 0952-23-5121 | F9: 0952-24-4195 | G9: 840-0850 | H9: 佐賀県佐賀市新栄町二丁目５番２３号 | I9: 代表取締役 | J9: 林 俊樹 | K9: 佐賀市
B10: 9 | C10: う | D10: 株式会社 上原不動産 | E10: 098-859-9000 | F10: 098-857-9981 | G10: 900-0027 | H10: 沖縄県那覇市山下町10-2 | I10: 代表取締役 | J10: 上原 秀夫 | K10: 那覇市
B11: 10 | C11: え | D11: 株式会社 Ｓ＆Ｋみやこ島 | E11: 0980-76-4777 | F11: 0980-76-6144 | G11: 906-0007 | H11: 沖縄県宮古島市下地字与那覇２１９番地 | I11: 代表取締役 | J11: 瀧澤 篤 | K11: 宮古島市 | L11: 契約先
B12: 11 | C12: え | D12: 株式会社 Ｓ＆Ｋみやこ島 | E12: 0980-76-4777 | F12: 0980-76-6144 | G12: 906-0201 | H12: 沖縄県宮古島市上野字野原1190-212 | I12: 代表取締役 | J12: 瀧澤 篤 | K12: 宮古島市 | L12: 送付先
B13: 12 | C13: え | D13: エコラボ合同会社 | E13: 0120-103-144 | F13: 0120-103-199 | G13: 104-6137 | H13: 東京都中央区晴海1-8-11 トリトンスクエアＹ棟 | I13: 職務執行者 | J13: 下元 神志 | K13: 中央区
B14: 13 | C14: お | D14: 沖縄ツーリスト（株）レンタカー部 宮古空港前店 | E14: 0980-72-1104 | F14: 0980-73-1091 | G14: 906-0007 | H14: 沖縄県宮古島市平良字下里2199-1 | I14: 店長 | J14: 平良 昌人 | K14: 宮古島市
B15: 14 | C15: お | D15: 株式会社 オカノ | E15: 0980-73-3398 | F15: 0980-75-6113 | G15: 900-0003 | H15: 沖縄県那覇市安謝１丁目２３番８号 | I15: 代表取締役社長 | J15: 平良 和彦 | K15: 宮古島市
B16: 15 | C16: お | D16: 株式会社 沖縄ムトウ | E16: 098-870-1156 | F16: 098-875-8688 | G16: 901-2125 | H16: 沖縄県浦添市仲西１丁目２２番９号 | I16: 代表取締役社長 | J16: 丸山 武志 | K16: 浦添市
B17: 16 | C17: お | D17: 一般財団法人 沖縄県環境科学センター | E17: 098-875-1941 | F17: 098-875-1943 | G17: 901-2111 | H17: 沖縄県浦添市字経塚７２０番地 | I17: 代表理事 | J17: 福村 圭介 | K17: 浦添市
B18: 17 | C18: お | D18: 株式会社 オペレーション・トレーニング・サービス | E18: 03-5967-0633 | F18: 03-6750-6407 | G18: 179-0073 | H18: 東京都練馬区田柄２－５１－１Ｆ | I18: 代表取締役 | J18: 畠山 富士男 | K18: 練馬区
B19: 18 | C19: お | D19: 一般財団法人 沖縄県健康づくり財団 | E19: 098-889-6474 | G19: 901-1192 | H19: 沖縄県島尻郡南風原町字宮平２１２番地 | I19: 理事長 | J19: 金城 忠雄 | K19: 南風原町
B20: 19 | C20: お | D20: 株式会社 沖縄メディコ | E20: 098-876-5280 | F20: 098-873-3457 | G20: 901-2122 | H20: 沖縄県浦添市勢理客３丁目３番１１号 | I20: 代表取締役 | J20: 末吉 貞重 | K20: 浦添市
B21: 20 | C21: お | D21: （一財）沖縄県自動車標板協会宮古支部 | E21: 0980-72-0194 | G21: 906-0013 | H21: 沖縄県宮古島市平良下里１０３７－１ | I21: 支部長 | J21: 与那覇 幸子 | K21: 宮古島市
B22: 21 | C22: お | D22: 沖縄トヨタ自動車株式会社 宮古支店 | E22: 0980-72-2112 | G22: 906-0013 | H22: 沖縄県宮古島市平良字下里１１５８－１ | I22: 支店長 | J22: 石垣 敦司 | K22: 宮古島市
B23: 22 | C23: お | D23: 株式会社 オカノ 宮古営業所 | E23: 0980-73-3398 | F23: 0980-75-6113 | G23: 906-0015 | H23: 沖縄県宮古島市平良字久貝６５９－５ | I23: 所長 | J23: 芳野 将太 | K23: 宮古島市
B24: 23 | C24: お | D24: 沖縄タイムス宮古南販売センター | E24: 0980-72-2050 | F24: 0980-72-2050 | G24: 906-0013 | H24: 沖縄県宮古島市平良字下里１５９－１５ | I24: 代表者 | J24: 洲鎌 秀男 | K24: 宮古島市
B25: 24 | C25: お | D25: 大城産業 株式会社 | E25: 098-874-2525 | F25: 098-878-2219 | G25: 901-2126 | H25: 沖縄県浦添市宮城２丁目１６番１３号 | I25: 代表取締役 | J25: 大城 永雄 | K25: 浦添市
B26: 25 | C26: お | D26: (有)小値賀自動車整備工場 | E26: 0959-56-2175 | F26: 0959-56-3276 | G26: 857-4703 | H26: 長崎県北松浦郡小値賀町中村郷１２３１－１ | I26: 代表取締役 | J26: 戎元 恒夫 | K26: 小値賀町
B27: 26 | C27: お | D27: 株式会社 オリックスレンタカー宮古島 | E27: 0980-73-5500 | F27: 0980-73-1221 | G27: 906-0012 | H27: 沖縄県宮古島市平良字西里１３３２－２ | I27: 代表者 | J27: 石原 雄 | K27: 宮古島市 | M27: レンタカー
B28: 27 | C28: お | D28: 沖縄教育評価研究所 | E28: 098-861-9159 | F28: 098-861-3357 | G28: 902-0067 | H28: 沖縄県那覇市安里１－６－１１ | I28: 所長 | J28: 喜屋武 一直 | K28: 那覇市
B29: 28 | C29: お | D29: 有限会社 オリンピア運動具店 | E29: 098-968-2800 | F29: 098-968-7050 | G29: 901-0144 | H29: 沖縄県那覇市字当間３０１アイランドビュー内 | I29: 代表取締役 | J29: 大嶺 悟 | K29: 那覇市
B30: 29 | C30: お | D30: ＯＴＳレンタカー新石垣空港前店 | E30: 0980-84-4323 | F30: 0980-84-4325 | G30: 907-0244 | H30: 沖縄県石垣市盛山２２２－３５ | I30: 店長 | J30: 本村 和也 | K30: 石垣市
B31: 30 | C31: か | D31: 川崎重工業 株式会社 | E31: 058-382-6210 | F31: 058-382-2792 | G31: 504-8710 | H31: 岐阜県各務原市川崎町１番地 | I31: 航空宇宙システムカンパニー防衛宇宙プロジェクト総括部長 | J31: 杉谷 尚志 | K31: 各務原市
B32: 31 | C32: か | D32: 有限会社 環境クリーン開発 | E32: 0980-74-5450 | F32: 0980-74-5455 | G32: 906-0506 | H32: 沖縄県宮古島市伊良部字長浜１３６０－１２ | I32: 代表取締役 | J32: 佐久川 直仁 | K32: 宮古島市 | L32: 佐久川 直仁
B33: 32 | C33: き | D33: 株式会社 ギコウ | E33: 098-943-6430 | G33: 816-0811 | H33: 福岡県春日市春日公園７丁目８２番地 | I33: 代表取締役 | J33: 松本 光治 | K33: 春日市
B34: 33 | C34: き | D34: 共和産業 株式会社 | E34: 0980-72-2720 | F34: 0980-72-7672 | G34: 906-0012 | H34: 沖縄県宮古島市平良字西里１６１３ | I34: 代表取締役 | J34: 武富 和裕 | K34: 熊本市
B35: 34 | C35: く | D35: 株式会社 クロサカ | E35: 03-3291-0016 | F35: 03-3291-0015 | G35: 101-0051 | H35: 東京都千代田区神田神保町１丁目２７番地７ | I35: 代表取締役 | J35: 守田 憲治 | K35: 千代田区
B36: 35 | C36: ぐ | D36: グリーンフォート | E36: 0980-73-5005 | F36: 0980-73-5005 | G36: 906-0012 | H36: 沖縄県宮古島市平良西里667-7 | I36: 代表者 | J36: 西平 三幸 | K36: 宮古島市
B37: 36 | C37: け | D37: 有限会社 健軍ストアー | E37: 096-214-2705 | H37: 熊本県熊本市東区東町１－１－１ | I37: 代表取締役 | J37: 甲斐 憲明 | K37: 熊本市
B38: 37 | C38: こ | D38: ＣＯＣＯハウス | E38: 0980-79-2133 | G38: 906-0601 | H38: 沖縄県宮古郡多良間村字塩川１５３ | I38: 代表者 | J38: 知念 吉信 | K38: 多良間村
B39: 38 | C39: こ | D39: 光洋商事 株式会社 | E39: 098-878-0313 | F39: 098-878-0317 | G39: 901-2122 | H39: 沖縄県浦添市勢理客２－１５－２３ | I39: 代表取締役 | J39: 高原 景一 | K39: 浦添市
B40: 39 | C40: こ | D40: 小西旅館 | E40: 0959-56-3145 | F40: 0959-56-3146 | G40: 857-4701 | H40: 長崎県北松浦郡小値賀町笛吹郷２７８９ | I40: 代表者 | J40: 小西 茂子 | K40: 小値賀町
B41: 40 | C41: こ | D41: コットン・手芸の店 サワダ | E41: 0980-72-3033 | H41: 沖縄県宮古島市平良字久貝８２１－５ | I41: 代表者 | J41: 佐和田 京子 | K41: 宮古島市
B42: 41 | C42: さ | D42: 佐久川金物店 | H42: 沖縄県宮古島市平良字西里９３６－３ | I42: 代表者 | J42: 佐久川 ユキ | K42: 宮古島市
B43: 42 | C43: さ | D43: 株式会社 三虎 | E43: 098-871-3188 | F43: 098-871-3189 | G43: 901-2101 | H43: 沖縄県浦添市西原５丁目２番１２号 | I43: 代表取締役 | J43: 松岡 次夫 | K43: 浦添市
B44: 43 | C44: さ | D44: 三栄工業 株式会社 | E44: 098-868-0191 | F44: 098-862-4314 | G44: 900-0001 | H44: 沖縄県那覇市港町３丁目２番８号 | I44: 代表取締役 | J44: 中村 達 | K44: 那覇市
B45: 44 | C45: さ | D45: 三晃 株式会社 | E45: 097-521-3511 | F45: 098-521-3513 | G45: 870-0108 | H45: 大分県大分市三佐４丁目３－１１ | I45: 代表取締役 | J45: 三角 孝一 | K45: 大分市 | L45: 都築 整
B46: 45 | C46: さ | D46: 株式会社 サンクック | E46: 096-383-4691 | F46: 096-384-2671 | G46: 862-0950 | H46: 熊本県熊本市中央区水前寺３丁目４０-１３ | I46: 代表取締役 | J46: 坂口 充洋 | K46: 熊本市
B47: 46 | C47: さ | D47: サクセス・ベル株式会社 | E47: 0823-45-5555 | F47: 0823-45-3535 | G47: 737-2302 | H47: 広島県江田島市能美町鹿川3642番地1 | I47: 代表取締役 | J47: 空本 邦男 | K47: 江田島市
B48: 47 | C48: し | D48: シモジ印刷 | E48: 0980-72-6622 | F48: 0980-72-6622 | G48: 906-0007 | H48: 沖縄県宮古島市平良字東仲宗根４２８番地 | I48: 代表者 | J48: 下地 孝志 | K48: 宮古島市
B49: 48 | C49: し | D49: 有限会社 昭和事務機 | E49: 0980-72-9849 | F49: 0980-72-9867 | G49: 906-0006 | H49: 沖縄県宮古島市平良字西仲宗根５０６－１ | I49: 代表取締役 | J49: 荷川取 恵一 | K49: 宮古島市
B50: 49 | C50: し | D50: 昭和化学工業 株式会社 宮古ケミカルセンター | E50: 0980-75-3000 | F50: 0980-75-3062 | G50: 906-0012 | H50: 沖縄県宮古島市平良字西里５７－４１番地 | I50: 所長 | J50: 下地 義信 | K50: 宮古島市
B51: 50 | C51: し | D51: 昭和化学工業 株式会社 | G51: 904-2201 | H51: 沖縄県うるま市字昆布１４５５番地 | I51: 代表取締役 | J51: 屋嘉比 康則 | K51: 宮古島市
B52: 51 | C52: し | D52: 有限会社シンセイ化学 | E52: 0166-47-9463 | F52: 0166-47-9464 | G52: 079-8418 | H52: 北海道旭川市永山８条３丁目７番６号 | I52: 代表取締役 | J52: 齊藤 泰比古 | K52: 旭川市
B53: 52 | C53: し | D53: 有限会社 新星工業 | E53: 098-893-3388 | F53: 098-892-8286 | G53: 901-2204 | H53: 沖縄県宜野湾市上原２－２３－１０ | I53: 代表取締役社長 | J53: 池田 尚喜 | K53: 宜野湾市
B54: 53 | C54: し | D54: 株式会社 昭美堂 | E54: 098-834-2627 | G54: 900-0023 | H54: 沖縄県那覇市楚辺２丁目２５－３３ | I54: 代表取締役 | J54: 宮城 勝子 | K54: 那覇市
B55: 54 | C55: し | D55: 医療法人光陽会 下地眼科医院 | E55: 0980-73-2228 | G55: 906-0013 | H55: 沖縄県宮古島市平良下里５７７－１ | I55: 理事長 | J55: 下地 輝子 | K55: 宮古島市 | L55: 木・土曜休み
B56: 55 | C56: し | D56: 株式会社 新里土木 | E56: 0980-72-6690 | F56: 0980-79-0277 | G56: 906-0006 | H56: 沖縄県宮古島市平良字西仲宗根６８９番地５ | I56: 代表取締役 | J56: 下地 紀孝 | K56: 宮古島市
B57: 56 | C57: じ | D57: 合同会社 ＧＢ Ｓｅｒｖｉｃｅ | E57: 070-1079-2275 | G57: 906-0013 | H57: 沖縄県宮古島市平良字下里７４８－５ | I57: 代表社員 | J57: 佐原 淳史 | K57: 宮古島市
B58: 57 | C58: じ | D58: 株式会社 ジャパンロジスティクスサービス | E58: 03-3423-2523 | F58: 03-3404-6376 | G58: 107-0062 | H58: 東京都港区南青山２丁目１１番１３号 | I58: 代表取締役 | J58: 玉永 克義 | K58: 港区
B59: 58 | C59: じ | D59: 株式会社 ジャンボツアーズ | E59: 098-860-9221 | F59: 098-866-4973 | G59: 900-0015 | H59: 沖縄県那覇市久茂地２丁目１５番１０号 | I59: 代表取締役 | J59: 谷村 勝己 | K59: 那覇市
B60: 59 | C60: じ | D60: ジスコホテル 株式会社 | E60: 0957-52-7777 | F60: 0957-52-7756 | G60: 856-0828 | H60: 長崎県大村市杭出津３丁目３８５－６ | I60: 代表取締役 | J60: 徳永 耕一 | K60: 大村市
B61: 60 | C61: す | D61: スマイルホテル沖縄那覇 | E61: 098-866-8100 | F61: 098-866-8104 | G61: 900-0016 | H61: 沖縄県那覇市前島３丁目２４－１ | I61: 支配人 | J61: 中村 勝 | K61: 那覇市
B62: 61 | C62: す | D62: 有限会社スポーツショップ ライカム | E62: 0980-72-3377 | F62: 0980-73-1066 | G62: 906-0012 | H62: 沖縄県宮古島市平良字西里４７０－３ | I62: 代表取締役 | J62: 幸地 誠 | K62: 宮古島市
B63: 62 | C63: す | D63: 株式会社 スズケン沖縄薬品 | E63: 0980-72-1112 | F63: 0980-73-5460 | G63: 901-1105 | H63: 沖縄県島尻郡南風原町字新川４３６番地１ | I63: 代表取締役社長 | J63: 上原 浩司 | K63: 南風原町
B64: 63 | C64: す | D64: 株式会社 スズケン沖縄薬品 宮古営業所 | E64: 0980-72-1112 | F64: 0980-73-5460 | G64: 906-0012 | H64: 沖縄県宮古島市平良西里１１１９－１０ | K64: 宮古島市 | L64: 郵送先
B65: 64 | C65: せ | D65: 有限会社 成和産業 | E65: 092-574-3560 | F65: 092-574-3669 | G65: 816-0851 | H65: 福岡県春日市昇町３丁目２１０番地 | I65: 代表取締役 | J65: 荒木 進 | K65: 春日市
B66: 65 | C66: せ | D66: 株式会社 泉州 | E66: 06-6692-8711 | F66: 06-6694-6629 | G66: 546-0014 | H66: 大阪府大阪市東住吉区鷹合１丁目３番３１号 | I66: 代表取締役 | J66: 隅防 嘉之 | K66: 大阪市
B67: =B66+1 -> 66 | C67: せ | D67: 株式会社 セイワ | E67: 042-551-2330 | F67: 042-553-2561 | G67: 197-0011 | H67: 東京都福生市福生１９８２ | I67: 代表取締役 | J67: 白石 清 | K67: 福生市
B68: 67 | C68: せ | D68: 株式会社 善林堂 | E68: 098-878-6565 | F68: 098-878-6932 | G68: 901-2122 | H68: 沖縄県浦添市勢理客１丁目１番６号 | I68: 代表取締役 | J68: 仲嶺 剛 | K68: 浦添市 | L68: 大城 直之
B69: 68 | C69: せ | D69: セコム琉球 株式会社 | E69: 0980-72-1431 | F69: 0980-72-0938 | G69: 900-0015 | H69: 沖縄県那覇市久茂地１丁目７番１号 | I69: 代表取締役社長 | J69: 宮里 一 | K69: 那覇市
B70: 69 | C70: せ | D70: 西部産業 株式会社 | E70: 0956-22-8180 | F70: 0956-223822 | G70: 857-0051 | H70: 長崎県佐世保市浜田町１番１号 | I70: 代表取締役 | J70: 相良 圭一郎 | K70: 宮古島市
B71: 70 | C71: そ | D71: 株式会社 染めＱテクノロジィ | E71: 0280-80-0005 | F71: 0280-80-0006 | G71: 306-0313 | H71: 茨城県猿島郡五霞町元栗橋５９７１番地３１ | I71: 代表取締役 | J71: 菱木 貞夫 | K71: 五霞町
B72: 71 | C72: た | D72: 合資会社 多良間海運 | G72: 906-0013 | H72: 沖縄県宮古島市平良字下里１０８－１１ | I72: 代表社員 | J72: 伊良皆 光夫 | K72: 宮古島市
B73: 72 | C73: た | D73: タイヤガーデン宮古島 | E73: 0980-79-8622 | F73: 0980-72-4855 | G73: 906-0012 | H73: 沖縄県宮古島市平良字西里９３３－１ | I73: 代表者 | J73: 長間 剛 | K73: 宮古島市
B74: 73 | C74: ち | D74: 株式会社 チャビラ | E74: 098-840-1000 | F74: 098-840-1001 | G74: 901-0155 | H74: 沖縄県那覇市金城５－１１－１ | I74: 代表取締役 | J74: 山内 志乃 | K74: 那覇市
B75: 74 | C75: ち | D75: 地方職員共済組合麹町会館 | E75: 03-3265-5361 | F75: 03-3265-6458 | G75: 102-0093 | H75: 東京都千代田区平河町２－４－３ | I75: 支配人 | J75: 黒木 良一 | K75: 千代田区
B76: 75 | C76: ち | D76: 株式会社 千代田テクノル | E76: 092-262-2233 | G76: 812-0038 | H76: 福岡県福岡市博多区祇園町１－２８ | I76: 代表取締役 | J76: 細田 敏和 | K76: 福岡市
B77: 76 | C77: ち | D77: 株式会社 千代田テクノル | H77: 東京都文京区湯島一丁目７番１２号 | I77: 代表取締役 | J77: 細田 敏和 | K77: 文京区
B78: 77 | C78: と | D78: 株式会社 とみや商会 | E78: 0980-73-5539 | F78: 0980-72-2877 | G78: 906-0008 | H78: 沖縄県宮古島市平良字荷川取３１１番地 | I78: 代表取締役 | J78: 中尾 忠筰 | K78: 宮古島市
B79: 78 | C79: と | D79: 株式会社 東和 | E79: 0980-73-0505 | F79: 0980-72-0707 | G79: 906-0012 | H79: 沖縄県宮古島市平良字西里８９４－２ | I79: 代表取締役 | J79: 新城 浩司 | K79: 宮古島市
B80: 79 | C80: と | D80: トキコシステムソリューションズ株式会社 九州支店 | E80: 098-871-9255 | F80: 098-871-9256 | G80: 903-0112 | H80: 沖縄県中頭郡西原町字我謝241-75 | K80: 中頭郡西原町
B81: 80 | C81: な | D81: 株式会社 南西沖食 | F81: 0980-72-3877 | G81: 906-0013 | H81: 沖縄県宮古島市平良字下里５８３－１ | I81: 代表取締役 | J81: 西原 秀憲 | K81: 宮古島市
B82: 81 | C82: な | D82: 株式会社 ナガノカメラ | E82: 0957-52-3275 | F82: 092-510-1241 | G82: 856-0832 | H82: 長崎県大村市本町４２８－２ | I82: 代表取締役 | J82: 長野 博人 | K82: 大村市
B83: 82 | C83: な | D83: 南石開発株式会社 | E83: 098-945-4800 | F83: 098-946-3822 | G83: 903-0103 | H83: 沖縄県中頭郡西原町字小那覇１４９８番地 | I83: 代表取締役 | J83: 古堅 寿香 | K83: 西原町
B84: 83 | C84: な | D84: 株式会社 永江印祥堂 | E84: 0852-21-9950 | F84: 0852-21-9950 | G84: 690-0021 | H84: 島根県松江市矢田町２５０－６３
B85: 84 | C85: な | D85: 長崎ビニール工業株式会社 | E85: 095-861-1256 | F85: 095-861-4144 | G85: 852-8011 | H85: 長崎県長崎市稲佐町4-26 | I85: 代表取締役 | J85: 出口 隆三 | K85: 長崎市
B86: 85 | C86: に | D86: 一般社団法人 日本家族計画協会 | E86: 03-3269-4727 | F86: 03-3267-2658 | G86: 162-0843 | H86: 東京都新宿区市谷田町１－１０ 保健会館新館 | I86: 理事長 | J86: 北村 邦夫 | K86: 新宿区
B87: 86 | C87: に | D87: 日本パーカライジング株式会社 | E87: 03-3278-4465 | F87: 03-3278-4328 | G87: 103-0027 | H87: 東京都中央区日本端１－１５－１ | I87: 代表取締役社長 | J87: 佐藤 乾太郎 | K87: 中央区
B88: 87 | C88: に | D88: 西日本ビニール工業株式会社 | E88: 095-828-1000 | F88: 095-826-0001 | G88: 850-0001 | H88: 長崎県長崎市西山４丁目５４７番地１ | I88: 代表取締役 | J88: 下釜 恵子 | K88: 長崎市
B89: 88 | C89: に | D89: 株式会社 西松屋チェーン イオンタウン宮古南店 | E89: 0980-72-7170 | F89: 0980-72-7170 | G89: 906-0014 | H89: 沖縄県宮古島市平良字松原６３１番地 | I89: 店長 | J89: 水上 友太 | K89: 宮古島市
B90: 89 | C90: に | D90: 株式会社 日章 | E90: 093-561-1731 | F90: 093-561-1734 | G90: 803-0835 | H90: 福岡県北九州市小倉北区井堀１丁目２６－１４ | I90: 代表取締役 | J90: 溝口 郁二 | K90: 苅田町
B91: 90 | C91: に | D91: 日本アサヒ機工販売株式会社 | E91: 03-3433-8000 | F91: 03-3436-1497 | G91: 105-0011 | H91: 東京都港区芝公園２－６－１１ | I91: 代表取締役 | J91: 菊島 千幸 | K91: 港区
B92: 91 | C92: の | D92: 株式会社 野津商事 | E92: 0980-72-2027 | F92: 0980-72-9355 | G92: 906-0012 | H92: 沖縄県宮古島市平良字西里１００１－１１ | I92: 代表取締役 | J92: 野津 芳仁 | K92: 宮古島市
B93: 92 | C93: は | D93: 有限会社 ハマダ歯科商店 | E93: 098-886-5234 | F93: 098-886-5275 | G93: 902-0061 | H93: 沖縄県那覇市古島２丁目２４－１３ | I93: 支店長 | J93: 濵田 次郎 | K93: 那覇市 | L93: 濱田 次郎
B94: 93 | C94: は | D94: 株式会社 はまもと | E94: 0980-72-1581 | F94: 0980-72-8302 | G94: 906-0013 | H94: 沖縄県宮古島市平良字下里８１２番地 | I94: 代表取締役 | J94: 濱元 美和 | K94: 宮古島市
B95: 94 | C95: は | D95: 八光商事株式会社 | E95: 0956-27-8686 | F95: 0956-27-8688 | G95: 857-1164 | H95: 長崎県佐世保市白岳町１０７－５ | I95: 代表取締役 | J95: 諸国 正紀 | K95: 佐世保市
B96: 95 | C96: は | D96: 株式会社 萩原材木店 | E96: 0956-34-2211 | F96: 0956-34-2215 | G96: 857-1165 | H96: 長崎県佐世保市大和町１－１ | I96: 代表取締役 | J96: 服部 明人 | K96: 佐世保市
B97: 96 | C97: ぱ | D97: 有限会社パラダイスアメニティ | E97: 0980-79-0392 | F97: 0980-79-0394 | G97: 906-0015 | H97: 沖縄県宮古島市平良字久貝８６７－１ | I97: 代表取締役 | J97: 西里 泰徳 | K97: 宮古島市
B98: 97 | C98: ひ | D98: 株式会社 兵頭製作所 | E98: 0985-23-3221 | F98: 0985-23-5835 | G98: 880-0837 | H98: 宮崎県宮崎市角町中尊１７８６番地 | I98: 代表取締役 | J98: 兵頭 孝太郎 | K98: 宮崎市
B99: 98 | C99: ひ | D99: 株式会社 光エンジニア | E99: 098-832-3245 | F99: 098-833-5303 | G99: 902-0078 | H99: 沖縄県那覇市字識名１２７９番地 | I99: 代表取締役 | J99: 翁長 秀光 | K99: 那覇市
B100: 99 | C100: ぶ | D100: ＢＯＯＫｓきょうはん宮古南店 | E100: 0980-79-0094 | F100: 0980-79-0094 | G100: 906-0014 | H100: 沖縄県宮古島市平良字松原６３１番地 | I100: 店長 | J100: 真栄城 久尚 | K100: 宮古島市
B101: 100 | C101: ほ | D101: ホクセツ技研株式会社 | E101: 06-6452-5271 | F101: 06-6452-5929 | G101: 553-0001 | H101: 大阪府大阪市福島区海老江７丁目１７番１４ | I101: 代表取締役 | J101: 平井 隆彦 | K101: 大阪市
B102: 101 | C102: ほ | D102: 株式会社 ホテルグランビュー | E102: 098-859-4890 | F102: 098-859-4891 | G102: 901-0154 | H102: 沖縄県那覇市赤嶺２丁目３番２号 | I102: 代表取締役 | J102: 小尾 一 | K102: 那覇市
B103: 102 | C103: ほ | D103: 株式会社 ホテルチューリップ石垣島 | E103: 0980-83-8060 | F103: 0980-83-8055 | G103: 907-0011 | H103: 沖縄県石垣市八島町１丁目３－５ | I103: 代表取締役 | J103: 仲宗根 政乗 | K103: 石垣市
B104: 103 | C104: ぼ | D104: 防衛省共済組合陸上宮古島支部 | H104: 沖縄県宮古島市上野字野原８３－５ | I104: 支部長 | J104: 佐藤 慎二 | K104: 宮古島市
B105: 104 | C105: ま | D105: まるみクリーニング | G105: 906-0013 | H105: 沖縄県宮古島市平良字下里４８１－２ | I105: 代表者 | J105: 杉本 昌子 | K105: 宮古島市
B106: 105 | C106: ま | D106: 株式会社 丸秀 | E106: 0980-72-3396 | F106: 0980-72-9200 | G106: 906-0007 | H106: 沖縄県宮古島市平良字東仲宗根３５０番地 | I106: 代表取締役 | J106: 伊良皆 榮 | K106: 宮古島市
B107: 106 | C107: ま | D107: 合同会社 丸高 | E107: 0980-77-8208 | F107: 0980-77-8801 | G107: 906-0103 | H107: 沖縄県宮古島市城辺字福里８６４－１１ | I107: 代表 | J107: 高江洲 修 | K107: 宮古島市
B108: 107 | C108: ま | D108: ホテル マリンウエスト那覇 | E108: 098-863-0055 | F108: 098-863-0051 | G108: 900-0036 | H108: 沖縄県那覇市西１－８－１５ | I108: 総支配人 | J108: 上原 政彦 | K108: 那覇市
B109: 108 | C109: ま | D109: 有限会社マサミ金属工芸 | E109: 096-344-3211 | F109: 096-344-3214 | G109: 860-0863 | H109: 熊本県熊本市中央区坪井５丁目２番８号 | I109: 代表取締役 | J109: 中尾 かおる | K109: 熊本市
B110: 109 | C110: ま | D110: 株式会社 丸金ストアー | E110: 0980-72-2434 | F110: 0980-73-0612 | G110: 906-0013 | H110: 沖縄県宮古島市平良字荷川取１３９－２ | I110: 代表取締役 | J110: 大村 正広 | K110: 宮古島市
B111: 110 | C111: ま | D111: 有限会社 松島開発 | E111: 0980-722-5255 | F111: 0980-73-8751 | G111: 906-0013 | H111: 沖縄県宮古島市平良字下里１３７９番地 | I111: 代表取締役 | J111: 下地 孝司 | K111: 宮古島市
B112: 111 | C112: ま | D112: 有限会社まるたか | E112: 0980-72-0348 | G112: 906-0012 | H112: 沖縄県宮古島市平良字西里７９４番地の４ | I112: 代表取締役 | J112: 下地 広美 | K112: 宮古島市
B113: 112 | C113: み | D113: 株式会社 みつわ産業 | E113: 098-834-1414 | F113: 098-836-0182 | G113: 902-0078 | H113: 沖縄県那覇市識名１１６９ | I113: 代表取締役社長 | J113: 與那嶺 達啓 | K113: 那覇市
B114: 113 | C114: み | D114: 宮古島地区交通安全協会 | E114: 0980-73-0545 | H114: 沖縄県宮古島市平良字西里１０９２－１ | I114: 会長 | J114: 新里 孝行 | K114: 宮古島市
B115: 114 | C115: み | D115: 宮古ガス株式会社 | E115: 0980-72-4935 | F115: 0980-73-1889 | G115: 906-0006 | H115: 沖縄県宮古島市平良字西仲宗根２－３９ | I115: 代表取締役 | J115: 富山 忠彦 | K115: 宮古島市
B116: 115 | C116: み | D116: 株式会社 宮古毎日新聞社 | E116: 0980-72-2343 | F116: 0980-72-3733 | G116: 906-0012 | H116: 沖縄県宮古島市平良字西里３３７番地 | I116: 代表取締役 | J116: 伊志嶺 幹夫 | K116: 宮古島市
B117: 116 | C117: み | D117: 株式会社 宮古新報 | E117: 0980-73-1212 | F117: 098073-1811 | G117: 906-0008 | H117: 沖縄県宮古島市平良字荷川取４１１－１１ | I117: 代表取締役 | J117: 新城 竜太 | K117: 宮古島市
B118: 117 | C118: み | D118: 医療法人 祐真会 宮古島リハビリ温泉病院 | E118: 0980-73-0800 | F118: 0980-73-0800 | G118: 906-0011 | H118: 沖縄県宮古島市平良字東仲宗根添１８９８番地の７ | I118: 理事長 | J118: 奥原 典一 | K118: 宮古島市
B119: 118 | C119: み | D119: 有限会社 三石レンタル | E119: 0980-72-3878 | H119: 沖縄県宮古島市平良字西里８６４番地１ | I119: 代表取締役 | J119: 平良 勝己 | K119: 宮古島市
B120: 119 | C120: み | D120: 宮古島生コン協同組合 | E120: 0980-72-1909 | F120: 0980-79-0225 | G120: 906-0012 | H120: 沖縄県宮古島市平良西里９３５－５３ | I120: 代表理事 | J120: 豊見山 景順 | K120: 宮古島市
B121: 120 | C121: み | D121: 三浦工業株式会社 沖縄支店 | E121: 098-859-5581 | F121: 098-859-5583 | G121: 901-0146 | H121: 沖縄県豊見城市伊良波619-1 | I121: 支店長 | J121: 大塚 峰治雄 | K121: 那覇市
B122: 121 | C122: む | D122: 株式会社 ムラセ | E122: 0957-63-0573 | F122: 0957-63-5625 | G122: 855-0878 | H122: 長崎県島原市大下町丙１１７３番地１ | I122: 代表取締役 | J122: 村瀬 英治 | K122: 島原市
B123: 122 | C123: め | D123: 有限会社 明伸商事 | E123: 098-857-8295 | F123: 098-858-6044 | G123: 901-0152 | H123: 沖縄県那覇市字小禄１２３８番地 | I123: 代表取締役 | J123: 新里 廣光 | K123: 那覇市
B124: 123 | C124: も | D124: 株式会社 森山商事 | E124: 098-835-4056 | F124: 098-835-0044 | G124: 902-0064 | H124: 沖縄県那覇市寄宮２－２９－２２ | I124: 代表取締役 | J124: 志慶真 稔 | K124: 那覇市
B125: 124 | C125: ゆ | D125: 夢パティオたらま | E125: 0980-79-2988 | F125: 0980-79-2990 | G125: 906-0601 | H125: 沖縄県宮古郡多良間村字塩川１８番地 | I125: 村長 | J125: 伊良皆 光夫 | K125: 多良間村
B126: 125 | C126: よ | D126: 吉田科学器械株式会社 | E126: 03-3959-1101 | F126: 03-3959-1105 | G126: 173-0024 | H126: 東京都板橋区大山金井町３０－１６ | I126: 代表取締役 | J126: 吉田 智之 | K126: 板橋区
B127: 126 | C127: り | D127: 株式会社 りゅうせき 宮古支店 | E127: 0980-72-3192 | F127: 0980-72-8681 | G127: 906-0006 | H127: 沖縄県宮古島市平良字西仲宗根２－４０ | I127: 統括支店長 | J127: 赤嶺 安弘 | K127: 宮古島市 | M127: 燃料
B128: 127 | C128: り | D128: 株式会社 りゅうせき 宮古支店 | E128: 0980-72-3192 | F128: 0980-72-8681 | G128: 906-0006 | H128: 沖縄県宮古島市平良字西仲宗根２－４０ | I128: 統括支店長 | J128: 赤嶺 安弘 | K128: 宮古島市 | L128: 野原 用喬 | M128: ガス
B129: 128 | C129: り | D129: 株式会社 琉薬 | E129: 0980-73-0981 | F129: 0980-73-0983 | G129: 906-0013 | H129: 沖縄県浦添市牧港五丁目６番５号 | I129: 代表取締役社長 | J129: 稲嶺 侃 | K129: 浦添市
B130: 129 | C130: れ | D130: レンタカー あだん | E130: 0980-79-2088 | G130: 906-0601 | H130: 沖縄県宮古郡多良間村字塩川５２８ | I130: 代表者 | J130: 知念 祐子 | K130: 多良間村 | L130: 知念 祐子
B131: =B130+1 -> 130 | C131: わ | D131: 和田機工株式会社 | E131: 092-441-1321 | F131: 092-441-2267 | G131: 812-0042 | H131: 福岡県福岡市博多区豊１丁目１０－１９ | I131: 代表取締役 | J131: 和田 光一郎 | K131: 福岡市
B132: 131 | C132: き | D132: 防衛省共済組合陸上宮古島支部 | G132: 906-0201 | H132: 沖縄県宮古島市上野字野原83-5 | I132: 支部長 | J132: 佐藤 慎二
B133: 132 | D133: 株式会社 ジャンボツアーズ | E133: 098-860-9221 | F133: 098-866-4973 | G133: 900-0015 | H133: 沖縄県那覇市久茂地２丁目１５番１０号 | I133: 代表取締役 | J133: 谷村 勝己 | K133: 那覇市 | L133: 新里 英知 | M133: 法人営業
B134: 133 | D134: 日本工営株式会社 沖縄支店 | E134: 098-832-0161 | F134: 098-832-0162 | G134: 900-0025 | H134: 沖縄県那覇市壷川三丁目５番地１ | I134: 支店長 | J134: 米城 才文 | K134: 那覇市
B135: 134 | D135: 沖縄民間ピーシーアール検査機構株式会社 | E135: 098-868-9500 | F135: 098-869-7550 | G135: 900-0036 | H135: 沖縄県那覇市西１－２０－１３ | I135: 代表取締役 | J135: 河村 哲 | K135: 那覇市
B136: 135 | D136: 大村セントラルホテル株式会社 | E136: 0957-54-7111 | F136: 0957-54-7700 | G136: 856-0826 | H136: 長崎県大村市東三城町１８番１３ | I136: 代表取締役 | J136: 矢野 欽也 | K136: 大村市
B137: 136 | D137: 株式会社 ３A | E137: 0980-76-3660 | G137: 600-8029 | H137: 京都府京都市下京区西橋詰町762 京栄中央ビル6F | I137: 代表取締役 | J137: 橋本 吉弘 | K137: 京都市 | L137: 橋本 吉弘
B138: 137 | D138: 株式会社 トヨタレンタリース沖縄 宮古島空港店 | E138: 0980-75-0100 | F138: 0980-75-0100 | G138: 906-0012 | H138: 沖縄県宮古島市平良字西里１２８０番地 | I138: 店長 | J138: 當間 祐希 | K138: 宮古島市
B139: 138 | D139: 有限会社 奄美ビジネス | E139: 0997-52-2000 | F139: 0997-53-0600 | G139: 894-0034 | H139: 鹿児島県奄美市名瀬入舟町９－２ | I139: 代表取締役 | J139: 平良 隆之 | K139: 奄美市
B140: 139 | D140: 有限会社ライズ | E140: 0997-54-1421 | F140: 0997-54-1422 | G140: 894-0034 | H140: 鹿児島県奄美市名瀬入舟町１０番１５号 | I140: 代表取締役 | J140: 平 朋弘 | K140: 奄美市
B141: 140 | D141: 株式会社 フラットフィールド | E141: 0980-73-0404 | F141: 0980-73-9889 | G141: 906-0103 | H141: 沖縄県宮古島市城辺字福里１２１７ | I141: 代表取締役 | J141: 平田 海斗 | K141: 宮古島市
B142: 141 | D142: 株式会社 オークマ | E142: 0946-52-2800 | F142: 0946-52-2800 | G142: 838-1305 | H142: 福岡県朝倉市菱野１５４８ | I142: 代表取締役 | J142: 大隈 賢一郎 | K142: 朝倉市
B143: 142 | D143: ニチオキ宮古島 | E143: 0980-76-3568 | F143: 0980-76-3568 | G143: 906-0203 | H143: 沖縄県宮古島市上野字宮国７６５－１ | I143: 代表者 | J143: 比屋根 安春 | K143: 宮古島市
B144: 143 | D144: 一般社団法人 日本産業カウンセラー協会 | E144: 098-975-6061 | G144: 901-2131 | H144: 沖縄県浦添市牧港５丁目６番８号 | I144: 支部長 | J144: 國仲 郁代
B145: 144 | D145: 沖縄塩元売株式会社 宮古営業所 | E145: 0980-72-3115 | H145: 沖縄県宮古島市平良西里262-2 | I145: 所長 | J145: 平良 賢司
B146: 145 | D146: 沖縄県冷凍空調設備協会 | E146: 098-861-1751 | F146: 098-867-0364 | G146: 900-0002 | H146: 沖縄県那覇市曙１－８－１ | I146: 会長 | J146: 新垣 光博
B147: 146 | D147: 有限会社アイランドフォト | E147: 0980-83-1880 | F147: 0980-83-1819 | G147: 907-0022 | H147: 沖縄県石垣市大川５５２番地 | I147: 代表取締役 | J147: 冨田 幸弘
B148: 147 | D148: 池間シャッター製作所 | E148: 0980-72-1504 | F148: 0980-72-7656 | G148: 906-0012 | H148: 沖縄県宮古島市平良字西里992-15 | I148: 代表者 | J148: 池間 清昌
B149: 148 | D149: 株式会社 中央ツーリスト | E149: 098-854-5454 | H149: 沖縄県那覇市古波蔵１丁目５番１号 | I149: 代表取締役 | J149: 宮平 良一
B150: 149 | D150: クリーンテックス・ジャパン株式会社 | E150: 078-991-3694 | F150: 078-991-3309 | G150: 651-2271 | H150: 兵庫県神戸市西区高塚台2-1-11 | I150: 代表取締役 | J150: エリック・デグルート | L150: エリック・デグルート
B151: 150 | D151: 沖縄ツーリスト株式会社 | E151: 098-856-8877 | F151: 098-856-7777 | G151: 901-0224 | H151: 沖縄県那覇市松尾１丁目２番３号 | I151: 代表取締役 | J151: 東 良和 | L151: 上原 芽衣子
B152: 151 | D152: アグレッサーグループ | E152: 078-219-2200 | F152: 078-219-2200 | G152: 651-1232 | H152: 兵庫県神戸市北区松が枝町３丁目４番地８号 アグレッサーグループ | I152: 代表者 | J152: 佐藤 陵一 | L152: 佐藤 陵一
B153: 152 | D153: 太鼓工房 響屋 | G153: 879-5103 | H153: 大分県由布市湯布院町川南１０７１の１ | I153: 代表 | J153: 河野 勝己
B154: 153 | D154: 琉球ブリッジ株式会社 | E154: 098-879-7642 | F154: 098-879-7643 | G154: 901-2131 | H154: 沖縄県浦添市牧港2-43-16-1F | I154: 代表取締役 | J154: 谷中田 洋樹
B155: 154 | D155: 株式会社 サイトロンジャパン | E155: 03-6908-3327 | F155: 03-6908-3443 | G155: 161-0031 | H155: 東京都新宿区西落合3-9-19 | I155: 代表取締役 | J155: 渡邉 晃
B156: 155 | D156: 株式会社 デジスト | E156: 050-3821-7502 | F156: 0974-22-7374 | G156: 879-7124 | H156: 大分県豊後大野市三重町内山153-12
B157: 156 | D157: 株式会社 オキジム宮古支店 | E157: 0980-73-3616 | F157: 0980-72-9732 | G157: 906-0015 | H157: 沖縄県宮古島市平良字久貝１０６９－１０ | I157: 代表取締役 | J157: 橋本 翔太 | K157: 当真 正人
B158: 157 | D158: 有限会社 あさひ | E158: 0980-72-3325 | F158: 0980-72-1292 | G158: 906-0012 | H158: 沖縄県宮古島市平良字西里５８３番地 | I158: 代表取締役 | J158: 下地 弘晃
B159: 158 | D159: 笹尾商工 株式会社 | E159: 098-877-1533 | F159: 098-877-1558 | H159: 沖縄県浦添市牧港２丁目５０番１１号 | I159: 代表取締役会長 | J159: 笹尾 修司
B160: 159 | D160: 株式会社 ＷＳＣ | E160: 0980-79-0770 | F160: 0980-79-0780 | G160: 906-0201 | H160: 沖縄県宮古島市上野字野原８９－２９ | I160: 代表取締役 | J160: 西 英貴 | K160: 三浦 洋司
B161: 160 | D161: 株式会社 メイクマン 宮古店 | E161: 0980-73-7100 | H161: 沖縄県宮古島市平良字西里1291 | I161: 店長 | J161: 大兼久 潤志 | L161: 伊波 正広
B162: 161 | D162: 株式会社 メイクマン 宮古店 | E162: 0980-73-7100 | H162: 沖縄県宮古島市平良字西里1291 | I162: 店長 | J162: 大兼久 潤志 | L162: 西里 隆博
B163: 162 | D163: 株式会社 メイクマン 宮古店 | E163: 0980-73-7100 | H163: 沖縄県宮古島市平良字西里1291 | I163: 店長 | J163: 大兼久 潤志 | L163: 仲原 恵美
B164: 163 | D164: 株式会社 メイクマン 宮古店 | E164: 0980-73-7100 | H164: 沖縄県宮古島市平良字西里1291 | I164: 店長 | J164: 大兼久 潤志 | L164: 友利 晴美
B165: 164 | D165: 株式会社 メイクマン 宮古店 | E165: 0980-73-7100 | H165: 沖縄県宮古島市平良字西里1291 | I165: 店長 | J165: 大兼久 潤志 | L165: 山田 義貴
B166: 165 | D166: 株式会社 サンエー エディオン宮古島シティ | E166: 0980-73-1500 | F166: 0980-73-1501 | G166: 906-0013 | H166: 沖縄県宮古島市平良字下里2511-43 | I166: 店長 | J166: 久場 俊秀 | M166: 玉元 隆治
B167: 166 | D167: 川平 いずみ | E167: 0980-73-3669 | H167: 沖縄県宮古島市平良久貝1067-7 フローリスト・カビラ | I167: 代表 | J167: 川平 いずみ | L167: 川平 いずみ | M167: 0980-73-3669
B168: 167 | D168: 株式会社 トヨタレンタリース沖縄 石垣島空港店 | E168: 0980-82-0100 | F168: 0980-88-0200 | G168: 907-0244 | H168: 沖縄県石垣市盛山２２２－８５ | I168: 店長 | J168: 大底 勇貴 | L168: 比嘉 鈴奈
B169: 168 | D169: 株式会社 トヨタレンタリース沖縄 石垣島空港店 | E169: 0980-82-0100 | F169: 0980-88-0200 | G169: 907-0244 | H169: 沖縄県石垣市盛山２２２－８５ | I169: 店長 | J169: 大底 勇貴 | L169: 大嵩 孝史
B170: 169 | D170: ルートイン グランディア石垣 | E170: 0980-88-6160 | F170: 0980-88-6162 | G170: 907-0014 | H170: 沖縄県石垣市新栄町21 | I170: 店長 | L170: 矢島 寿和子
B171: 170 | D171: 株式会社 ルートインジャパン
B172: 171 | D172: 有限会社 ぽぷら | E172: 0980-72-6094 | G172: 906-0013 | H172: 沖縄県宮古島市平良字下里１７８ | I172: 代表取締役 | J172: 宮国 羨允
B173: 172 | D173: 沖縄綜合警備保障株式会社 | E173: 098-870-2500 | F173: 098-899-2306 | G173: 901-2223 | H173: 沖縄県宜野湾市大山７丁目１１番１０号 | I173: 代表取締役社長 | J173: 金城 唯士
B174: 173 | D174: 株式会社 明電エンジニアリング | G174: 812-0018 | H174: 福岡県福岡市博多区住吉５丁目５番３号 | I174: 支店長 | J174: 神谷 光治
B175: 174 | C175: れ | D175: あだん | E175: 0980-79-2088 | G175: 906-0601 | H175: 沖縄県宮古郡多良間村字塩川５２８ | I175: 代表者 | J175: 知念 祐子 | K175: 多良間村 | L175: 知念 祐子
B176: 175 | D176: ワタナベカラー | E176: 0980-72-1850 | G176: 906-0013 | H176: 沖縄県宮古島市平良字下里1259-6番地 | I176: 代表者 | J176: 國仲 勝吉 | L176: 國仲 勝吉
B177: 176 | D177: 有限会社 ホンダ販売石垣 | E177: 0980-83-1015 | F177: 0980-83-1004 | G177: 907-0002 | H177: 沖縄県石垣市前里574番地 | I177: 代表取締役 | J177: 上地 稔
B178: 177 | D178: 宮古ビル管理 株式会社 | G178: 906-0013 | H178: 沖縄県宮古島市平良字下里１０８－１１ | I178: 代表取締役 | J178: 根路銘 康文
B179: 178 | D179: 沖縄県エレベーター保守事業協同組合 | G179: 900-0015 | H179: 沖縄県那覇市久茂地２－１２－２１ 電波堂ビル4S
B180: 179 | D180: セコム株式会社 | G180: 150-0001 | H180: 東京都渋谷区神宮前一丁目５番１号 | I180: 代表取締役社長 | J180: 尾関 一郎
B181: 180 | D181: 水都環境サービス株式会社 | E181: 06-6195-4268 | F181: 06-6885-6522 | G181: 541-0044 | H181: 大阪府大阪市中央区伏見町４－４－９ 淀屋橋東洋ビル３F | I181: 代表取締役 | J181: 前川 真由美
B182: 181 | D182: 個人事業主 上田 卓也 | E182: 090-7883-8174 | H182: 千葉県柏市松葉町７丁目３３－９ | I182: 担当 | J182: 上田 卓也
B183: 182 | D183: 有限会社 うるま産業 | E183: 098-979-4888 | F183: 098-979-4855 | G183: 904-2205 | H183: 沖縄県うるま市栄野比４５番地１ | I183: 代表取締役 | J183: 目差 武博 | L183: 目差 武博
B184: 183 | D184: アサヒ電機株式会社 | E184: 0980-73-0695 | F184: 0980-73-6575 | G184: 906-0013 | H184: 沖縄県宮古島市平良字下里１３１４番地 | I184: 代表取締役 | J184: 下地 義治 | L184: 上地 友樹 | M184: T8-3600-0101-3726
B185: 184 | D185: 具志堅 忠夫 | E185: 0980-73-3158 | F185: 0980-73-0916 | G185: 906-0012 | H185: 沖縄県宮古島市平良西里１３０７－６ | I185: 代表者 | J185: 具志堅 忠夫 | K185: 宮古島市 | L185: 具志堅 忠夫
B186: 185 | D186: 新沖防災工業株式会社 | E186: 098-878-1941 | F186: 098-878-8494 | H186: 沖縄県浦添市伊祖４丁目１４番１号 | I186: 代表取締役 | J186: 比嘉 勉 | K186: 浦添市 | L186: 比嘉 勉
B187: 186 | D187: 有限会社 金谷向陽党 | E187: 0985-25-2722 | G187: 880-0004 | H187: 宮崎県宮崎市元宮町1－11 | I187: 代表取締役 | J187: 金谷 正博 | K187: 宮崎市 | L187: 金谷 正博
B188: 187 | D188: 株式会社丸仁 | G188: 903-0804 | H188: 沖縄県那覇市首里石嶺町４－４８３－３
B189: 188 | D189: 増山電機株式会社 | G189: 115-0042 | H189: 東京都北区志茂５丁目４の５
B190: 189 | D190: 有限会社ニード・コーポレーション | G190: 890-0055 | H190: 鹿児島県鹿児島市上荒田町36-13
B191: 190 | D191: エルマ販売株式会社 福岡営業所 | G191: 810-0073 | H191: 福岡県福岡市中央区舞鶴３丁目６－１７ 第１コーポ舞鶴ビル
B192: 191 | D192: 株式会社ネスコ 西日本営業部 | G192: 541-0044 | H192: 大阪府大阪市中央区伏見町４丁目２番１４号 WAKITA藤村御堂筋ビル３F
B193: 192 | D193: 陽光株式会社 | G193: 861-8002 | H193: 熊本県熊本市北区弓削３丁目９番４５号
B194: 193 | D194: グリーンフラッグ | G194: 902-0062 | H194: 沖縄県那覇市松川3-23-58
B195: =B194+1 -> 194 | D195: 有限会社ニューサウスウインド | G195: 906-0008 | H195: 沖縄県宮古島市平良荷川取535
B196: 195 | D196: 弘済企業株式会社 | G196: 160-0002 | H196: 東京都新宿区四谷坂町１２番２０号
B197: 196 | D197: 印刷センターよなみね | G197: 906-0012 | H197: 沖縄県宮古島市平良字西里８３０番地
B198: 197 | D198: 株式会社サンワード | G198: 811-3431 | H198: 福岡県宗像市田熊３丁目１番１号
B199: 198 | D199: 大成設備工業株式会社 | G199: 903-0804 | H199: 沖縄県那覇市首里石嶺町４丁目４４４－６
B200: 199 | D200: （株）アンカー | G200: 890-0045 | H200: 鹿児島県鹿児島市武１丁目４３番１５号
... 31 more rows

Sheet 業者登録用紙 (hidden)
B3: 売掛用口座登録用紙
B5: 契約支払いに関する事項を登録しますので下記の様式に記入をお願いします。 記入が終わりましたら折り返しFAXをお願いします。
B7: １ 企業（個人）登録
B8: 今回お取引する店舗の 住所及び社名 | D8: 〒
D10: TEL： （ ）
D11: FAX： （ ）
B12: その代表者の名前 | D12: 役 職： | G12: 氏 名：
B13: 担当者名 | D13: 氏 名： | G13: 部署等連絡先：
B14: ※本社等が存在し、請求権や契約権が確認できない場合は本社等の情報を御書入れ下さい
B15: ２ 口座登録
B16: 受領すべき金額は、下記の金融機関に振り込まれたく申請する。
B17: 口座名義 | D17: フリガナ
D18: 名義
B19: 銀 行 名
B20: 支 店 名 （郵貯の場合は記号番号）
B21: 預（貯）金種別 | D21: 普 通 ・ 当 座 ・ その他 （ ）
B22: 口座番号
B23: 備考
B24: ※お手数ではございますが、振込間違い防止のため口座の写しを添付お願いします。 名義の漢字とフリガナに相違があり振込できない時があります。 事後提出される請求書と名義が違う場合は振り込みができませんのでご注意ください。
B28: ３ その他
B29: 入金の時期については、納入日翌月末までに指定口座に御振込み予定です。
B33: ※連絡先
B34: 陸上自衛隊 宮古島駐屯地 第４４４会計隊 契約班 福士（フクシ）
B35: ＴＥＬ：０９８０－７６－６６６１（内３４８）
B36: ＦＡＸ：０９８０－７６－６７１２（直通）

Sheet 契約内容 (hidden)
D1: 入力データ | L1: 実計 | M1: 5S8P1KT02160 | P1: 内訳書
C2: № | D2: 品 名 | E2: 規 格 | F2: 単位 | G2: 数量 | H2: 単価 | I2: 金額 | J2: 要求書 | L2: 契約番号 | M2: =LEFT(M1,7)&MID(M1,9,3)& "000" -> 5S8P1KT216000 | N2: 参照 | O2: № | P2: 品名 | Q2: 規格 | R2: 単位 | S2: 数量 | T2: 単価 | U2: 金額
A3: 本官 | C3: 1 | D3: =コンバート!A5 -> オープン券（航空券） 宮古／石垣⇔九州内各空港 | E3: =コンバート!B5 -> 仕様書のとおり | F3: =コンバート!C5 -> SH | G3: =コンバート!D5 -> 150 | J3: 58LL1A50096 | L3: 要求番号 | M3: 58LL1A50096 | N3: 1 | O3: 1 | P3: =VLOOKUP(N3,$C:$J,2,FALSE) -> オープン券（航空券） 宮古／石垣⇔九州内各空港 | Q3: =VLOOKUP(N3,$C:$J,3,FALSE) -> 仕様書のとおり | R3: =VLOOKUP(N3,$C:$J,4,FALSE) -> SH | S3: =VLOOKUP(N3,$C:$J,5,FALSE) -> 150 | T3: =VLOOKUP(N3,$C:$J,6,FALSE) -> 0 | U3: =S3*T3 -> 0
A4: 代理官 | C4: 2 | D4: =コンバート!A6 -> 0 | E4: =コンバート!B6 -> 以下余白 | F4: =コンバート!C6 -> 0 | G4: =コンバート!D6 -> 0 | L4: 契約年月日 | M4: 2026-02-20 | N4: 2 | O4: 2 | P4: 0 | Q4: 以下余白 | R4: 0 | S4: 0 | T4: 0 | U4: =S4*T4 -> 0
C5: 3 | D5: =コンバート!A7 -> 0 | E5: =コンバート!B7 -> 0 | F5: =コンバート!C7 -> 0 | G5: =コンバート!D7 -> 0 | L5: 履行期限 | M5: 2026-02-27 | N5: 3 | O5: 3 | P5: 0 | Q5: 0 | R5: 0 | S5: 0 | T5: 0 | U5: 0
C6: 4 | D6: =コンバート!A8 -> 0 | E6: =コンバート!B8 -> 0 | F6: =コンバート!C8 -> 0 | G6: =コンバート!D8 -> 0 | L6: 履行場所 | M6: 陸上自衛隊 宮古島駐屯地 | N6: 4 | O6: 4 | P6: 0 | Q6: 0 | R6: 0 | S6: 0 | T6: 0 | U6: 0
C7: 5 | D7: =コンバート!A9 -> 0 | E7: =コンバート!B9 -> 0 | F7: =コンバート!C9 -> 0 | G7: =コンバート!D9 -> 0 | L7: 本官情報 | M7: 本官 | N7: 5 | O7: 5 | P7: 0 | Q7: 0 | R7: 0 | S7: 0 | T7: 0 | U7: 0
C8: 6 | D8: =コンバート!A10 -> 0 | E8: =コンバート!B10 -> 0 | F8: =コンバート!C10 -> 0 | G8: =コンバート!D10 -> 0 | N8: 6 | O8: 6 | P8: 0 | Q8: 0 | R8: 0 | S8: 0 | T8: 0 | U8: 0
C9: 7 | D9: =コンバート!A11 -> 0 | E9: =コンバート!B11 -> 0 | F9: =コンバート!C11 -> 0 | G9: =コンバート!D11 -> 0 | L9: 業者名 | M9: =業者一覧!A1 ->  | N9: 7 | O9: 7 | P9: 0 | Q9: 0 | R9: 0 | S9: 0 | T9: 0 | U9: 0
C10: 8 | D10: =コンバート!A12 -> 0 | E10: =コンバート!B12 -> 0 | F10: =コンバート!C12 -> 0 | G10: =コンバート!D12 -> 0 | N10: 8 | O10: 8 | P10: 0 | Q10: 0 | R10: 0 | S10: 0 | T10: 0 | U10: 0
C11: 9 | D11: =コンバート!A13 -> 0 | E11: =コンバート!B13 -> 0 | F11: =コンバート!C13 -> 0 | G11: =コンバート!D13 -> 0 | N11: 9 | O11: 9 | P11: 0 | Q11: 0 | R11: 0 | S11: 0 | T11: 0 | U11: 0
C12: 10 | D12: =コンバート!A14 -> 0 | E12: =コンバート!B14 -> 0 | F12: =コンバート!C14 -> 0 | G12: =コンバート!D14 -> 0 | N12: 10 | O12: 10 | P12: 0 | Q12: 0 | R12: 0 | S12: 0 | T12: 0 | U12: 0
C13: 11 | D13: =コンバート!A15 -> 0 | E13: =コンバート!B15 -> 0 | F13: =コンバート!C15 -> 0 | G13: =コンバート!D15 -> 0 | N13: 11 | O13: 11 | P13: 0 | Q13: 0 | R13: 0 | S13: 0 | T13: 0 | U13: 0
C14: 12 | D14: =コンバート!A16 -> 0 | E14: =コンバート!B16 -> 0 | F14: =コンバート!C16 -> 0 | G14: =コンバート!D16 -> 0 | N14: 12 | O14: 12 | P14: 0 | Q14: 0 | R14: 0 | S14: 0 | T14: 0 | U14: 0
C15: 13 | D15: =コンバート!A17 -> 0 | E15: =コンバート!B17 -> 0 | F15: =コンバート!C17 -> 0 | G15: =コンバート!D17 -> 0 | N15: 13 | O15: 13 | P15: 0 | Q15: 0 | R15: 0 | S15: 0 | T15: 0 | U15: 0
C16: 14 | D16: =コンバート!A18 -> 0 | E16: =コンバート!B18 -> 0 | F16: =コンバート!C18 -> 0 | G16: =コンバート!D18 -> 0 | N16: 14 | O16: 14 | P16: 0 | Q16: 0 | R16: 0 | S16: 0 | T16: 0 | U16: 0
C17: 15 | D17: =コンバート!A19 -> 0 | E17: =コンバート!B19 -> 0 | F17: =コンバート!C19 -> 0 | G17: =コンバート!D19 -> 0 | N17: 15 | O17: 15 | P17: 0 | Q17: 0 | R17: 0 | S17: 0 | T17: 0 | U17: 0
C18: 16 | D18: =コンバート!A20 -> 0 | E18: =コンバート!B20 -> 0 | F18: =コンバート!C20 -> 0 | G18: =コンバート!D20 -> 0 | N18: 16 | O18: 16 | P18: 0 | Q18: 0 | R18: 0 | S18: 0 | T18: 0 | U18: 0
C19: 17 | D19: =コンバート!A21 -> 0 | E19: =コンバート!B21 -> 0 | F19: =コンバート!C21 -> 0 | G19: =コンバート!D21 -> 0 | N19: 17 | O19: 17 | P19: 0 | Q19: 0 | R19: 0 | S19: 0 | T19: 0 | U19: 0
C20: 18 | D20: =コンバート!A22 -> 0 | E20: =コンバート!B22 -> 0 | F20: =コンバート!C22 -> 0 | G20: =コンバート!D22 -> 0 | N20: 18 | O20: 18 | P20: 0 | Q20: 0 | R20: 0 | S20: 0 | T20: 0 | U20: 0
C21: 19 | D21: =コンバート!A23 -> 0 | E21: =コンバート!B23 -> 0 | F21: =コンバート!C23 -> 0 | G21: =コンバート!D23 -> 0 | N21: 19 | O21: 19 | P21: 0 | Q21: 0 | R21: 0 | S21: 0 | T21: 0 | U21: 0
C22: 20 | D22: =コンバート!A24 -> 0 | E22: =コンバート!B24 -> 0 | F22: =コンバート!C24 -> 0 | G22: =コンバート!D24 -> 0 | N22: 20 | O22: 20 | P22: 0 | Q22: 0 | R22: 0 | S22: 0 | T22: 0 | U22: 0
C23: 21 | D23: =コンバート!A25 -> 0 | E23: =コンバート!B25 -> 0 | F23: =コンバート!C25 -> 0 | G23: =コンバート!D25 -> 0 | N23: 21 | O23: 21 | P23: 0 | Q23: 0 | R23: 0 | S23: 0 | T23: 0 | U23: 0
C24: 22 | D24: =コンバート!A26 -> 0 | E24: =コンバート!B26 -> 0 | F24: =コンバート!C26 -> 0 | G24: =コンバート!D26 -> 0 | N24: 22 | O24: 22 | P24: 0 | Q24: 0 | R24: 0 | S24: 0 | T24: 0 | U24: 0
C25: 23 | D25: =コンバート!A27 -> 0 | E25: =コンバート!B27 -> 0 | F25: =コンバート!C27 -> 0 | G25: =コンバート!D27 -> 0 | N25: 23 | O25: 23 | P25: 0 | Q25: 0 | R25: 0 | S25: 0 | T25: 0 | U25: 0
C26: 24 | D26: =コンバート!A28 -> 0 | E26: =コンバート!B28 -> 0 | F26: =コンバート!C28 -> 0 | G26: =コンバート!D28 -> 0 | N26: 24 | O26: 24 | P26: 0 | Q26: 0 | R26: 0 | S26: 0 | T26: 0 | U26: 0
C27: 25 | D27: =コンバート!A29 -> 0 | E27: =コンバート!B29 -> 0 | F27: =コンバート!C29 -> 0 | G27: =コンバート!D29 -> 0 | N27: 25 | O27: 25 | P27: 0 | Q27: 0 | R27: 0 | S27: 0 | T27: 0 | U27: 0
C28: 26 | D28: =コンバート!A30 -> 0 | E28: =コンバート!B30 -> 0 | F28: =コンバート!C30 -> 0 | G28: =コンバート!D30 -> 0 | N28: 26 | O28: 26 | P28: 0 | Q28: 0 | R28: 0 | S28: 0 | T28: 0
C29: 27 | D29: =コンバート!A31 -> 0 | E29: =コンバート!B31 -> 0 | F29: =コンバート!C31 -> 0 | G29: =コンバート!D31 -> 0 | N29: 27 | O29: 27 | P29: 0 | Q29: 0 | R29: 0 | S29: 0 | T29: 0
C30: 28 | D30: =コンバート!A32 -> 0 | E30: =コンバート!B32 -> 0 | F30: =コンバート!C32 -> 0 | G30: =コンバート!D32 -> 0 | N30: 28 | O30: 28 | P30: 0 | Q30: 0 | R30: 0 | S30: 0 | T30: 0
C31: 29 | D31: =コンバート!A33 -> 0 | E31: =コンバート!B33 -> 0 | F31: =コンバート!C33 -> 0 | G31: =コンバート!D33 -> 0 | N31: 29 | O31: 29 | P31: 0 | Q31: 0 | R31: 0 | S31: 0 | T31: 0
C32: 30 | D32: =コンバート!A34 -> 0 | E32: =コンバート!B34 -> 0 | F32: =コンバート!C34 -> 0 | G32: =コンバート!D34 -> 0 | N32: 30 | O32: 30 | P32: 0 | Q32: 0 | R32: 0 | S32: 0 | T32: 0
C33: 31 | D33: =コンバート!A35 -> 0 | E33: =コンバート!B35 -> 0 | F33: =コンバート!C35 -> 0 | G33: =コンバート!D35 -> 0 | P33: 計
C34: 32 | D34: =コンバート!A36 -> 0 | E34: =コンバート!B36 -> 0 | F34: =コンバート!C36 -> 0 | G34: =コンバート!D36 -> 0 | N34: 31 | O34: 31 | P34: =VLOOKUP(N34,$C:$J,2,FALSE) -> 0 | Q34: =VLOOKUP(N34,$C:$J,3,FALSE) -> 0 | R34: =VLOOKUP(N34,$C:$J,4,FALSE) -> 0 | S34: =VLOOKUP(N34,$C:$J,5,FALSE) -> 0 | T34: =VLOOKUP(N34,$C:$J,6,FALSE) -> 0
C35: 33 | D35: =コンバート!A37 -> 0 | E35: =コンバート!B37 -> 0 | F35: =コンバート!C37 -> 0 | G35: =コンバート!D37 -> 0 | N35: 32 | O35: 32 | P35: =VLOOKUP(N35,$C:$J,2,FALSE) -> 0 | Q35: 0 | R35: 0 | S35: 0 | T35: =VLOOKUP(N35,$C:$J,6,FALSE) -> 0
C36: 34 | D36: =コンバート!A38 -> 0 | E36: =コンバート!B38 -> 0 | F36: =コンバート!C38 -> 0 | G36: =コンバート!D38 -> 0 | N36: 33 | O36: 33 | P36: 0 | Q36: 0 | R36: 0 | S36: 0 | T36: =VLOOKUP(N36,$C:$J,6,FALSE) -> 0
C37: 35 | D37: =コンバート!A39 -> 0 | E37: =コンバート!B39 -> 0 | F37: =コンバート!C39 -> 0 | G37: =コンバート!D39 -> 0 | N37: 34 | O37: 34 | P37: 0 | Q37: 0 | R37: 0 | S37: 0 | T37: =VLOOKUP(N37,$C:$J,6,FALSE) -> 0
C38: 36 | D38: =コンバート!A40 -> 0 | E38: =コンバート!B40 -> 0 | F38: =コンバート!C40 -> 0 | G38: =コンバート!D40 -> 0 | N38: 35 | O38: 35 | P38: 0 | Q38: 0 | R38: 0 | S38: 0
C39: 37 | D39: =コンバート!A41 -> 0 | E39: =コンバート!B41 -> 0 | F39: =コンバート!C41 -> 0 | G39: =コンバート!D41 -> 0 | N39: 36 | O39: 36 | P39: 0 | Q39: 0 | R39: 0 | S39: 0
C40: 38 | D40: =コンバート!A42 -> 0 | E40: =コンバート!B42 -> 0 | F40: =コンバート!C42 -> 0 | G40: =コンバート!D42 -> 0 | N40: 37 | O40: 37 | P40: 0 | Q40: 0 | R40: 0 | S40: 0
C41: 39 | D41: =コンバート!A43 -> 0 | E41: =コンバート!B43 -> 0 | F41: =コンバート!C43 -> 0 | G41: =コンバート!D43 -> 0 | N41: 38 | O41: 38 | P41: 0 | Q41: 0 | R41: 0 | S41: 0
C42: 40 | D42: =コンバート!A44 -> 0 | E42: =コンバート!B44 -> 0 | F42: =コンバート!C44 -> 0 | G42: =コンバート!D44 -> 0 | N42: 39 | O42: 39 | P42: 0 | Q42: 0 | R42: 0 | S42: 0
C43: 41 | D43: =コンバート!A45 -> 0 | E43: =コンバート!B45 -> 0 | F43: =コンバート!C45 -> 0 | G43: =コンバート!D45 -> 0 | N43: 40 | O43: 40 | P43: 0 | Q43: 0 | R43: 0 | S43: 0
C44: 42 | D44: =コンバート!A46 -> 0 | E44: =コンバート!B46 -> 0 | F44: =コンバート!C46 -> 0 | G44: =コンバート!D46 -> 0 | N44: 41 | O44: 41 | P44: 0 | Q44: 0 | R44: 0 | S44: 0
C45: 43 | D45: =コンバート!A47 -> 0 | E45: =コンバート!B47 -> 0 | F45: =コンバート!C47 -> 0 | G45: =コンバート!D47 -> 0 | N45: 42 | O45: 42 | P45: 0 | Q45: 0 | R45: 0 | S45: 0
C46: 44 | D46: =コンバート!A48 -> 0 | E46: =コンバート!B48 -> 0 | F46: =コンバート!C48 -> 0 | G46: =コンバート!D48 -> 0 | N46: 43 | O46: 43 | P46: 0 | Q46: 0 | R46: 0 | S46: 0
C47: 45 | D47: =コンバート!A49 -> 0 | E47: =コンバート!B49 -> 0 | F47: =コンバート!C49 -> 0 | G47: =コンバート!D49 -> 0 | N47: 44 | O47: 44 | P47: 0 | Q47: 0 | R47: 0 | S47: 0
C48: 46 | D48: =コンバート!A50 -> 0 | E48: =コンバート!B50 -> 0 | F48: =コンバート!C50 -> 0 | G48: =コンバート!D50 -> 0 | N48: 45 | O48: 45 | P48: 0 | Q48: 0 | R48: 0 | S48: 0
C49: 47 | D49: =コンバート!A51 -> 0 | E49: =コンバート!B51 -> 0 | F49: =コンバート!C51 -> 0 | G49: =コンバート!D51 -> 0 | N49: 46 | O49: 46 | P49: 0 | Q49: 0 | R49: 0 | S49: 0
C50: 48 | D50: =コンバート!A52 -> 0 | E50: =コンバート!B52 -> 0 | F50: =コンバート!C52 -> 0 | G50: =コンバート!D52 -> 0 | N50: 47 | O50: 47 | P50: 0 | Q50: 0 | R50: 0 | S50: 0
C51: 49 | D51: =コンバート!A53 -> 0 | E51: =コンバート!B53 -> 0 | F51: =コンバート!C53 -> 0 | G51: =コンバート!D53 -> 0 | N51: 48 | O51: 48 | P51: 0 | Q51: 0 | R51: 0 | S51: 0
C52: 50 | D52: =コンバート!A54 -> 0 | E52: =コンバート!B54 -> 0 | F52: =コンバート!C54 -> 0 | G52: =コンバート!D54 -> 0 | N52: 49 | O52: 49 | P52: 0 | Q52: 0 | R52: 0 | S52: 0
C53: 51 | D53: =コンバート!A55 -> 0 | E53: =コンバート!B55 -> 0 | F53: =コンバート!C55 -> 0 | G53: =コンバート!D55 -> 0 | N53: 50 | O53: 50 | P53: 0 | Q53: 0 | R53: 0 | S53: 0
C54: 52 | D54: =コンバート!A56 -> 0 | E54: =コンバート!B56 -> 0 | F54: =コンバート!C56 -> 0 | G54: =コンバート!D56 -> 0 | N54: 51 | O54: 51 | P54: 0 | Q54: 0 | R54: 0 | S54: 0
C55: 53 | D55: =コンバート!A57 -> 0 | E55: =コンバート!B57 -> 0 | F55: =コンバート!C57 -> 0 | G55: =コンバート!D57 -> 0 | N55: 52 | O55: 52 | P55: 0 | Q55: 0 | R55: 0 | S55: 0
C56: 54 | D56: =コンバート!A58 -> 0 | E56: =コンバート!B58 -> 0 | F56: =コンバート!C58 -> 0 | G56: =コンバート!D58 -> 0 | N56: 53 | O56: 53 | P56: 0 | Q56: 0 | R56: 0 | S56: 0
C57: 55 | D57: =コンバート!A59 -> 0 | E57: =コンバート!B59 -> 0 | F57: =コンバート!C59 -> 0 | G57: =コンバート!D59 -> 0 | N57: 54 | O57: 54 | P57: 0 | Q57: 0 | R57: 0 | S57: 0
C58: 56 | D58: =コンバート!A60 -> 0 | E58: =コンバート!B60 -> 0 | F58: =コンバート!C60 -> 0 | G58: =コンバート!D60 -> 0 | N58: 55 | O58: 55 | P58: 0 | Q58: 0 | R58: 0 | S58: 0
C59: 57 | D59: =コンバート!A61 -> 0 | E59: =コンバート!B61 -> 0 | F59: =コンバート!C61 -> 0 | G59: =コンバート!D61 -> 0 | N59: 56 | O59: 56 | P59: 0 | Q59: 0 | R59: 0 | S59: 0
C60: 58 | D60: =コンバート!A62 -> 0 | E60: =コンバート!B62 -> 0 | F60: =コンバート!C62 -> 0 | G60: =コンバート!D62 -> 0 | N60: 57 | O60: 57 | P60: 0 | Q60: 0 | R60: 0 | S60: 0
C61: 59 | D61: =コンバート!A63 -> 0 | E61: =コンバート!B63 -> 0 | F61: =コンバート!C63 -> 0 | G61: =コンバート!D63 -> 0 | N61: 58 | O61: 58 | P61: 0 | Q61: 0 | R61: 0 | S61: 0
C62: 60 | D62: =コンバート!A64 -> 0 | E62: =コンバート!B64 -> 0 | F62: =コンバート!C64 -> 0 | G62: =コンバート!D64 -> 0 | N62: 59 | O62: 59 | P62: 0 | Q62: 0 | R62: 0 | S62: 0
C63: 61 | D63: =コンバート!A65 -> 0 | E63: =コンバート!B65 -> 0 | F63: =コンバート!C65 -> 0 | G63: =コンバート!D65 -> 0 | N63: 60 | O63: 60 | P63: 0 | Q63: 0 | R63: 0 | S63: 0
C64: 62 | D64: =コンバート!A66 -> 0 | E64: =コンバート!B66 -> 0 | F64: =コンバート!C66 -> 0 | G64: =コンバート!D66 -> 0 | P64: 小 計
C65: 63 | D65: =コンバート!A67 -> 0 | E65: =コンバート!B67 -> 0 | F65: =コンバート!C67 -> 0 | G65: =コンバート!D67 -> 0 | N65: 61 | O65: 61 | P65: =VLOOKUP(N65,$C:$J,2,FALSE) -> 0 | Q65: =VLOOKUP(N65,$C:$J,3,FALSE) -> 0 | R65: =VLOOKUP(N65,$C:$J,4,FALSE) -> 0 | S65: =VLOOKUP(N65,$C:$J,5,FALSE) -> 0
C66: 64 | D66: =コンバート!A68 -> 0 | E66: =コンバート!B68 -> 0 | F66: =コンバート!C68 -> 0 | G66: =コンバート!D68 -> 0 | M66: 498 | N66: 62 | O66: 62 | P66: 0 | Q66: 0 | R66: 0 | S66: 0
C67: 65 | D67: =コンバート!A69 -> 0 | E67: =コンバート!B69 -> 0 | F67: =コンバート!C69 -> 0 | G67: =コンバート!D69 -> 0 | N67: 63 | O67: 63 | P67: 0 | Q67: 0 | R67: 0 | S67: 0
C68: 66 | D68: =コンバート!A70 -> 0 | E68: =コンバート!B70 -> 0 | F68: =コンバート!C70 -> 0 | G68: =コンバート!D70 -> 0 | N68: 64 | O68: 64 | P68: 0 | Q68: 0 | R68: 0 | S68: 0
C69: 67 | D69: =コンバート!A71 -> 0 | E69: =コンバート!B71 -> 0 | F69: =コンバート!C71 -> 0 | G69: =コンバート!D71 -> 0 | N69: 65 | O69: 65 | P69: 0 | Q69: 0 | R69: 0 | S69: 0
C70: 68 | D70: =コンバート!A72 -> 0 | E70: =コンバート!B72 -> 0 | F70: =コンバート!C72 -> 0 | G70: =コンバート!D72 -> 0 | N70: 66 | O70: 66 | P70: 0 | Q70: 0 | R70: 0 | S70: 0
C71: 69 | D71: =コンバート!A73 -> 0 | E71: =コンバート!B73 -> 0 | F71: =コンバート!C73 -> 0 | G71: =コンバート!D73 -> 0 | N71: 67 | O71: 67 | P71: 0 | Q71: 0 | R71: 0 | S71: 0
C72: 70 | D72: =コンバート!A74 -> 0 | E72: =コンバート!B74 -> 0 | F72: =コンバート!C74 -> 0 | G72: =コンバート!D74 -> 0 | I72: =G72*H72 -> 0 | N72: 68 | O72: 68 | P72: 0 | Q72: 0 | R72: 0 | S72: 0
C73: 71 | D73: =コンバート!A75 -> 0 | E73: =コンバート!B75 -> 0 | F73: =コンバート!C75 -> 0 | G73: =コンバート!D75 -> 0 | I73: 0 | N73: 69 | O73: 69 | P73: 0 | Q73: 0 | R73: 0 | S73: 0
C74: 72 | D74: =コンバート!A76 -> 0 | E74: =コンバート!B76 -> 0 | F74: =コンバート!C76 -> 0 | G74: =コンバート!D76 -> 0 | I74: 0 | N74: 70 | O74: 70 | P74: 0 | Q74: 0 | R74: 0 | S74: 0
C75: 73 | D75: =コンバート!A77 -> 0 | E75: =コンバート!B77 -> 0 | F75: =コンバート!C77 -> 0 | G75: =コンバート!D77 -> 0 | I75: 0 | N75: 71 | O75: 71 | P75: 0 | Q75: 0 | R75: 0 | S75: 0
C76: 74 | D76: =コンバート!A78 -> 0 | E76: =コンバート!B78 -> 0 | F76: =コンバート!C78 -> 0 | G76: =コンバート!D78 -> 0 | I76: 0 | N76: 72 | O76: 72 | P76: 0 | Q76: 0 | R76: 0 | S76: 0
C77: 75 | D77: =コンバート!A79 -> 0 | E77: =コンバート!B79 -> 0 | F77: =コンバート!C79 -> 0 | G77: =コンバート!D79 -> 0 | I77: 0 | N77: 73 | O77: 73 | P77: 0 | Q77: 0 | R77: 0 | S77: 0
C78: 76 | D78: =コンバート!A80 -> 0 | E78: =コンバート!B80 -> 0 | F78: =コンバート!C80 -> 0 | G78: =コンバート!D80 -> 0 | I78: 0 | N78: 74 | O78: 74 | P78: 0 | Q78: 0 | R78: 0 | S78: 0
C79: 77 | D79: =コンバート!A81 -> 0 | E79: =コンバート!B81 -> 0 | F79: =コンバート!C81 -> 0 | G79: =コンバート!D81 -> 0 | I79: 0 | N79: 75 | O79: 75 | P79: 0 | Q79: 0 | R79: 0 | S79: 0
C80: 78 | D80: =コンバート!A82 -> 0 | E80: =コンバート!B82 -> 0 | F80: =コンバート!C82 -> 0 | G80: =コンバート!D82 -> 0 | I80: 0 | N80: 76 | O80: 76 | P80: 0 | Q80: 0 | R80: 0 | S80: 0
C81: 79 | D81: =コンバート!A83 -> 0 | E81: =コンバート!B83 -> 0 | F81: =コンバート!C83 -> 0 | G81: =コンバート!D83 -> 0 | I81: 0 | N81: 77 | O81: 77 | P81: 0 | Q81: 0 | R81: 0 | S81: 0
C82: 80 | D82: =コンバート!A84 -> 0 | E82: =コンバート!B84 -> 0 | F82: =コンバート!C84 -> 0 | G82: =コンバート!D84 -> 0 | I82: 0 | N82: 78 | O82: 78 | P82: 0 | Q82: 0 | R82: 0 | S82: 0
C83: 81 | D83: =コンバート!A85 -> 0 | E83: =コンバート!B85 -> 0 | F83: =コンバート!C85 -> 0 | G83: =コンバート!D85 -> 0 | I83: 0 | N83: 79 | O83: 79 | P83: 0 | Q83: 0 | R83: 0 | S83: 0
C84: 82 | D84: =コンバート!A86 -> 0 | E84: =コンバート!B86 -> 0 | F84: =コンバート!C86 -> 0 | G84: =コンバート!D86 -> 0 | I84: 0 | N84: 80 | O84: 80 | P84: 0 | Q84: 0 | R84: 0 | S84: 0
C85: 83 | D85: =コンバート!A87 -> 0 | E85: =コンバート!B87 -> 0 | F85: =コンバート!C87 -> 0 | G85: =コンバート!D87 -> 0 | I85: 0 | N85: 81 | O85: 81 | P85: 0 | Q85: 0 | R85: 0 | S85: 0
C86: 84 | D86: =コンバート!A88 -> 0 | E86: =コンバート!B88 -> 0 | F86: =コンバート!C88 -> 0 | G86: =コンバート!D88 -> 0 | I86: 0 | N86: 82 | O86: 82 | P86: 0 | Q86: 0 | R86: 0 | S86: 0
C87: 85 | D87: =コンバート!A89 -> 0 | E87: =コンバート!B89 -> 0 | F87: =コンバート!C89 -> 0 | G87: =コンバート!D89 -> 0 | I87: 0 | N87: 83 | O87: 83 | P87: 0 | Q87: 0 | R87: 0 | S87: 0
C88: 86 | D88: =コンバート!A90 -> 0 | E88: =コンバート!B90 -> 0 | F88: =コンバート!C90 -> 0 | G88: =コンバート!D90 -> 0 | I88: 0 | N88: 84 | O88: 84 | P88: 0 | Q88: 0 | R88: 0 | S88: 0
C89: 87 | D89: =コンバート!A91 -> 0 | E89: =コンバート!B91 -> 0 | F89: =コンバート!C91 -> 0 | G89: =コンバート!D91 -> 0 | I89: 0 | N89: 85 | O89: 85 | P89: 0 | Q89: 0 | R89: 0 | S89: 0
C90: 88 | D90: =コンバート!A92 -> 0 | E90: =コンバート!B92 -> 0 | F90: =コンバート!C92 -> 0 | G90: =コンバート!D92 -> 0 | I90: 0 | N90: 86 | O90: 86 | P90: 0 | Q90: 0 | R90: 0 | S90: 0
C91: 89 | D91: =コンバート!A93 -> 0 | E91: =コンバート!B93 -> 0 | F91: =コンバート!C93 -> 0 | G91: =コンバート!D93 -> 0 | I91: 0 | N91: 87 | O91: 87 | P91: 0 | Q91: 0 | R91: 0 | S91: 0
C92: 90 | D92: =コンバート!A94 -> 0 | E92: =コンバート!B94 -> 0 | F92: =コンバート!C94 -> 0 | G92: =コンバート!D94 -> 0 | I92: 0 | N92: 88 | O92: 88 | P92: 0 | Q92: 0 | R92: 0 | S92: 0
C93: 91 | D93: =コンバート!A95 -> 0 | E93: =コンバート!B95 -> 0 | F93: =コンバート!C95 -> 0 | G93: =コンバート!D95 -> 0 | I93: 0 | N93: 89 | O93: 89 | P93: 0 | Q93: 0 | R93: 0 | S93: 0
C94: 92 | D94: =コンバート!A96 -> 0 | E94: =コンバート!B96 -> 0 | F94: =コンバート!C96 -> 0 | G94: =コンバート!D96 -> 0 | I94: 0 | N94: 90 | P94: 小 計 | Q94: 0 | R94: 0 | S94: 0
C95: 93 | D95: =コンバート!A97 -> 0 | E95: =コンバート!B97 -> 0 | F95: =コンバート!C97 -> 0 | G95: =コンバート!D97 -> 0 | I95: 0 | P95: 合 計
C96: 94 | D96: =コンバート!A98 -> 0 | E96: =コンバート!B98 -> 0 | F96: =コンバート!C98 -> 0 | G96: =コンバート!D98 -> 0 | I96: 0 | N96: 91 | O96: 91 | P96: 0 | Q96: =VLOOKUP(N96,$C:$J,3,FALSE) -> 0 | R96: =VLOOKUP(N96,$C:$J,4,FALSE) -> 0 | S96: =VLOOKUP(N96,$C:$J,5,FALSE) -> 0
C97: 95 | D97: =コンバート!A99 -> 0 | E97: =コンバート!B99 -> 0 | F97: =コンバート!C99 -> 0 | G97: =コンバート!D99 -> 0 | I97: 0 | M97: 498 | N97: 92 | O97: 92 | P97: =VLOOKUP(N97,$C:$J,2,FALSE) -> 0 | Q97: =VLOOKUP(N97,$C:$J,3,FALSE) -> 0 | R97: =VLOOKUP(N97,$C:$J,4,FALSE) -> 0 | S97: =VLOOKUP(N97,$C:$J,5,FALSE) -> 0
C98: 96 | D98: =コンバート!A100 -> 0 | E98: =コンバート!B100 -> 0 | F98: =コンバート!C100 -> 0 | G98: =コンバート!D100 -> 0 | I98: 0 | N98: 93 | O98: 93 | P98: 0 | Q98: 0 | R98: 0 | S98: 0
C99: 97 | D99: =コンバート!A101 -> 0 | E99: =コンバート!B101 -> 0 | F99: =コンバート!C101 -> 0 | G99: =コンバート!D101 -> 0 | I99: 0 | N99: 94 | O99: 94 | P99: 0 | Q99: 0 | R99: 0 | S99: 0
C100: 98 | D100: =コンバート!A102 -> 0 | E100: =コンバート!B102 -> 0 | F100: =コンバート!C102 -> 0 | G100: =コンバート!D102 -> 0 | I100: 0 | N100: 95 | O100: 95 | P100: 0 | Q100: 0 | R100: 0 | S100: 0
C101: 99 | D101: =コンバート!A103 -> 0 | E101: =コンバート!B103 -> 0 | F101: =コンバート!C103 -> 0 | G101: =コンバート!D103 -> 0 | I101: 0 | N101: 96 | O101: 96 | P101: 0 | Q101: 0 | R101: 0 | S101: 0
C102: 100 | D102: =コンバート!A104 -> 0 | E102: =コンバート!B104 -> 0 | F102: =コンバート!C104 -> 0 | G102: =コンバート!D104 -> 0 | I102: 0 | N102: 97 | O102: 97 | P102: 0 | Q102: 0 | R102: 0 | S102: 0
C103: 99 | D103: =コンバート!A105 -> 0 | E103: =コンバート!B105 -> 0 | F103: =コンバート!C105 -> 0 | G103: =コンバート!D105 -> 0 | I103: 0 | N103: 98 | O103: 98 | P103: 0 | Q103: 0 | R103: 0 | S103: 0
C104: 100 | D104: =コンバート!A106 -> 0 | E104: =コンバート!B106 -> 0 | F104: =コンバート!C106 -> 0 | G104: =コンバート!D106 -> 0 | I104: 0 | N104: 99 | O104: 99 | P104: 0 | Q104: 0 | R104: 0 | S104: 0
C105: 101 | E105: =コンバート!B107 -> 0 | I105: 0 | N105: 100 | O105: 100 | P105: 0 | Q105: 0 | R105: 0 | S105: 0
C106: 102 | E106: =コンバート!B108 -> 0 | I106: 0 | N106: 101 | O106: 101 | P106: 0 | Q106: 0 | R106: 0 | S106: 0
C107: 103 | E107: =コンバート!B109 -> 0 | I107: 0 | N107: 103 | O107: 102 | P107: =VLOOKUP(N107,$C:$J,2,FALSE) -> 0 | Q107: =VLOOKUP(N107,$C:$J,3,FALSE) -> 0 | R107: =VLOOKUP(N107,$C:$J,4,FALSE) -> 0 | S107: =VLOOKUP(N107,$C:$J,5,FALSE) -> 0
C108: 104 | E108: =コンバート!B110 -> 0 | I108: 0 | N108: 104 | O108: 103 | P108: 0 | Q108: 0 | R108: 0 | S108: 0
C109: 105 | E109: =コンバート!B111 -> 0 | I109: 0 | N109: 105 | O109: 104 | P109: 0 | Q109: 0 | R109: 0 | S109: 0
C110: 106 | I110: 0 | N110: 106 | O110: 105 | P110: 0 | Q110: 0 | R110: 0 | S110: 0
C111: 107 | I111: 0 | N111: 107 | O111: 106 | P111: 0 | Q111: 0 | R111: 0 | S111: 0
C112: 108 | I112: 0 | N112: 108 | O112: 107 | P112: 0 | Q112: 0 | R112: 0 | S112: 0
C113: 109 | I113: 0 | N113: 109 | O113: 108 | P113: 0 | Q113: 0 | R113: 0 | S113: 0
C114: 110 | I114: 0 | N114: 110 | O114: 109 | P114: 0 | Q114: 0 | R114: 0 | S114: 0
C115: 111 | I115: 0 | N115: 111 | O115: 110 | P115: 0 | Q115: 0 | R115: 0 | S115: 0
C116: 112 | I116: 0 | N116: 112 | O116: 111 | P116: 0 | Q116: 0 | R116: 0 | S116: 0
C117: 113 | I117: 0 | N117: 113 | O117: 112 | P117: 0 | Q117: 0 | R117: 0 | S117: 0
C118: 114 | I118: 0 | N118: 114 | O118: 113 | P118: 0 | Q118: 0 | R118: 0 | S118: 0
C119: 115 | I119: 0 | N119: 115 | O119: 114 | P119: 0 | Q119: 0 | R119: 0 | S119: 0
C120: 116 | I120: 0 | N120: 116 | O120: 115 | P120: 0 | Q120: 0 | R120: 0 | S120: 0
C121: 117 | I121: 0 | N121: 117 | O121: 116 | P121: 0 | Q121: 0 | R121: 0 | S121: 0
C122: 118 | I122: 0 | N122: 118 | O122: 117 | P122: 0 | Q122: 0 | R122: 0 | S122: 0
C123: 119 | I123: 0 | N123: 119 | O123: 118 | P123: 0 | Q123: 0 | R123: 0 | S123: 0
C124: 120 | I124: 0 | N124: 120 | O124: 119 | P124: 0 | Q124: 0 | R124: 0 | S124: 0
C125: 121 | I125: 0 | N125: 121 | O125: 120 | P125: 0 | Q125: 0 | R125: 0 | S125: 0
C126: 122 | I126: 0 | N126: 122 | P126: 小 計 | Q126: 0 | R126: 0 | S126: 0
C127: 123 | I127: 0 | M127: ここまで設定済み→ | N127: 123 | P127: 合 計 | Q127: 0 | R127: 0 | S127: 0
C128: 124 | I128: 0 | N128: 124 | Q128: 0 | R128: 0 | S128: 0
C129: 125 | I129: 0 | N129: 125 | O129: 121 | P129: =VLOOKUP(N129,$C:$J,2,FALSE) -> 0 | Q129: =VLOOKUP(N129,$C:$J,3,FALSE) -> 0 | R129: =VLOOKUP(N129,$C:$J,4,FALSE) -> 0 | S129: =VLOOKUP(N129,$C:$J,5,FALSE) -> 0
C130: 126 | I130: 0 | N130: 126 | O130: 122 | P130: 0 | Q130: 0 | R130: 0 | S130: 0
C131: 127 | I131: 0 | N131: 127 | O131: 123 | P131: 0 | Q131: 0 | R131: 0 | S131: 0
C132: 128 | I132: 0 | N132: 128 | O132: 124 | P132: 0 | Q132: 0 | R132: 0 | S132: 0
C133: 129 | I133: 0 | N133: 129 | O133: 125 | P133: 0 | Q133: 0 | R133: 0 | S133: 0
C134: 130 | I134: =G134*H134 -> 0 | N134: 130 | O134: 126 | P134: 0 | Q134: 0 | R134: 0 | S134: 0
C135: 131 | I135: 0 | N135: 131 | O135: 127 | P135: 0 | Q135: 0 | R135: 0 | S135: 0
C136: 132 | I136: 0 | N136: 132 | O136: 128 | P136: 0 | Q136: 0 | R136: 0 | S136: 0
C137: 133 | I137: 0 | N137: 133 | O137: 129 | P137: 0 | Q137: 0 | R137: 0 | S137: 0
C138: 134 | I138: 0 | N138: 134 | O138: 130 | P138: 0 | Q138: 0 | R138: 0 | S138: 0
C139: 135 | I139: 0 | N139: 135 | O139: 131 | P139: 0 | Q139: 0 | R139: 0 | S139: 0
C140: 136 | I140: 0 | N140: 136 | O140: 132 | P140: 0 | Q140: 0 | R140: 0 | S140: 0
C141: 137 | I141: 0 | N141: 137 | O141: 133 | P141: 0 | Q141: 0 | R141: 0 | S141: 0
C142: 138 | I142: 0 | N142: 138 | O142: 134 | P142: 0 | Q142: 0 | R142: 0 | S142: 0
C143: 139 | I143: 0 | N143: 139 | O143: 135 | P143: 0 | Q143: 0 | R143: 0 | S143: 0
C144: 140 | I144: 0 | N144: 140 | O144: 136 | P144: 0 | Q144: 0 | R144: 0 | S144: 0
C145: 141 | I145: 0 | N145: 141 | O145: 137 | P145: 0 | Q145: 0 | R145: 0 | S145: 0
C146: 142 | I146: 0 | N146: 142 | O146: 138 | P146: 0 | Q146: 0 | R146: 0 | S146: 0
C147: 143 | I147: 0 | N147: 143 | O147: 139 | P147: 0 | Q147: 0 | R147: 0 | S147: 0
C148: 144 | I148: 0 | N148: 144 | O148: 140 | P148: 0 | Q148: 0 | R148: 0 | S148: 0
C149: 145 | I149: 0 | N149: 145 | O149: 141 | P149: 0 | Q149: 0 | R149: 0 | S149: 0
C150: 146 | I150: 0 | N150: 146 | O150: 142 | P150: 0 | Q150: 0 | R150: 0 | S150: 0
C151: 147 | I151: 0 | N151: 147 | O151: 143 | P151: 0 | Q151: 0 | R151: 0 | S151: 0
C152: 148 | I152: 0 | N152: 148 | O152: 144 | P152: 0 | Q152: 0 | R152: 0 | S152: 0
C153: 149 | I153: 0 | N153: 149 | O153: 145 | P153: 0 | Q153: 0 | R153: 0 | S153: 0
C154: 150 | I154: 0 | N154: 150 | O154: 146 | P154: 0 | Q154: 0 | R154: 0 | S154: 0
C155: 151 | I155: 0 | N155: 151 | O155: 147 | P155: 0 | Q155: 0 | R155: 0 | S155: 0
C156: 152 | I156: 0 | N156: 152 | O156: 148 | P156: 0 | Q156: 0 | R156: 0 | S156: 0
C157: 153 | I157: 0 | N157: 153 | O157: 149 | P157: 0 | Q157: 0 | R157: 0 | S157: 0
C158: 154 | I158: 0 | N158: 154 | O158: 150 | P158: 0 | Q158: 0 | R158: 0 | S158: 0
P159: 小計
C160: 155 | I160: 0 | N160: 155 | O160: 151 | P160: =VLOOKUP(N160,$C:$J,2,FALSE) -> 0 | Q160: =VLOOKUP(N160,$C:$J,3,FALSE) -> 0 | R160: =VLOOKUP(N160,$C:$J,4,FALSE) -> 0 | S160: =VLOOKUP(N160,$C:$J,5,FALSE) -> 0
C161: 156 | I161: 0 | N161: 156 | O161: 152 | P161: 0 | Q161: 0 | R161: 0 | S161: 0
C162: 157 | I162: 0 | N162: 157 | O162: 153 | P162: 0 | Q162: 0 | R162: 0 | S162: 0
C163: 158 | I163: 0 | N163: 158 | O163: 154 | P163: 0 | Q163: 0 | R163: 0 | S163: 0
C164: 159 | I164: 0 | N164: 159 | O164: 155 | P164: 0 | Q164: 0 | R164: 0 | S164: 0
C165: 160 | I165: 0 | N165: 160 | O165: 156 | P165: 0 | Q165: 0 | R165: 0 | S165: 0
C166: 161 | I166: 0 | N166: 161 | O166: 157 | P166: 0 | Q166: 0 | R166: 0 | S166: 0
C167: 162 | I167: 0 | N167: 162 | O167: 158 | P167: 0 | Q167: 0 | R167: 0 | S167: 0
C168: 163 | I168: 0 | N168: 163 | O168: 159 | P168: 0 | Q168: 0 | R168: 0 | S168: 0
C169: 164 | I169: 0 | N169: 164 | O169: 160 | P169: 0 | Q169: 0 | R169: 0 | S169: 0
C170: 165 | I170: 0 | N170: 165 | O170: 161 | P170: 0 | Q170: 0 | R170: 0 | S170: 0
C171: 166 | I171: 0 | N171: 166 | O171: 162 | P171: 0 | Q171: 0 | R171: 0 | S171: 0
C172: 167 | I172: 0 | N172: 167 | O172: 163 | P172: 0 | Q172: 0 | R172: 0 | S172: 0
C173: 168 | I173: 0 | N173: 168 | O173: 164 | P173: 0 | Q173: 0 | R173: 0 | S173: 0
C174: 169 | I174: 0 | N174: 169 | O174: 165 | P174: 0 | Q174: 0 | R174: 0 | S174: 0
C175: 170 | I175: 0 | N175: 170 | O175: 166 | P175: 0 | Q175: 0 | R175: 0 | S175: 0
C176: 171 | I176: 0 | N176: 171 | O176: 167 | P176: 0 | Q176: 0 | R176: 0 | S176: 0
C177: 172 | I177: 0 | N177: 172 | O177: 168 | P177: 0 | Q177: 0 | R177: 0 | S177: 0
C178: 173 | I178: 0 | N178: 173 | O178: 169 | P178: 0 | Q178: 0 | R178: 0 | S178: 0
C179: 174 | I179: 0 | N179: 174 | O179: 170 | P179: 0 | Q179: 0 | R179: 0 | S179: 0
C180: 175 | I180: 0 | N180: 175 | O180: 171 | P180: 0 | Q180: 0 | R180: 0 | S180: 0
C181: 176 | I181: 0 | N181: 176 | O181: 172 | P181: 0 | Q181: 0 | R181: 0 | S181: 0
C182: 177 | I182: 0 | N182: 177 | O182: 173 | P182: 0 | Q182: 0 | R182: 0 | S182: 0
C183: 178 | I183: 0 | N183: 178 | O183: 174 | P183: 0 | Q183: 0 | R183: 0 | S183: 0
C184: 179 | I184: 0 | N184: 179 | O184: 175 | P184: 0 | Q184: 0 | R184: 0 | S184: 0
C185: 180 | I185: 0 | N185: 180 | O185: 176 | P185: 0 | Q185: 0 | R185: 0 | S185: 0
C186: 181 | I186: 0 | N186: 181 | O186: 177 | P186: 0 | Q186: 0 | R186: 0 | S186: 0
C187: 182 | I187: 0 | N187: 182 | O187: 178 | P187: 0 | Q187: 0 | R187: 0 | S187: 0
C188: 183 | I188: 0 | N188: 183 | O188: 179 | P188: 0 | Q188: 0 | R188: 0 | S188: 0
C189: 184 | I189: 0 | N189: 184 | O189: 180 | P189: 0 | Q189: 0 | R189: 0 | S189: 0
P190: 小計
C191: 185 | I191: 0 | N191: 185 | O191: 181 | P191: =VLOOKUP(N191,$C:$J,2,FALSE) -> 0 | Q191: =VLOOKUP(N191,$C:$J,3,FALSE) -> 0 | R191: =VLOOKUP(N191,$C:$J,4,FALSE) -> 0 | S191: =VLOOKUP(N191,$C:$J,5,FALSE) -> 0
C192: 186 | I192: 0 | N192: 186 | O192: 182 | P192: 0 | Q192: 0 | R192: 0 | S192: 0
C193: 187 | I193: 0 | N193: 187 | O193: 183 | P193: 0 | Q193: 0 | R193: 0 | S193: 0
C194: 188 | I194: 0 | N194: 188 | O194: 184 | P194: 0 | Q194: 0 | R194: 0 | S194: 0
C195: 189 | I195: 0 | N195: 189 | O195: 185 | P195: 0 | Q195: 0 | R195: 0 | S195: 0
C196: 190 | I196: 0 | N196: 190 | O196: 186 | P196: 0 | Q196: 0 | R196: 0 | S196: 0
C197: 191 | I197: 0 | N197: 191 | O197: 187 | P197: 0 | Q197: 0 | R197: 0 | S197: 0
C198: 192 | I198: 0 | N198: 192 | O198: 188 | P198: 0 | Q198: 0 | R198: 0 | S198: 0
C199: 193 | I199: 0 | N199: 193 | O199: 189 | P199: 0 | Q199: 0 | R199: 0 | S199: 0
C200: 194 | I200: =G200*H200 -> 0 | N200: 194 | O200: 190 | P200: 0 | Q200: 0 | R200: 0 | S200: 0
... 309 more rows

Sheet コンバート (hidden)
A5: オープン券（航空券） 宮古／石垣⇔九州内各空港 | B5: 仕様書のとおり | C5: SH | D5: 150.00 | E5: 29,840.00
B6: 以下余白

Sheet 貼り付け (hidden)
A1: オープン券（航空券） 宮古／石垣⇔九州内各空港 | D1: 150.00 | E1: 29,840.00 | F1: 宮古島駐屯地７高特群第４科 | G1: 2026-02-27 | I1: 42020 | J1: 5 | K1: S8P | L1: 1 | M1: KT | O1: 0 | Q1: CYK20260210418592 | R1: 2 | S1: JKK20260210963765 | T1: 1 | U1: HMK20260210313185 | V1: 1 | W1: 3 | Y1: 11 | Z1: 150 | AA1: 1 | AB1: 1 | AC1: 3 | AI1: 仕様書のとおり | AK1: 1 | AL1: 0
A2: 仕様書のとおり | C2: 補給用（連接外） | D2: SH | E2: 4,476,000.00 | F2: 宮古島駐屯地７高特群第４科

Sheet 予調内訳 (hidden)
B1: 積算資料
A2: № | B2: 品名 | C2: 規格 | D2: 単位 | E2: 数量 | F2: カタログ 単価 | G2: ="カタログ" & CHAR(10) & TEXT(P2,"#%") &"引単価" -> カタログ %引単価 | H2: 金額 | J2: 三晃（株） | K2: 光洋商事 （株） | L2: 金額 | N2: 備考 | P2: 0%
A3: 1 | B3: エレベーター三脚用延長アダプター | C3: ＥＡ７８０ＴＭ－２０ | D3: EA | E3: 1 | F3: 5,890 | G3: =F3-INT(F3*$P$2) -> 5,890 | H3: =E3*G3 -> 5,890 | L3: =E3*J3 -> 0 | N3: カタログ割引採用（エスコ採用）
A4: 2 | B4: アルミポール | C4: ＤＬＣ－ＡＰ９３Ｍ | D4: EA | E4: 1 | F4: 70,000 | G4: =F4-INT(F4*$P$2) -> 70,000 | H4: =E4*G4 -> 70,000 | L4: =E4*J4 -> 0 | N4: 〃
A5: 3 | B5: ＬＥＤパランドル | C5: ＰＤＬ－ＶＦ３０Ｊ | D5: EA | E5: 3 | F5: 32,000 | G5: 32,000 | H5: 96,000 | L5: 0 | N5: 〃
A6: 4 | G6: =F6-INT(F6*$P$2) -> 0 | H6: =E6*G6 -> 0 | L6: 0 | N6: 〃
A7: 5 | G7: 0 | H7: 0 | L7: 0 | N7: 〃
A8: 6 | G8: 0 | H8: 0 | L8: 0 | N8: 〃
A9: 7 | G9: 0 | H9: 0 | L9: 0 | N9: 〃
A10: 8 | G10: 0 | H10: 0 | L10: 0 | N10: 〃
A11: 9 | G11: 0 | H11: 0 | L11: 0 | N11: 〃
A12: 10 | G12: 0 | H12: 0 | L12: 0 | N12: 〃
A13: 11 | G13: 0 | H13: 0 | L13: 0 | N13: 〃
A14: 12 | G14: 0 | H14: 0 | L14: 0 | N14: 〃
A15: 13 | G15: 0 | H15: 0 | L15: 0 | N15: 〃
A16: 14 | G16: 0 | H16: 0 | L16: 0 | N16: 〃
A17: 15 | G17: 0 | H17: 0 | L17: 0 | N17: 〃
A18: 16 | G18: 0 | H18: 0 | L18: 0 | N18: 〃
A19: 17 | G19: =F19-INT(F19*$P$2) -> 0 | H19: =E19*G19 -> 0 | N19: 〃
A20: 18 | G20: =F20-INT(F20*$P$2) -> 0 | H20: =E20*G20 -> 0 | N20: 〃
A21: 19 | G21: 0 | H21: 0 | N21: 〃
A22: 20 | G22: 0 | H22: 0 | N22: 〃
A23: 21 | G23: 0 | H23: 0 | N23: 〃
A24: 22 | G24: 0 | H24: 0 | N24: 〃
A25: 23 | G25: 0 | H25: 0 | N25: 〃
A26: 24 | G26: 0 | H26: 0 | N26: 〃
A27: 25 | G27: 0 | H27: 0 | N27: 〃
A28: 26 | G28: 0 | H28: 0 | N28: 〃
A29: 27 | G29: 0 | H29: 0 | N29: 〃
A30: 28 | G30: 0 | H30: 0 | N30: 〃
A31: 29 | G31: =F31-INT(F31*$P$2) -> 0 | H31: =E31*G31 -> 0 | L31: =E31*J31 -> 0 | N31: 〃
A32: 30 | G32: =F32-INT(F32*$P$2) -> 0 | H32: =E32*G32 -> 0 | L32: 0 | N32: 〃
A33: 31 | G33: 0 | H33: 0 | N33: 〃
A34: 32 | G34: 0 | H34: 0 | N34: 〃
A35: 33 | G35: 0 | H35: 0 | N35: 〃
A36: 34 | G36: 0 | H36: 0 | N36: 〃
A37: 35 | G37: 0 | H37: 0 | N37: 〃
A38: 36 | G38: 0 | H38: 0 | N38: 〃
A39: 37
A40: 38
A41: 39
A42: 40
A43: 41
A44: 42
A45: 43
A46: 44 | G46: 0 | H46: 0 | N46: 〃
A47: 45 | G47: 0 | H47: 0 | N47: 〃
A48: 46 | G48: 0 | H48: 0 | N48: 〃
A49: 47 | G49: 0 | H49: 0 | L49: 0 | N49: 〃
A50: 48 | G50: 0 | H50: 0 | L50: 0 | N50: 〃
A51: 49 | G51: 0 | H51: 0 | L51: 0 | N51: 〃
A52: 50 | G52: 0 | H52: 0 | L52: 9,999,999
B53: 小計 | H53: =SUM(H3:H52) -> 171,890 | I53: =IF(MIN(H53,L53)=H53,"○") -> ○ | J53: 592,640 | K53: 683,254 | L53: =SUM(L3:L52) -> 9,999,999 | M53: =IF(I53<>"○","○","") -> 
B54: 消費税 | C54: 10% | H54: =IF(I53="○",INT(H53*C54)) -> 17,189 | L54: =IF(M53="〇",INT(L53*F54),"") -> 
B55: 合計 | H55: =IF(I53="○",H53+INT(H53*C54)) -> 189,079 | L55: =IF(M53="〇",L53+INT(L53*F54),"") -> 

Sheet 抽選用紙 (hidden)
B1: 抽選紙
J6: 2024-02-26
C8: =VLOOKUP($A$14,$N$8:$T$28,5,FALSE) -> 0 | I8: =VLOOKUP($A$14,$N$8:$T$28,6,FALSE) -> 0 | N8: 選択 | O8: 区分 | P8: № | Q8: 品名 | R8: 単価 | S8: 候補１ | T8: 候補２ | U8: 業者一覧
B9: 金額 | H9: 業者名 | N9: 1
N10: 2
N11: 3
C12: =VLOOKUP($A$14,$N$8:$R$28,2,FALSE) & " " & VLOOKUP($A$14,$N$8:$R$28,3,FALSE) &" " &VLOOKUP($A$14,$N$8:$R$28,4,FALSE) ->  | I12: =VLOOKUP($A$14,$N$8:$T$28,7,FALSE) -> 0 | N12: 4
A13: 選択 | B13: 品名 | H13: 業者名 | N13: 5
A14: 2 | N14: 6
N15: 7
N16: 8
N17: 9
N18: 10
N19: 11
N20: 12
N21: 13
N22: 14
N23: 15
N24: 16
N25: 17
N26: 18
N27: 19
N28: 20

Sheet でんみつ (hidden)
B1: 電話見積もり
C4: 件名： | D4: ='見積書 (うち)'!B10 -> オープン券（航空券） 宮古／石垣⇔九州内各空港 ほか 19件 内訳書のとおり | G4: 作成年月日： | H4: 2024-04-04
A5: 業者№ | B5: № | C5: 業者名 連絡先 | D5: 数量 | E5: 単位 | F5: 単価 | G5: 消費税 | H5: 金額
A6: 30 | B6: 1 | C6: =VLOOKUP(A6,業者一覧!$B$2:$J$233,3) -> 川崎重工業 株式会社 | D6: EA | E6: 1
C7: ="担当者 " & VLOOKUP(A6,業者一覧!$B$2:$M$233,11) & " （" &VLOOKUP(A6,業者一覧!$B$2:$M$233,4) &"）" -> 担当者 （058-382-6210）
A8: 164 | B8: 2 | C8: =VLOOKUP(A8,業者一覧!$B$2:$J$233,3) -> 株式会社 メイクマン 宮古店 | D8: EA | E8: 1
C9: ="担当者 " & VLOOKUP(A8,業者一覧!$B$2:$M$233,11) & " （" &VLOOKUP(A8,業者一覧!$B$2:$M$233,4) &"）" -> 担当者 山田 義貴 （0980-73-7100）
B10: 3 | C10: =VLOOKUP(A10,業者一覧!$B$2:$J$233,3) -> 
C11: ="担当者 " & VLOOKUP(A10,業者一覧!$B$2:$M$233,11) & " （" &VLOOKUP(A10,業者一覧!$B$2:$M$233,4) &"）" -> 

Sheet 入札書
B2: 入札書 | J2: 見積書 | K2: 件名リスト一連番号
J3: 入札書 | K3: 公告番号
B4: =VLOOKUP($B$2,$J:$K,2,FALSE) -> 公告番号 | C4: 115 | J4: 下見積書
B5: 契約実施計画番号 | C5: =契約内容!M1 -> 5S8P1KT02160 | D5: =契約内容!#REF! -> 
J6: =G30 -> 0 | K6: （消費税及び地方税を含まない。）
B7: =LEFT(B2,2)&"金額 ￥" -> 入札金額 ￥ | C7: 0.- | D7: （消費税及び地方税を含まない。） | J7: 単価による | K7: （税込）
K8: ="税込（うち消費税 " & TEXT(C7-INT(C7*100/110),"#,#") & "円）" -> 税込（うち消費税 円）
A9: № | B9: 品 名 | C9: 規 格 | D9: 単位 | E9: 数量 | F9: 単価 | G9: 金額 | J9: 数量
A10: 1 | B10: =契約内容!P3 -> オープン券（航空券） 宮古／石垣⇔九州内各空港 | C10: =契約内容!Q3 -> 仕様書のとおり | D10: =契約内容!R3 -> SH | E10: =契約内容!S3 -> 150 | F10: =契約内容!T3 -> 0 | G10: =E10*F10 -> 0 | J10: 予定 数量
A11: 2 | B11: =契約内容!P4 -> 0 | C11: =契約内容!Q4 -> 以下余白 | D11: =契約内容!R4 -> 0 | E11: =契約内容!S4 -> 0 | F11: =契約内容!T4 -> 0 | G11: =E11*F11 -> 0 | K11: 税込（うち消費税 5,212円）
A12: 3 | B12: =契約内容!P5 -> 0 | C12: =契約内容!Q5 -> 0 | D12: =契約内容!R5 -> 0 | E12: =契約内容!S5 -> 0 | F12: =契約内容!T5 -> 0 | G12: 0
A13: 4 | B13: =契約内容!P6 -> 0 | C13: =契約内容!Q6 -> 0 | D13: =契約内容!R6 -> 0 | E13: =契約内容!S6 -> 0 | F13: =契約内容!T6 -> 0 | G13: 0
A14: 5 | B14: =契約内容!P7 -> 0 | C14: =契約内容!Q7 -> 0 | D14: =契約内容!R7 -> 0 | E14: =契約内容!S7 -> 0 | F14: =契約内容!T7 -> 0 | G14: 0
A15: 6 | B15: =契約内容!P8 -> 0 | C15: =契約内容!Q8 -> 0 | D15: =契約内容!R8 -> 0 | E15: =契約内容!S8 -> 0 | F15: =契約内容!T8 -> 0
A16: 7 | B16: =契約内容!P9 -> 0 | C16: =契約内容!Q9 -> 0 | D16: =契約内容!R9 -> 0 | E16: =契約内容!S9 -> 0 | F16: =契約内容!T9 -> 0
A17: 8 | B17: =契約内容!P10 -> 0 | C17: =契約内容!Q10 -> 0 | D17: =契約内容!R10 -> 0 | E17: =契約内容!S10 -> 0 | F17: =契約内容!T10 -> 0
A18: 9 | B18: =契約内容!P11 -> 0 | C18: =契約内容!Q11 -> 0 | D18: =契約内容!R11 -> 0 | E18: =契約内容!S11 -> 0 | F18: =契約内容!T11 -> 0 | G18: 0
A19: 10 | B19: =契約内容!P12 -> 0 | C19: =契約内容!Q12 -> 0 | D19: =契約内容!R12 -> 0 | E19: =契約内容!S12 -> 0 | F19: =契約内容!T12 -> 0 | G19: =E19*F19 -> 0
A20: 11 | B20: =契約内容!P13 -> 0 | C20: =契約内容!Q13 -> 0 | D20: =契約内容!R13 -> 0 | E20: =契約内容!S13 -> 0 | F20: =契約内容!T13 -> 0 | G20: 0
A21: 12 | B21: =契約内容!P14 -> 0 | C21: =契約内容!Q14 -> 0 | D21: =契約内容!R14 -> 0 | E21: =契約内容!S14 -> 0 | F21: =契約内容!T14 -> 0 | G21: 0
A22: 13 | B22: =契約内容!P15 -> 0 | C22: =契約内容!Q15 -> 0 | D22: =契約内容!R15 -> 0 | E22: =契約内容!S15 -> 0 | F22: =契約内容!T15 -> 0 | G22: 0
A23: 14 | B23: =契約内容!P16 -> 0 | C23: =契約内容!Q16 -> 0 | D23: =契約内容!R16 -> 0 | E23: =契約内容!S16 -> 0 | F23: =契約内容!T16 -> 0 | G23: 0
A24: 15 | B24: =契約内容!P17 -> 0 | C24: =契約内容!Q17 -> 0 | D24: =契約内容!R17 -> 0 | E24: =契約内容!S17 -> 0 | F24: =契約内容!T17 -> 0 | G24: 0
A25: 16 | B25: =契約内容!P18 -> 0 | C25: =契約内容!Q18 -> 0 | D25: =契約内容!R18 -> 0 | E25: =契約内容!S18 -> 0 | F25: =契約内容!T18 -> 0 | G25: 0
A26: 17 | B26: =契約内容!P19 -> 0 | C26: =契約内容!Q19 -> 0 | D26: =契約内容!R19 -> 0 | E26: =契約内容!S19 -> 0 | F26: =契約内容!T19 -> 0 | G26: 0
A27: 18 | B27: =契約内容!P20 -> 0 | C27: =契約内容!Q20 -> 0 | D27: =契約内容!R20 -> 0 | E27: =契約内容!S20 -> 0 | F27: =契約内容!T20 -> 0 | G27: 0
A28: 19 | B28: =契約内容!P21 -> 0 | C28: =契約内容!Q21 -> 0 | D28: =契約内容!R21 -> 0 | E28: =契約内容!S21 -> 0 | F28: =契約内容!T21 -> 0 | G28: 0
A29: 20 | B29: =契約内容!P22 -> 0 | C29: =契約内容!Q22 -> 0 | D29: =契約内容!R22 -> 0 | E29: =契約内容!S22 -> 0 | F29: =契約内容!T22 -> 0 | G29: 0
B30: 小計 | G30: =SUM(G10:H29) -> 0
A31: 納入（履行）場所 | C31: =契約内容!M6 -> 陸上自衛隊 宮古島駐屯地 | D31: 納期（工期） | F31: =契約内容!M5 -> 2026-02-27 | G31: =契約内容!W6 -> 00:00:00 | H31: =契約内容!#REF! -> 
A32: 契約保証金 | C32: （免 除） | D32: 入札（見積）書有効期間
A33: 注文から納品にかかるおおよその日数：
B34: 上記に関して「入札及び契約心得」、「標準契約書等」の契約条項等を承諾の上、入札見積りいたします。また、当社（私（個人の場合）、当団体（団体の場合））は「入札及び契約心得」に示された暴力団排除に関する誓約事項について、誓約いたします。
J35: 随契 | K35: 上記に関して「入札及び契約心得」、「標準契約書等」の契約条項等を承諾の上、入札見積りいたします。また、当社（私（個人の場合）、当団体（団体の場合））は「入札及び契約心得」に示された暴力団排除に関する誓約事項について、誓約いたします。
J36: OP | K36: 上記に関して「入札及び契約心得」、「陸上自衛隊宮古島駐屯地オープンカウンター方式実施要項」及び「標準契約書等」の契約条項等を承諾のうえ見積りいたします。また、当社（私（個人の場合）、当団体（団体の場合））は「入札及び契約心得」に示された暴力団排除に関する誓約事項について誓約いたします。
B38: =契約内容!M4 -> 2026-02-20
B40: =基本情報!$B$6 -> 分任契約担当官
B41: =基本情報!$B$7 -> 陸上自衛隊宮古島駐屯地
B42: =基本情報!$B$8 & " 殿" -> 第４４４会計隊長 藤澤 竹広 殿
C43: 住 所
C44: 会 社 名
C45: 役 職 代 表 者 氏 名
C46: 担 当 者 氏 名
C47: 担当者電話番号

Sheet 見積書 (うち) (hidden)
B2: 入札書 | J2: 見積書
J3: 入札書
B4: 件名リスト一連番号 | C4: 114 | J4: 下見積書
B5: 契約実施計画番号 | C5: =契約内容!M1 -> 5S8P1KT02160 | D5: =契約内容!#REF! -> 
J6: =G29 -> 0 | K6: （消費税及び地方税を含まない。）
B7: =LEFT(B2,2)&"金額 ￥" -> 入札金額 ￥ | D7: （消費税及び地方税を含まない。） | J7: グループ別総額による | K7: （税込）
K8: ="税込（うち消費税 " & TEXT(C7-INT(C7*100/110),"#,#") & "円）" -> 税込（うち消費税 円）
B9: 品 名 | C9: 規 格 | D9: 単位 | E9: 数量 | F9: 単価 | G9: 金額 | J9: 数量
B10: =契約内容!D3 & " ほか " &J11 & "件 内訳書のとおり" -> オープン券（航空券） 宮古／石垣⇔九州内各空港 ほか 19件 内訳書のとおり | G10: =E10*F10 -> 0 | J10: 予定 数量
B11: 以下余白 | J11: 19 | K11: ←内訳の件数
B21: =契約内容!P14 -> 0 | C21: =契約内容!Q14 -> 0 | D21: =契約内容!R14 -> 0 | E21: =契約内容!S14 -> 0 | F21: =契約内容!T14 -> 0 | G21: =E21*F21 -> 0
B22: =契約内容!P15 -> 0 | C22: =契約内容!Q15 -> 0 | D22: =契約内容!R15 -> 0 | E22: =契約内容!S15 -> 0 | F22: =契約内容!T15 -> 0 | G22: 0
B23: =契約内容!P16 -> 0 | C23: =契約内容!Q16 -> 0 | D23: =契約内容!R16 -> 0 | E23: =契約内容!S16 -> 0 | F23: =契約内容!T16 -> 0 | G23: 0
B24: =契約内容!P17 -> 0 | C24: =契約内容!Q17 -> 0 | D24: =契約内容!R17 -> 0 | E24: =契約内容!S17 -> 0 | F24: =契約内容!T17 -> 0 | G24: 0
B25: =契約内容!P18 -> 0 | C25: =契約内容!Q18 -> 0 | D25: =契約内容!R18 -> 0 | E25: =契約内容!S18 -> 0 | F25: =契約内容!T18 -> 0 | G25: 0
B26: =契約内容!P19 -> 0 | C26: =契約内容!Q19 -> 0 | D26: =契約内容!R19 -> 0 | E26: =契約内容!S19 -> 0 | F26: =契約内容!T19 -> 0 | G26: 0
B27: =契約内容!P20 -> 0 | C27: =契約内容!Q20 -> 0 | D27: =契約内容!R20 -> 0 | E27: =契約内容!S20 -> 0 | F27: =契約内容!T20 -> 0 | G27: 0
B28: =契約内容!P21 -> 0 | C28: =契約内容!Q21 -> 0 | D28: =契約内容!R21 -> 0 | E28: =契約内容!S21 -> 0 | F28: =契約内容!T21 -> 0 | G28: 0
B29: 計 | G29: =SUM(G10:H18) -> 0
B30: 納入（履行）場所 | C30: =契約内容!M6 -> 陸上自衛隊 宮古島駐屯地 | D30: 納期（工期） | F30: =契約内容!M5 -> 2026-02-27 | G30: =契約内容!W6 -> 00:00:00 | H30: =契約内容!#REF! -> 
B31: 契約保証金 | C31: （免 除） | D31: 入札（見積）書有効期間
B32: 注文から納品にかかるおおよその日数：
B33: 上記に関して「入札及び契約心得」、「標準契約書等」の契約条項等を承諾の上、入札見積りいたします。また、当社（私（個人の場合）、当団体（団体の場合））は「入札及び契約心得」に示された暴力団排除に関する誓約事項について、誓約いたします。
J34: 随契 | K34: 上記に関して「入札及び契約心得」、「標準契約書等」の契約条項等を承諾の上、入札見積りいたします。また、当社（私（個人の場合）、当団体（団体の場合））は「入札及び契約心得」に示された暴力団排除に関する誓約事項について、誓約いたします。
J35: OP | K35: 上記に関して「入札及び契約心得」、「陸上自衛隊宮古島駐屯地オープンカウンター方式実施要項」及び「標準契約書等」の契約条項等を承諾のうえ見積りいたします。また、当社（私（個人の場合）、当団体（団体の場合））は「入札及び契約心得」に示された暴力団排除に関する誓約事項について誓約いたします。
B37: =契約内容!M4 -> 2026-02-20
B39: =基本情報!$B$6 -> 分任契約担当官
B40: =基本情報!$B$7 -> 陸上自衛隊宮古島駐屯地
B41: =基本情報!$B$8 & " 殿" -> 第４４４会計隊長 藤澤 竹広 殿
C42: 住 所 | E42: =基本情報!B11 -> 
C43: 会 社 名 | E43: =基本情報!B12 -> 
C44: 役 職 代 表 者 氏 名 | E44: =基本情報!B13 -> 
C45: 担 当 者 氏 名
C46: 担当者電話番号 | E46: =基本情報!B14 -> 

Sheet 市価
A2: 市場価格調書
J5: 令和８年２月18日
B7: =基本情報!$B$6 -> 分任契約担当官 | E7: 殿
B8: =基本情報!$B$7 -> 陸上自衛隊宮古島駐屯地
B9: =基本情報!$B$8 -> 第４４４会計隊長 藤澤 竹広
B11: ￥ | C11: =SUM(L27:L28) -> 0.-
H12: =入札書!D7 -> （消費税及び地方税を含まない。）
E14: 住 所
E16: 会社名
E18: 役 職
E20: 代表者氏名
E21: 担当者氏名
E22: 担当者電話番号
B23: 上記のとおり見積致します
B24: 内 訳
A26: № | B26: 品 目 | D26: 規 格 | F26: 単位 | I26: 数量 | J26: 単 価 | L26: 金 額 | N26: 摘 要
A27: 1 | B27: =契約内容!P3 -> オープン券（航空券） 宮古／石垣⇔九州内各空港 | D27: =契約内容!Q3 -> 仕様書のとおり | F27: =契約内容!R3 -> SH | I27: =契約内容!S3 -> 150 | J27: =契約内容!T3 -> 0 | L27: =I27*J27 -> 0
A28: 2 | B28: =契約内容!P4 -> 0 | D28: =契約内容!Q4 -> 以下余白 | F28: =契約内容!R4 -> 0 | I28: =契約内容!S4 -> 0 | J28: =契約内容!T4 -> 0 | L28: =I28*J28 -> 0
A29: 3 | B29: =契約内容!P5 -> 0 | D29: =契約内容!Q5 -> 0 | F29: =契約内容!R5 -> 0 | I29: =契約内容!S5 -> 0 | J29: =契約内容!T5 -> 0 | L29: =I29*J29 -> 0
A30: 4 | B30: =契約内容!P6 -> 0 | D30: =契約内容!Q6 -> 0 | F30: =契約内容!R6 -> 0 | I30: =契約内容!S6 -> 0 | J30: =契約内容!T6 -> 0 | L30: =I30*J30 -> 0
A31: 5 | B31: =契約内容!P7 -> 0 | D31: =契約内容!Q7 -> 0 | F31: =契約内容!R7 -> 0 | I31: =契約内容!S7 -> 0 | J31: =契約内容!T7 -> 0 | L31: 0
A32: 6 | B32: =契約内容!P8 -> 0 | D32: =契約内容!Q8 -> 0 | F32: =契約内容!R8 -> 0 | I32: =契約内容!S8 -> 0 | L32: 0
A33: 7 | B33: =契約内容!P9 -> 0 | D33: =契約内容!Q9 -> 0 | F33: =契約内容!R9 -> 0 | I33: =契約内容!S9 -> 0 | L33: 0
A34: 8 | B34: =契約内容!P10 -> 0 | D34: =契約内容!Q10 -> 0 | F34: =契約内容!R10 -> 0 | I34: =契約内容!S10 -> 0 | J34: =契約内容!T10 -> 0 | L34: 0
A35: 9 | B35: =契約内容!P11 -> 0 | D35: =契約内容!Q11 -> 0 | F35: =契約内容!R11 -> 0 | I35: =契約内容!S11 -> 0 | J35: =契約内容!T11 -> 0 | L35: 0
A36: 10 | B36: =契約内容!P12 -> 0 | D36: =契約内容!Q12 -> 0 | F36: =契約内容!R12 -> 0 | I36: =契約内容!S12 -> 0 | J36: =契約内容!T12 -> 0 | L36: 0
A37: 11 | B37: =契約内容!P13 -> 0 | D37: =契約内容!Q13 -> 0 | F37: =契約内容!R13 -> 0 | I37: =契約内容!S13 -> 0 | J37: =契約内容!T13 -> 0 | L37: 0
A38: 12 | B38: =契約内容!P14 -> 0 | D38: =契約内容!Q14 -> 0 | F38: =契約内容!R14 -> 0 | I38: =契約内容!S14 -> 0 | J38: =契約内容!T14 -> 0 | L38: 0
A39: 13 | B39: =契約内容!P15 -> 0 | D39: =契約内容!Q15 -> 0 | F39: =契約内容!R15 -> 0 | I39: =契約内容!S15 -> 0 | J39: =契約内容!T15 -> 0 | L39: 0
A40: 14 | B40: =契約内容!P16 -> 0 | D40: =契約内容!Q16 -> 0 | F40: =契約内容!R16 -> 0 | I40: =契約内容!S16 -> 0 | J40: =契約内容!T16 -> 0 | L40: 0
A41: 15 | B41: =契約内容!P17 -> 0 | D41: =契約内容!Q17 -> 0 | F41: =契約内容!R17 -> 0 | I41: =契約内容!S17 -> 0 | J41: =契約内容!T17 -> 0 | L41: 0
A42: 小計 | L42: =SUM(L27:L41) -> 0
A43: 消費税 | D43: 10% | L43: =INT(L42*D43) -> 0
A44: 合計 | L44: =L42+L43 -> 0 | Q44: 税抜
A45: 納地 | D45: =契約内容!M6 -> 陸上自衛隊 宮古島駐屯地 | Q45: ="税込 （うち消費税 " & TEXT(L44-INT(L44*100/110),"#,#") & "円）" -> 税込 （うち消費税 円）
A46: 注文から納品にかかるおおよその日数：
A47: 納期 | D47: =契約内容!M5 -> 2026-02-27
A48: 当社（当団体）は、入札心得に定める暴力団排除に関する事項について誓約いたします。

Sheet 市価 (うち) (hidden)
A2: 市場価格調書
J5: 令和８年２月17日
B7: =基本情報!$B$6 -> 分任契約担当官 | E7: 殿
B8: =基本情報!$B$7 -> 陸上自衛隊宮古島駐屯地
B9: =基本情報!$B$8 -> 第４４４会計隊長 藤澤 竹広
B11: 金￥ | C11: =L27 -> 0.-
H12: =入札書!D7 -> （消費税及び地方税を含まない。）
E14: 住 所 | H14: =基本情報!B11 -> 
E16: 会社名 | H16: =基本情報!B12 -> 
E18: 役 職 | H18: =基本情報!B13 -> 
E20: 代表者氏名
E21: 担当者氏名
E22: 担当者電話番号
B23: 上記のとおり見積致します
B24: 内 訳
A26: № | B26: 品 目 | D26: 規 格 | F26: 単位 | I26: 数量 | J26: 単 価 | L26: 金 額 | N26: 摘 要
A27: 1 | B27: ='見積書 (うち)'!B10 -> オープン券（航空券） 宮古／石垣⇔九州内各空港 ほか 19件 内訳書のとおり | L27: =I27*J27 -> 0
A28: 2 | B28: 以下余白
A29: 3
A30: 4
A31: 5
A32: 6
A33: 7
A34: 8
A35: 9
A36: 10
A37: 11
A38: 12
A39: 13
A40: 14
A41: 15
A42: 16
A43: 17
A44: 18
A45: 19
A46: 20
A47: 21 | B47: =契約内容!P23 -> 0 | D47: =契約内容!Q23 -> 0 | F47: =契約内容!R23 -> 0 | I47: =契約内容!S23 -> 0
A48: 22 | B48: =契約内容!P24 -> 0 | D48: =契約内容!Q24 -> 0 | F48: =契約内容!R24 -> 0 | I48: =契約内容!S24 -> 0
A49: 23 | B49: =契約内容!P25 -> 0 | D49: =契約内容!Q25 -> 0 | F49: =契約内容!R25 -> 0 | I49: =契約内容!S25 -> 0
A50: 小計 | L50: =SUM(L27:L49) -> 0
A51: 消費税 | D51: 10%
A52: 合計 | Q52: 税抜
A53: 納地 | D53: =契約内容!M6 -> 陸上自衛隊 宮古島駐屯地 | Q53: ="税込 （うち消費税 " & TEXT(L52-INT(L52*100/110),"#,#") & "円）" -> 税込 （うち消費税 円）
A54: 注文から納品にかかるおおよその日数：
A55: 納期 | D55: =契約内容!M5 -> 2026-02-27
A56: 当社（当団体）は、入札心得に定める暴力団排除に関する事項について誓約いたします。

Sheet 納品書 (業者) (hidden)
A1: 納 | B1: =IFERROR(契約内容!M6 &" " & R6,契約内容!M6) -> 陸上自衛隊 宮古島駐屯地 | G1: 納品書・（受領）検査調書
A2: 入
A3: 先 | R3: =MID(G5,2,3) -> 8LL
B4: 住所、会社名、代表者印 | G4: 調達要求番号 | I4: 発送年月日 | L4: 物品管理官命令印 | O4: 命令年月日 | R4: =MID(G5,7,1) -> 8 | S4: 部隊 | T4: 部課班
A5: 契 | G5: 58LL1A80093 | J5: ・ ・ ・ | O5: ・ ・ ・ | R5: =R3&R4 -> 8LL8 | S5: 8LL | T5: 1 | U5: =S5&T5 -> 8LL1 | V5: ７高群１科
B6: =入札書!E43 -> 0 | G6: 確認番号（認証番号） | I6: 輸送方法 | O6: 管理簿登記年月日 | R6: =VLOOKUP($R$5,$U:$V,2,FALSE) ->  | S6: 8LL | T6: 2 | U6: =S6&T6 -> 8LL2 | V6: ７高群４科
A7: 約 | G7: =契約内容!M2 -> 5S8P1KT216000 | O7: ・ ・ ・ | S7: 8LL | T7: 3 | U7: 8LL3 | V7: ７高群３科
B8: =入札書!E44 -> 0 | G8: 契約年月日 | I8: 発 送 駅 | O8: 証 書 番 号 | S8: 8LL | T8: 4 | U8: 8LL4 | V8: ７高群
A9: 者 | B9: =入札書!E45 -> 0 | G9: =契約内容!M4 -> 2026-02-20 | S9: 8LL | T9: 6 | U9: 8LL6 | V9: ７高群４科
B10: =入札書!E47 -> 0 | G10: 納 期 | I10: 分割納入 | O10: 同上付与年月日 | R10: 92S | S10: 8LL | T10: 7 | U10: 8LL7 | V10: ７高群４科
G11: =契約内容!M5 -> 2026-02-27 | R11: SY1 | S11: 92S | T11: 5 | U11: 92S5 | V11: 宮古警備隊 司令職務室
A12: 資 料 種 別 | C12: 相 手 方 番 号 | E12: 処 理 年 月 日 | G12: 物 品 区 分 | H12: 要 求 番 号 | J12: 証 書 番 号 | L12: 納 期 | N12: 分 納 区 分 | O12: 備 考 | S12: 92S | T12: 6 | U12: 92S6 | V12: 宮古警備隊 第１科
E13: ・ ・ ・ | L13: ・ ・ ・ | N13: 1.2.3.X | S13: 92S | T13: 7 | U13: 92S7 | V13: 宮古警備隊 第３科
A14: 番 号 | B14: 物 品 番 号 | D14: 品 名 | F14: 会 社 部 品 番 号 又 は 規 格 | I14: 程度 | J14: 数 量 | K14: 単位 | L14: 単 価 | M14: 金 額 | O14: 受領数量 | P14: 処置コード | Q14: 参照番号↓ | S14: 92S | T14: 8 | U14: 92S8 | V14: 宮古警備隊 第４科
A15: 1 | D15: =VLOOKUP(Q15,契約内容!$O:$U,2,FALSE) -> オープン券（航空券） 宮古／石垣⇔九州内各空港 | F15: =VLOOKUP(Q15,契約内容!$O:$U,3,FALSE) -> 仕様書のとおり | J15: =VLOOKUP(Q15,契約内容!$O:$U,5,FALSE) -> 150 | K15: =VLOOKUP(Q15,契約内容!$O:$U,4,FALSE) -> SH | L15: =VLOOKUP(Q15,契約内容!$O:$U,6,FALSE) -> 0 | M15: =IFERROR(J15*L15,"") -> 0 | Q15: 1 | S15: SY1 | T15: 0 | U15: SY10 | V15: 業務隊 補給科
A16: 2 | D16: =VLOOKUP(Q16,契約内容!$O:$U,2,FALSE) -> 0 | F16: =VLOOKUP(Q16,契約内容!$O:$U,3,FALSE) -> 以下余白 | J16: =VLOOKUP(Q16,契約内容!$O:$U,5,FALSE) -> 0 | K16: =VLOOKUP(Q16,契約内容!$O:$U,4,FALSE) -> 0 | L16: =VLOOKUP(Q16,契約内容!$O:$U,6,FALSE) -> 0 | M16: =IFERROR(J16*L16,"") -> 0 | Q16: 2 | S16: SY1 | T16: 1 | U16: =S16&T16 -> SY11 | V16: 業務隊 総務科
D17: =VLOOKUP(Q17,契約内容!$O:$U,2,FALSE) -> 0 | F17: =VLOOKUP(Q17,契約内容!$O:$U,3,FALSE) -> 0 | J17: =VLOOKUP(Q17,契約内容!$O:$U,5,FALSE) -> 0 | K17: =VLOOKUP(Q17,契約内容!$O:$U,4,FALSE) -> 0 | L17: =VLOOKUP(Q17,契約内容!$O:$U,6,FALSE) -> 0 | M17: 0 | Q17: 3 | S17: SY1 | T17: 4 | U17: SY14 | V17: 業務隊 補給科糧食班
D18: =VLOOKUP(Q18,契約内容!$O:$U,2,FALSE) -> 0 | F18: =VLOOKUP(Q18,契約内容!$O:$U,3,FALSE) -> 0 | J18: =VLOOKUP(Q18,契約内容!$O:$U,5,FALSE) -> 0 | K18: =VLOOKUP(Q18,契約内容!$O:$U,4,FALSE) -> 0 | L18: =VLOOKUP(Q18,契約内容!$O:$U,6,FALSE) -> 0 | M18: 0 | Q18: 4 | S18: SY1 | T18: 5 | U18: SY15 | V18: 業務隊 厚生科
D19: =VLOOKUP(Q19,契約内容!$O:$U,2,FALSE) -> 0 | F19: =VLOOKUP(Q19,契約内容!$O:$U,3,FALSE) -> 0 | J19: =VLOOKUP(Q19,契約内容!$O:$U,5,FALSE) -> 0 | K19: =VLOOKUP(Q19,契約内容!$O:$U,4,FALSE) -> 0 | L19: =VLOOKUP(Q19,契約内容!$O:$U,6,FALSE) -> 0 | M19: 0 | Q19: 5 | S19: SY1 | T19: 6 | U19: SY16 | V19: 業務隊 衛生科
D20: =VLOOKUP(Q20,契約内容!$O:$U,2,FALSE) -> 0 | F20: =VLOOKUP(Q20,契約内容!$O:$U,3,FALSE) -> 0 | J20: =VLOOKUP(Q20,契約内容!$O:$U,5,FALSE) -> 0 | K20: =VLOOKUP(Q20,契約内容!$O:$U,4,FALSE) -> 0 | L20: =VLOOKUP(Q20,契約内容!$O:$U,6,FALSE) -> 0 | M20: 0 | Q20: 50 | S20: SY1 | T20: 7 | U20: SY17 | V20: 業務隊 管理科営繕班
D21: =VLOOKUP(Q21,契約内容!$O:$U,2,FALSE) -> 0 | F21: =VLOOKUP(Q21,契約内容!$O:$U,3,FALSE) -> 0 | J21: =VLOOKUP(Q21,契約内容!$O:$U,5,FALSE) -> 0 | K21: =VLOOKUP(Q21,契約内容!$O:$U,4,FALSE) -> 0 | L21: =VLOOKUP(Q21,契約内容!$O:$U,6,FALSE) -> 0 | M21: 0 | Q21: 50 | S21: SY1 | T21: 8 | U21: SY18 | V21: 業務隊 管理科輸送班
D22: =VLOOKUP(Q22,契約内容!$O:$U,2,FALSE) -> 0 | F22: =VLOOKUP(Q22,契約内容!$O:$U,3,FALSE) -> 0 | J22: =VLOOKUP(Q22,契約内容!$O:$U,5,FALSE) -> 0 | K22: =VLOOKUP(Q22,契約内容!$O:$U,4,FALSE) -> 0 | L22: =VLOOKUP(Q22,契約内容!$O:$U,6,FALSE) -> 0 | M22: 0 | Q22: 50 | S22: SY1 | T22: M | U22: SY1M | V22: 会計隊
D23: =VLOOKUP(Q23,契約内容!$O:$U,2,FALSE) -> 0 | F23: =VLOOKUP(Q23,契約内容!$O:$U,3,FALSE) -> 0 | J23: =VLOOKUP(Q23,契約内容!$O:$U,5,FALSE) -> 0 | K23: =VLOOKUP(Q23,契約内容!$O:$U,4,FALSE) -> 0 | L23: =VLOOKUP(Q23,契約内容!$O:$U,6,FALSE) -> 0 | M23: 0 | Q23: 50
D24: =VLOOKUP(Q24,契約内容!$O:$U,2,FALSE) -> 0 | F24: =VLOOKUP(Q24,契約内容!$O:$U,3,FALSE) -> 0 | J24: =VLOOKUP(Q24,契約内容!$O:$U,5,FALSE) -> 0 | K24: =VLOOKUP(Q24,契約内容!$O:$U,4,FALSE) -> 0 | L24: =VLOOKUP(Q24,契約内容!$O:$U,6,FALSE) -> 0 | M24: 0 | Q24: 50
L25: 計 | M25: =SUM(M15:N24) -> 0
B26: 指令番号 | D26: 方式 | E26: 納入年月日 | G26: 判定 | J26: 検査結果及び物品管理官の受入命令（受領命令）により受領した。
E27: ･ ･ ･ | I27: 受
B28: 種類 | D28: 場所 | E28: 検査年月日 | G28: 所見 | I28: 入 | J28: 令和 年 月 日
A29: 検 | E29: ･ ･ ･ | I29: ・
B30: 上記のとおり検査結果を報告する。 | I30: 受 | K30: 受領者
B31: 令和 年 月 日 | I31: 領
B32: 検査官 | K32: 所 属
A33: 査 | B33: 所 属 | K33: 官職氏名
B34: 官職氏名

Sheet 納品書（内訳） (hidden)
D1: 入力データ | L1: 実計 | M1: 5S8P10501070 | P1: 内訳書
C2: № | D2: 品 名 | E2: 規 格 | F2: 単位 | G2: 数量 | H2: 単価 | I2: 金額 | J2: 要求書 | L2: 契約番号 | M2: =LEFT(M1,7)&MID(M1,9,3)& "000" -> 5S8P105107000 | N2: 参照 | O2: № | P2: 品名 | Q2: 規格 | R2: 単位 | S2: 数量 | T2: 単価 | U2: 金額 | V2: 受領 数量
A3: 本官 | C3: 1 | L3: 要求番号 | M3: =J3 -> 0 | N3: 1 | O3: 1 | P3: =VLOOKUP(N3,$C:$J,2,FALSE) -> 0 | Q3: =VLOOKUP(N3,$C:$J,3,FALSE) -> 0 | R3: =VLOOKUP(N3,$C:$J,4,FALSE) -> 0 | S3: =VLOOKUP(N3,$C:$J,5,FALSE) -> 0 | T3: =VLOOKUP(N3,$C:$J,6,FALSE) -> 0 | U3: =S3*T3 -> 0
A4: 代理官 | C4: 2 | L4: 契約年月日 | M4: 2025-10-29 | N4: 2 | O4: 2 | P4: 0 | Q4: 0 | R4: 0 | S4: 0 | T4: 0 | U4: =S4*T4 -> 0
C5: 3 | L5: 履行期限 | M5: 2025-12-15 | N5: 3 | O5: 3 | P5: 0 | Q5: 0 | R5: 0 | S5: 0 | T5: 0 | U5: 0
C6: 4 | L6: 履行場所 | M6: 宮古島駐屯地 | N6: 4 | O6: 4 | P6: 0 | Q6: 0 | R6: 0 | S6: 0 | T6: 0 | U6: 0
C7: 5 | L7: 本官情報 | M7: 本官 | N7: 5 | O7: 5 | P7: 0 | Q7: 0 | R7: 0 | S7: 0 | T7: 0 | U7: 0
C8: 6 | N8: 6 | O8: 6 | P8: 0 | Q8: 0 | R8: 0 | S8: 0 | T8: 0 | U8: 0
C9: 7 | L9: 業者名 | M9: =業者一覧!A1 ->  | N9: 7 | O9: 7 | P9: 0 | Q9: 0 | R9: 0 | S9: 0 | T9: 0 | U9: 0
C10: 8 | N10: 8 | O10: 8 | P10: 0 | Q10: 0 | R10: 0 | S10: 0 | T10: 0 | U10: 0
C11: 9 | N11: 9 | O11: 9 | P11: 0 | Q11: 0 | R11: 0 | S11: 0 | T11: 0 | U11: 0
C12: 10 | N12: 10 | O12: 10 | P12: 0 | Q12: 0 | R12: 0 | S12: 0 | T12: 0 | U12: 0
C13: 11 | N13: 11 | O13: 11 | P13: 0 | Q13: 0 | R13: 0 | S13: 0 | T13: 0 | U13: 0
C14: 12 | N14: 12 | O14: 12 | P14: 0 | Q14: 0 | R14: 0 | S14: 0 | T14: 0 | U14: 0
C15: 13 | N15: 13 | O15: 13 | P15: 0 | Q15: 0 | R15: 0 | S15: 0 | T15: 0 | U15: 0
C16: 14 | N16: 14 | O16: 14 | P16: 0 | Q16: 0 | R16: 0 | S16: 0 | T16: 0 | U16: 0
C17: 15 | N17: 15 | O17: 15 | P17: 0 | Q17: 0 | R17: 0 | S17: 0 | T17: 0 | U17: 0
C18: 16 | N18: 16 | O18: 16 | P18: 0 | Q18: 0 | R18: 0 | S18: 0 | T18: 0 | U18: 0
C19: 17 | N19: 17 | O19: 17 | P19: 0 | Q19: 0 | R19: 0 | S19: 0 | T19: 0 | U19: 0
C20: 18 | N20: 18 | O20: 18 | P20: 0 | Q20: 0 | R20: 0 | S20: 0 | T20: 0 | U20: 0
C21: 19 | N21: 19 | O21: 19 | P21: 0 | Q21: 0 | R21: 0 | S21: 0 | T21: 0 | U21: 0
C22: 20 | N22: 20 | O22: 20 | P22: 0 | Q22: 0 | R22: 0 | S22: 0 | T22: 0 | U22: 0
C23: 21 | N23: 21 | O23: 21 | P23: 0 | Q23: 0 | R23: 0 | S23: 0 | T23: 0 | U23: 0
C24: 22 | N24: 22 | O24: 22 | P24: 0 | Q24: 0 | R24: 0 | S24: 0 | T24: 0 | U24: 0
C25: 23 | N25: 23 | O25: 23 | P25: 0 | Q25: 0 | R25: 0 | S25: 0 | T25: 0 | U25: 0
C26: 24 | N26: 24 | O26: 24 | P26: 0 | Q26: 0 | R26: 0 | S26: 0 | T26: 0 | U26: 0
C27: 25 | N27: 25 | O27: 25 | P27: 0 | Q27: 0 | R27: 0 | S27: 0 | T27: 0 | U27: 0
C28: 26 | N28: 26 | O28: 26 | P28: 0 | Q28: 0 | R28: 0 | S28: 0 | T28: 0
C29: 27 | N29: 27 | O29: 27 | P29: 0 | Q29: 0 | R29: 0 | S29: 0 | T29: 0
C30: 28 | N30: 28 | O30: 28 | P30: 0 | Q30: 0 | R30: 0 | S30: 0 | T30: 0
C31: 29 | N31: 29 | O31: 29 | P31: 0 | Q31: 0 | R31: 0 | S31: 0 | T31: 0
C32: 30 | N32: 30 | O32: 30 | P32: 0 | Q32: 0 | R32: 0 | S32: 0 | T32: 0
P33: 小計
C34: 31 | N34: 31 | O34: 31 | P34: =VLOOKUP(N34,$C:$J,2,FALSE) -> 0 | Q34: =VLOOKUP(N34,$C:$J,3,FALSE) -> 0 | R34: =VLOOKUP(N34,$C:$J,4,FALSE) -> 0 | S34: =VLOOKUP(N34,$C:$J,5,FALSE) -> 0 | T34: =VLOOKUP(N34,$C:$J,6,FALSE) -> 0
C35: 32 | N35: 32 | O35: 32 | P35: 0 | Q35: 0 | R35: 0 | S35: 0 | T35: =VLOOKUP(N35,$C:$J,6,FALSE) -> 0
C36: 33 | N36: 33 | O36: 33 | P36: 0 | Q36: 0 | R36: 0 | S36: 0 | T36: =VLOOKUP(N36,$C:$J,6,FALSE) -> 0
C37: 34 | N37: 34 | O37: 34 | P37: 0 | Q37: 0 | R37: 0 | S37: 0 | T37: =VLOOKUP(N37,$C:$J,6,FALSE) -> 0
C38: 35 | N38: 35 | O38: 35 | P38: 0 | Q38: 0 | R38: 0 | S38: 0
C39: 36 | N39: 36 | O39: 36 | P39: 0 | Q39: 0 | R39: 0 | S39: 0
C40: 37 | N40: 37 | O40: 37 | P40: 0 | Q40: 0 | R40: 0 | S40: 0
C41: 38 | N41: 38 | O41: 38 | P41: 0 | Q41: 0 | R41: 0 | S41: 0
C42: 39 | N42: 39 | O42: 39 | P42: 0 | Q42: 0 | R42: 0 | S42: 0
C43: 40 | N43: 40 | O43: 40 | P43: 0 | Q43: 0 | R43: 0 | S43: 0
C44: 41 | N44: 41 | O44: 41 | P44: 0 | Q44: 0 | R44: 0 | S44: 0
C45: 42 | N45: 42 | O45: 42 | P45: 0 | Q45: 0 | R45: 0 | S45: 0
C46: 43 | N46: 43 | O46: 43 | P46: 0 | Q46: 0 | R46: 0 | S46: 0
C47: 44 | N47: 44 | O47: 44 | P47: 0 | Q47: 0 | R47: 0 | S47: 0
C48: 45 | N48: 45 | O48: 45 | P48: 0 | Q48: 0 | R48: 0 | S48: 0
C49: 46 | N49: 46 | O49: 46 | P49: 0 | Q49: 0 | R49: 0 | S49: 0
C50: 47 | N50: 47 | O50: 47 | P50: 0 | Q50: 0 | R50: 0 | S50: 0
C51: 48 | N51: 48 | O51: 48 | P51: 0 | Q51: 0 | R51: 0 | S51: 0
C52: 49 | N52: 49 | O52: 49 | P52: 0 | Q52: 0 | R52: 0 | S52: 0
C53: 50 | N53: 50 | O53: 50 | P53: 0 | Q53: 0 | R53: 0 | S53: 0
C54: 51 | N54: 51 | O54: 51 | P54: 0 | Q54: 0 | R54: 0 | S54: 0
C55: 52 | N55: 52 | O55: 52 | P55: 0 | Q55: 0 | R55: 0 | S55: 0
C56: 53 | N56: 53 | O56: 53 | P56: 0 | Q56: 0 | R56: 0 | S56: 0
C57: 54 | N57: 54 | O57: 54 | P57: 0 | Q57: 0 | R57: 0 | S57: 0
C58: 55 | N58: 55 | O58: 55 | P58: 0 | Q58: 0 | R58: 0 | S58: 0
C59: 56 | N59: 56 | O59: 56 | P59: 0 | Q59: 0 | R59: 0 | S59: 0
C60: 57 | N60: 57 | O60: 57 | P60: 0 | Q60: 0 | R60: 0 | S60: 0
C61: 58 | N61: 58 | O61: 58 | P61: 0 | Q61: 0 | R61: 0 | S61: 0
C62: 59 | N62: 59 | O62: 59 | P62: 0 | Q62: 0 | R62: 0 | S62: 0
C63: 60 | N63: 60 | O63: 60 | P63: 0 | Q63: 0 | R63: 0 | S63: 0
P64: 小計
C65: 61 | N65: 61 | O65: 61 | P65: =VLOOKUP(N65,$C:$J,2,FALSE) -> 0 | Q65: =VLOOKUP(N65,$C:$J,3,FALSE) -> 0 | R65: =VLOOKUP(N65,$C:$J,4,FALSE) -> 0 | S65: =VLOOKUP(N65,$C:$J,5,FALSE) -> 0
C66: 62 | M66: 498 | N66: 62 | O66: 62 | P66: 0 | Q66: 0 | R66: 0 | S66: 0
C67: 63 | N67: 63 | O67: 63 | P67: 0 | Q67: 0 | R67: 0 | S67: 0
C68: 64 | N68: 64 | O68: 64 | P68: 0 | Q68: 0 | R68: 0 | S68: 0
C69: 65 | N69: 65 | O69: 65 | P69: 0 | Q69: 0 | R69: 0 | S69: 0
C70: 66 | N70: 66 | O70: 66 | P70: 0 | Q70: 0 | R70: 0 | S70: 0
C71: 67 | N71: 67 | O71: 67 | P71: 0 | Q71: 0 | R71: 0 | S71: 0
C72: 68 | I72: =G72*H72 -> 0 | N72: 68 | O72: 68 | P72: 0 | Q72: 0 | R72: 0 | S72: 0
C73: 69 | I73: 0 | N73: 69 | O73: 69 | P73: 0 | Q73: 0 | R73: 0 | S73: 0
C74: 70 | I74: 0 | N74: 70 | O74: 70 | P74: 0 | Q74: 0 | R74: 0 | S74: 0
C75: 71 | I75: 0 | N75: 71 | O75: 71 | P75: 0 | Q75: 0 | R75: 0 | S75: 0
C76: 72 | I76: 0 | N76: 72 | O76: 72 | P76: 0 | Q76: 0 | R76: 0 | S76: 0
C77: 73 | I77: 0 | N77: 73 | O77: 73 | P77: 0 | Q77: 0 | R77: 0 | S77: 0
C78: 74 | I78: 0 | N78: 74 | O78: 74 | P78: 0 | Q78: 0 | R78: 0 | S78: 0
C79: 75 | I79: 0 | N79: 75 | O79: 75 | P79: 0 | Q79: 0 | R79: 0 | S79: 0
C80: 76 | I80: 0 | N80: 76 | O80: 76 | P80: 0 | Q80: 0 | R80: 0 | S80: 0
C81: 77 | I81: 0 | N81: 77 | O81: 77 | P81: 0 | Q81: 0 | R81: 0 | S81: 0
C82: 78 | I82: 0 | N82: 78 | O82: 78 | P82: 0 | Q82: 0 | R82: 0 | S82: 0
C83: 79 | I83: 0 | N83: 79 | O83: 79 | P83: 0 | Q83: 0 | R83: 0 | S83: 0
C84: 80 | I84: 0 | N84: 80 | O84: 80 | P84: 0 | Q84: 0 | R84: 0 | S84: 0
C85: 81 | I85: 0 | N85: 81 | O85: 81 | P85: 0 | Q85: 0 | R85: 0 | S85: 0
C86: 82 | I86: 0 | N86: 82 | O86: 82 | P86: 0 | Q86: 0 | R86: 0 | S86: 0
C87: 83 | I87: 0 | N87: 83 | O87: 83 | P87: 0 | Q87: 0 | R87: 0 | S87: 0
C88: 84 | I88: 0 | N88: 84 | O88: 84 | P88: 0 | Q88: 0 | R88: 0 | S88: 0
C89: 85 | I89: 0 | N89: 85 | O89: 85 | P89: 0 | Q89: 0 | R89: 0 | S89: 0
C90: 86 | I90: 0 | N90: 86 | O90: 86 | P90: 0 | Q90: 0 | R90: 0 | S90: 0
C91: 87 | I91: 0 | N91: 87 | O91: 87 | P91: 0 | Q91: 0 | R91: 0 | S91: 0
C92: 88 | I92: 0 | N92: 88 | O92: 88 | P92: 0 | Q92: 0 | R92: 0 | S92: 0
C93: 89 | I93: 0 | N93: 89 | O93: 89 | P93: 0 | Q93: 0 | R93: 0 | S93: 0
C94: 90 | I94: 0 | N94: 90 | O94: 90 | P94: 0 | Q94: 0 | R94: 0 | S94: 0
C95: 91 | I95: 0 | N95: 91 | O95: 91 | P95: 0 | Q95: 0 | R95: 0 | S95: 0
C96: 92 | I96: 0 | N96: 92 | O96: 92 | P96: 0 | Q96: 0 | R96: 0 | S96: 0
C97: 93 | I97: 0 | M97: 498 | N97: 93 | P97: 小計 | Q97: 0 | R97: 0 | S97: 0
C98: 94 | I98: 0 | N98: 94 | O98: 91 | P98: =VLOOKUP(N98,$C:$J,2,FALSE) -> 0 | Q98: 0 | R98: 0 | S98: 0
C99: 95 | I99: 0 | N99: 95 | O99: 92 | P99: 0 | Q99: 0 | R99: 0 | S99: 0
C100: 96 | I100: 0 | N100: 96 | O100: 93 | P100: 0 | Q100: 0 | R100: 0 | S100: 0
C101: 97 | I101: 0 | N101: 97 | O101: 94 | P101: 0 | Q101: 0 | R101: 0 | S101: 0
C102: 98 | I102: 0 | N102: 98 | O102: 95 | P102: 0 | Q102: 0 | R102: 0 | S102: 0
C103: 99 | I103: 0 | N103: 99 | O103: 96 | P103: 0 | Q103: 0 | R103: 0 | S103: 0
C104: 100 | I104: 0 | N104: 100 | O104: 97 | P104: 0 | Q104: 0 | R104: 0 | S104: 0
C105: 101 | I105: 0 | N105: 101 | O105: 98 | P105: 0 | Q105: 0 | R105: 0 | S105: 0
C106: 102 | I106: 0 | N106: 102 | O106: 99 | P106: 0 | Q106: 0 | R106: 0 | S106: 0
C107: 103 | I107: 0 | N107: 103 | O107: 100 | P107: 0 | Q107: 0 | R107: 0 | S107: 0
C108: 104 | I108: 0 | N108: 104 | O108: 101 | P108: 0 | Q108: 0 | R108: 0 | S108: 0
C109: 105 | I109: 0 | N109: 105 | O109: 102 | P109: 0 | Q109: 0 | R109: 0 | S109: 0
C110: 106 | I110: 0 | N110: 106 | O110: 103 | P110: 0 | Q110: 0 | R110: 0 | S110: 0
C111: 107 | I111: 0 | N111: 107 | O111: 104 | P111: 0 | Q111: 0 | R111: 0 | S111: 0
C112: 108 | I112: 0 | N112: 108 | O112: 105 | P112: 0 | Q112: 0 | R112: 0 | S112: 0
C113: 109 | I113: 0 | N113: 109 | O113: 106 | P113: 0 | Q113: 0 | R113: 0 | S113: 0
C114: 110 | I114: 0 | N114: 110 | O114: 107 | P114: 0 | Q114: 0 | R114: 0 | S114: 0
C115: 111 | I115: 0 | N115: 111 | O115: 108 | P115: 0 | Q115: 0 | R115: 0 | S115: 0
C116: 112 | I116: 0 | N116: 112 | O116: 109 | P116: 0 | Q116: 0 | R116: 0 | S116: 0
C117: 113 | I117: 0 | N117: 113 | O117: 110 | P117: 0 | Q117: 0 | R117: 0 | S117: 0
C118: 114 | I118: 0 | N118: 114 | O118: 111 | P118: 0 | Q118: 0 | R118: 0 | S118: 0
C119: 115 | I119: 0 | N119: 115 | O119: 112 | P119: 0 | Q119: 0 | R119: 0 | S119: 0
C120: 116 | I120: 0 | N120: 116 | O120: 113 | P120: 0 | Q120: 0 | R120: 0 | S120: 0
C121: 117 | I121: 0 | N121: 117 | O121: 114 | P121: 0 | Q121: 0 | R121: 0 | S121: 0
C122: 118 | I122: 0 | N122: 118 | O122: 115 | P122: 0 | Q122: 0 | R122: 0 | S122: 0
C123: 119 | I123: 0 | N123: 119 | O123: 116 | P123: 0 | Q123: 0 | R123: 0 | S123: 0
C124: 120 | I124: 0 | N124: 120 | O124: 117 | P124: 0 | Q124: 0 | R124: 0 | S124: 0
C125: 121 | I125: 0 | N125: 121 | O125: 118 | P125: 0 | Q125: 0 | R125: 0 | S125: 0
C126: 122 | I126: 0 | N126: 122 | O126: 119 | P126: 0 | Q126: 0 | R126: 0 | S126: 0
C127: 123 | I127: 0 | M127: ここまで設定済み→ | N127: 123 | O127: 120 | Q127: 0 | R127: 0 | S127: 0
C128: 124 | I128: 0 | N128: 124 | P128: 小計 | Q128: 0 | R128: 0 | S128: 0
C129: 125 | I129: 0 | N129: 125 | O129: 121 | P129: =VLOOKUP(N129,$C:$J,2,FALSE) -> 0 | Q129: =VLOOKUP(N129,$C:$J,3,FALSE) -> 0 | R129: =VLOOKUP(N129,$C:$J,4,FALSE) -> 0 | S129: =VLOOKUP(N129,$C:$J,5,FALSE) -> 0
C130: 126 | I130: 0 | N130: 126 | O130: 122 | P130: 0 | Q130: 0 | R130: 0 | S130: 0
C131: 127 | I131: 0 | N131: 127 | O131: 123 | P131: 0 | Q131: 0 | R131: 0 | S131: 0
C132: 128 | I132: 0 | N132: 128 | O132: 124 | P132: 0 | Q132: 0 | R132: 0 | S132: 0
C133: 129 | I133: 0 | N133: 129 | O133: 125 | P133: 0 | Q133: 0 | R133: 0 | S133: 0
C134: 130 | I134: 0 | N134: 130 | O134: 126 | P134: 0 | Q134: 0 | R134: 0 | S134: 0
C135: 131 | I135: 0 | N135: 131 | O135: 127 | P135: 0 | Q135: 0 | R135: 0 | S135: 0
C136: 132 | I136: =G136*H136 -> 0 | N136: 132 | O136: 128 | P136: 0 | Q136: 0 | R136: 0 | S136: 0
C137: 133 | I137: 0 | N137: 133 | O137: 129 | P137: 0 | Q137: 0 | R137: 0 | S137: 0
C138: 134 | I138: 0 | N138: 134 | O138: 130 | P138: 0 | Q138: 0 | R138: 0 | S138: 0
C139: 135 | I139: 0 | N139: 135 | O139: 131 | P139: 0 | Q139: 0 | R139: 0 | S139: 0
C140: 136 | I140: 0 | N140: 136 | O140: 132 | P140: 0 | Q140: 0 | R140: 0 | S140: 0
C141: 137 | I141: 0 | N141: 137 | O141: 133 | P141: 0 | Q141: 0 | R141: 0 | S141: 0
C142: 138 | I142: 0 | N142: 138 | O142: 134 | P142: 0 | Q142: 0 | R142: 0 | S142: 0
C143: 139 | I143: 0 | N143: 139 | O143: 135 | P143: 0 | Q143: 0 | R143: 0 | S143: 0
C144: 140 | I144: 0 | N144: 140 | O144: 136 | P144: 0 | Q144: 0 | R144: 0 | S144: 0
C145: 141 | I145: 0 | N145: 141 | O145: 137 | P145: 0 | Q145: 0 | R145: 0 | S145: 0
C146: 142 | I146: 0 | N146: 142 | O146: 138 | P146: 0 | Q146: 0 | R146: 0 | S146: 0
C147: 143 | I147: 0 | N147: 143 | O147: 139 | P147: 0 | Q147: 0 | R147: 0 | S147: 0
C148: 144 | I148: 0 | N148: 144 | O148: 140 | P148: 0 | Q148: 0 | R148: 0 | S148: 0
C149: 145 | I149: 0 | N149: 145 | O149: 141 | P149: 0 | Q149: 0 | R149: 0 | S149: 0
C150: 146 | I150: 0 | N150: 146 | O150: 142 | P150: 0 | Q150: 0 | R150: 0 | S150: 0
C151: 147 | I151: 0 | N151: 147 | O151: 143 | P151: 0 | Q151: 0 | R151: 0 | S151: 0
C152: 148 | I152: 0 | N152: 148 | O152: 144 | P152: 0 | Q152: 0 | R152: 0 | S152: 0
C153: 149 | I153: 0 | N153: 149 | O153: 145 | P153: 0 | Q153: 0 | R153: 0 | S153: 0
C154: 150 | I154: 0 | N154: 150 | O154: 146 | P154: 0 | Q154: 0 | R154: 0 | S154: 0
C155: 151 | I155: 0 | N155: 151 | O155: 147 | P155: 0 | Q155: 0 | R155: 0 | S155: 0
C156: 152 | I156: 0 | N156: 152 | O156: 148 | P156: 0 | Q156: 0 | R156: 0 | S156: 0
C157: 153 | I157: 0 | N157: 153 | O157: 149 | P157: 0 | Q157: 0 | R157: 0 | S157: 0
C158: 154 | I158: 0 | N158: 154 | O158: 150 | P158: 0 | Q158: 0 | R158: 0 | S158: 0
P159: 小計
C160: 155 | I160: 0 | N160: 155 | O160: 151 | P160: =VLOOKUP(N160,$C:$J,2,FALSE) -> 0 | Q160: =VLOOKUP(N160,$C:$J,3,FALSE) -> 0 | R160: =VLOOKUP(N160,$C:$J,4,FALSE) -> 0 | S160: =VLOOKUP(N160,$C:$J,5,FALSE) -> 0
C161: 156 | I161: 0 | N161: 156 | O161: 152 | P161: 0 | Q161: 0 | R161: 0 | S161: 0
C162: 157 | I162: 0 | N162: 157 | O162: 153 | P162: 0 | Q162: 0 | R162: 0 | S162: 0
C163: 158 | I163: 0 | N163: 158 | O163: 154 | P163: 0 | Q163: 0 | R163: 0 | S163: 0
C164: 159 | I164: 0 | N164: 159 | O164: 155 | P164: 0 | Q164: 0 | R164: 0 | S164: 0
C165: 160 | I165: 0 | N165: 160 | O165: 156 | P165: 0 | Q165: 0 | R165: 0 | S165: 0
C166: 161 | I166: 0 | N166: 161 | O166: 157 | P166: 0 | Q166: 0 | R166: 0 | S166: 0
C167: 162 | I167: 0 | N167: 162 | O167: 158 | P167: 0 | Q167: 0 | R167: 0 | S167: 0
C168: 163 | I168: 0 | N168: 163 | O168: 159 | P168: 0 | Q168: 0 | R168: 0 | S168: 0
C169: 164 | I169: 0 | N169: 164 | O169: 160 | P169: 0 | Q169: 0 | R169: 0 | S169: 0
C170: 165 | I170: 0 | N170: 165 | O170: 161 | P170: 0 | Q170: 0 | R170: 0 | S170: 0
C171: 166 | I171: 0 | N171: 166 | O171: 162 | P171: 0 | Q171: 0 | R171: 0 | S171: 0
C172: 167 | I172: 0 | N172: 167 | O172: 163 | P172: 0 | Q172: 0 | R172: 0 | S172: 0
C173: 168 | I173: 0 | N173: 168 | O173: 164 | P173: 0 | Q173: 0 | R173: 0 | S173: 0
C174: 169 | I174: 0 | N174: 169 | O174: 165 | P174: 0 | Q174: 0 | R174: 0 | S174: 0
C175: 170 | I175: 0 | N175: 170 | O175: 166 | P175: 0 | Q175: 0 | R175: 0 | S175: 0
C176: 171 | I176: 0 | N176: 171 | O176: 167 | P176: 0 | Q176: 0 | R176: 0 | S176: 0
C177: 172 | I177: 0 | N177: 172 | O177: 168 | P177: 0 | Q177: 0 | R177: 0 | S177: 0
C178: 173 | I178: 0 | N178: 173 | O178: 169 | P178: 0 | Q178: 0 | R178: 0 | S178: 0
C179: 174 | I179: 0 | N179: 174 | O179: 170 | P179: 0 | Q179: 0 | R179: 0 | S179: 0
C180: 175 | I180: 0 | N180: 175 | O180: 171 | P180: 0 | Q180: 0 | R180: 0 | S180: 0
C181: 176 | I181: 0 | N181: 176 | O181: 172 | P181: 0 | Q181: 0 | R181: 0 | S181: 0
C182: 177 | I182: 0 | N182: 177 | O182: 173 | P182: 0 | Q182: 0 | R182: 0 | S182: 0
C183: 178 | I183: 0 | N183: 178 | O183: 174 | P183: 0 | Q183: 0 | R183: 0 | S183: 0
C184: 179 | I184: 0 | N184: 179 | O184: 175 | P184: 0 | Q184: 0 | R184: 0 | S184: 0
C185: 180 | I185: 0 | N185: 180 | O185: 176 | P185: 0 | Q185: 0 | R185: 0 | S185: 0
C186: 181 | I186: 0 | N186: 181 | O186: 177 | P186: 0 | Q186: 0 | R186: 0 | S186: 0
C187: 182 | I187: 0 | N187: 182 | O187: 178 | P187: 0 | Q187: 0 | R187: 0 | S187: 0
C188: 183 | I188: 0 | N188: 183 | O188: 179 | P188: 0 | Q188: 0 | R188: 0 | S188: 0
C189: 184 | I189: 0 | N189: 184 | O189: 180 | P189: 0 | Q189: 0 | R189: 0 | S189: 0
P190: 小計
C191: 185 | I191: 0 | N191: 185 | O191: 181 | P191: =VLOOKUP(N191,$C:$J,2,FALSE) -> 0 | Q191: =VLOOKUP(N191,$C:$J,3,FALSE) -> 0 | R191: =VLOOKUP(N191,$C:$J,4,FALSE) -> 0 | S191: =VLOOKUP(N191,$C:$J,5,FALSE) -> 0
C192: 186 | I192: 0 | N192: 186 | O192: 182 | P192: 0 | Q192: 0 | R192: 0 | S192: 0
C193: 187 | I193: 0 | N193: 187 | O193: 183 | P193: 0 | Q193: 0 | R193: 0 | S193: 0
C194: 188 | I194: 0 | N194: 188 | O194: 184 | P194: 0 | Q194: 0 | R194: 0 | S194: 0
C195: 189 | I195: 0 | N195: 189 | O195: 185 | P195: 0 | Q195: 0 | R195: 0 | S195: 0
C196: 190 | I196: 0 | N196: 190 | O196: 186 | P196: 0 | Q196: 0 | R196: 0 | S196: 0
C197: 191 | I197: 0 | N197: 191 | O197: 187 | P197: 0 | Q197: 0 | R197: 0 | S197: 0
C198: 192 | I198: 0 | N198: 192 | O198: 188 | P198: 0 | Q198: 0 | R198: 0 | S198: 0
C199: 193 | I199: 0 | N199: 193 | O199: 189 | P199: 0 | Q199: 0 | R199: 0 | S199: 0
C200: 194 | I200: 0 | N200: 194 | O200: 190 | P200: 0 | Q200: 0 | R200: 0 | S200: 0
... 309 more rows

Sheet 受領書 (hidden)
B1: 物 | C1: 官職氏名印 | H1: 年 月 日 | L1: ． ． | P1: 受 領 書
B2: 品 | H2: 証書番号
A3: 引 | B3: 官 | H3: 取扱者印 | L3: 転記 | Q3: 所在地、会社名、代表者名印 | X3: 年 月 日 | AA3: 担当官印
B4: 理 | P4: 受 | W4: 契 | X4: =契約内容!M4 -> 2026-02-20
B5: 官 | L5: ． ． | P5: 領 | Q5: =請求書!H14 ->  | W5: 約 | X5: 番 号
A6: 渡 | C6: 官職氏名印 | H6: 年 月 日 | L6: ． ． | P6: 者 | Q6: =請求書!H16 ->  | X6: =契約内容!M2 -> 5S8P1KT216000
B7: 引 | H7: 証書番号 | P7: ・ | Q7: =請求書!H18 ->  | T7: =請求書!K18 ->  | W7: 根拠 | X7: ='納品書 (業者)'!G5 -> 58LL1A80093
B8: 渡 | H8: 取扱者印 | L8: 転記 | P8: 契 | Q8: ='納品書 (業者)'!B10 -> 0
A9: 者 | B9: 者 | P9: 約 | Q9: 受領年月日 | U9: 受領印
L10: ． ． | P10: 者
H11: 引渡年月日 | L11: ． ． | Q11: ． ．
A12: 資料種別 | E12: 相手方番号 | F12: 処理年月日 | J12: 物品区分 | M12: 証書年月日 | Q12: 証書番号 | T12: 記録区分
F13: ． ． | M13: ． ．
A14: 項目番号 | D14: 物品番号及び品名 | J14: 規格 | P14: 非消・消区分 | R14: 程度 | T14: 単位 | V14: 数量 | X14: 処置コ－ド | Z14: 摘要
D15: ='納品書 (業者)'!D15 -> オープン券（航空券） 宮古／石垣⇔九州内各空港 | J15: ='納品書 (業者)'!F15 -> 仕様書のとおり | T15: ='納品書 (業者)'!K15 -> SH | V15: ='納品書 (業者)'!J15 -> 150
D16: ='納品書 (業者)'!D17 -> 0 | J16: ='納品書 (業者)'!F17 -> 0 | T16: ='納品書 (業者)'!K17 -> 0 | V16: ='納品書 (業者)'!J17 -> 0
D17: ='納品書 (業者)'!D17 -> 0 | J17: ='納品書 (業者)'!F17 -> 0 | T17: ='納品書 (業者)'!K17 -> 0 | V17: ='納品書 (業者)'!J17 -> 0
D18: ='納品書 (業者)'!D18 -> 0 | J18: ='納品書 (業者)'!F18 -> 0 | T18: ='納品書 (業者)'!K18 -> 0 | V18: ='納品書 (業者)'!J18 -> 0
D19: ='納品書 (業者)'!D19 -> 0 | J19: ='納品書 (業者)'!F19 -> 0 | T19: ='納品書 (業者)'!K19 -> 0 | V19: ='納品書 (業者)'!J19 -> 0
D20: ='納品書 (業者)'!D20 -> 0 | J20: ='納品書 (業者)'!F20 -> 0 | T20: ='納品書 (業者)'!K20 -> 0 | V20: ='納品書 (業者)'!J20 -> 0
D21: ='納品書 (業者)'!D21 -> 0 | J21: ='納品書 (業者)'!F21 -> 0 | T21: ='納品書 (業者)'!K21 -> 0 | V21: ='納品書 (業者)'!J21 -> 0
D22: ='納品書 (業者)'!D22 -> 0 | J22: ='納品書 (業者)'!F22 -> 0 | T22: ='納品書 (業者)'!K22 -> 0 | V22: ='納品書 (業者)'!J22 -> 0
D23: ='納品書 (業者)'!D24 -> 0 | J23: ='納品書 (業者)'!F24 -> 0 | T23: ='納品書 (業者)'!K24 -> 0 | V23: ='納品書 (業者)'!J24 -> 0
D24: ='納品書 (業者)'!D25 -> 0 | J24: ='納品書 (業者)'!F25 -> 0 | T24: ='納品書 (業者)'!K25 -> 0 | V24: ='納品書 (業者)'!J25 -> 0
X25: ﾍﾟｰｼﾞ中の第 ﾍﾟｰｼﾞ

Sheet 角３ (hidden)
H1: =VLOOKUP(業者一覧!$A$2,業者一覧!$B$2:$K$204,6) -> 
A18: =請求書!H14 -> 
A19: =請求書!H16 ->  | J19: 御中
A20: （担当者様 気付）
A32: 「契約関係書類」在中
A43: 宮古島市上野字野原８３－５
A44: 陸上自衛隊宮古島駐屯地
A45: 第４４４会計隊 契約班 福士

Sheet 長３ (hidden)
H1: =VLOOKUP(業者一覧!$A$2,業者一覧!$B$2:$K$204,6) -> 
A18: =請求書!H14 -> 
A19: =請求書!H16 ->  | J19: 御中
A20: （担当者様 気付）
A32: 「契約書類」在中
A43: =角３!A43:K43 -> 宮古島市上野字野原８３－５
A44: =角３!A44:K44 -> 陸上自衛隊宮古島駐屯地
A45: =角３!A45:K45 -> 第４４４会計隊 契約班 福士

Sheet 支払調書 (hidden)
C2: 支 払 調 書
A6: 下記のとおり支払いを必要とするので証明する。
G8: 2024-03-27
F11: =基本情報!B16 -> 分任資金前渡官吏
F12: =基本情報!B7 -> 陸上自衛隊宮古島駐屯地
F13: =基本情報!B8 -> 第４４４会計隊長 藤澤 竹広
C16: =I32 -> ¥419,320- | F16: ="税込（うち消費税 " & TEXT(C16-INT(C16*100/110),"#,#") & "円）" -> 税込（うち消費税 38,120円）
A18: 支 払 金 額
C24: =基本情報!B11 -> 
A25: 支 払 先 | C25: =基本情報!B12 -> 
C26: =基本情報!B13 -> 
C31: 品名 | E31: 規格 | F31: 数量 | G31: 単位 | H31: 単価 | I31: 金額
C32: 内訳書のとおり | I32: 419,320
A33: 内 訳
C39: 慣習上請求書を発行しないため
A40: 請求書を得がたい理由
A47: 備 考

Sheet 請求書 (hidden)
A2: 請 求 書
E5: =IF(D47=8%,"（軽減税率対象）","") ->  | J5: 令和 年 月 日
B7: =基本情報!B16 -> 分任資金前渡官吏 | E7: 殿
B8: =基本情報!B17 -> 陸上自衛隊宮古島駐屯地
B9: =基本情報!B18 -> 第４４４会計隊長 藤澤 竹広
B11: ￥ | C11: =INT(L48) -> 0-
E14: 住 所 | H14: =VLOOKUP(業者一覧!$A$2,業者一覧!$B$2:$J$233,7) -> 
E16: 社 名 | H16: =VLOOKUP(業者一覧!$A$2,業者一覧!$B$2:$J$233,3) -> 
E18: 役 職 | H18: =VLOOKUP(業者一覧!$A$2,業者一覧!$B$2:$J$233,8) ->  | K18: =VLOOKUP(業者一覧!$A$2,業者一覧!$B$2:$J$233,9) -> 
E20: 氏 名
H21: ="担当者 " & VLOOKUP(業者一覧!$A$2,業者一覧!$B$2:$M$233,11) & " （" &VLOOKUP(業者一覧!$A$2,業者一覧!$B$2:$M$233,4) &"）" -> 
B22: 上記のとおり請求致します。
B23: 内 訳
A25: 品 名 | D25: 規 格 | F25: 数 量 | I25: 単位 | J25: 単 価 | L25: 金 額 | N25: 摘 要
A26: =契約内容!P3 -> オープン券（航空券） 宮古／石垣⇔九州内各空港 | D26: =契約内容!Q3 -> 仕様書のとおり | F26: =契約内容!S3 -> 150 | I26: =契約内容!R3 -> SH | J26: =契約内容!T3 -> 0 | L26: =F26*J26 -> 0 | N26: 課税対象
A27: =契約内容!P4 -> 0 | D27: =契約内容!Q4 -> 以下余白 | F27: =契約内容!S4 -> 0 | I27: =契約内容!R4 -> 0 | J27: =契約内容!T4 -> 0 | L27: =F27*J27 -> 0 | N27: 非課税対象
A28: =契約内容!P5 -> 0 | D28: =契約内容!Q5 -> 0 | F28: =契約内容!S5 -> 0 | I28: =契約内容!R5 -> 0 | J28: =契約内容!T5 -> 0 | L28: =F28*J28 -> 0
A29: =契約内容!P6 -> 0 | D29: =契約内容!Q6 -> 0 | F29: =契約内容!S6 -> 0 | I29: =契約内容!R6 -> 0 | J29: =契約内容!T6 -> 0 | L29: =F29*J29 -> 0
A30: =契約内容!P7 -> 0 | D30: =契約内容!Q7 -> 0 | F30: =契約内容!S7 -> 0 | I30: =契約内容!R7 -> 0 | J30: =契約内容!T7 -> 0 | L30: =F30*J30 -> 0
A31: =契約内容!P8 -> 0 | D31: =契約内容!Q8 -> 0 | F31: =契約内容!S8 -> 0 | I31: =契約内容!R8 -> 0 | J31: =契約内容!T8 -> 0 | L31: =F31*J31 -> 0
A32: =契約内容!P9 -> 0 | D32: =契約内容!Q9 -> 0 | F32: =契約内容!S9 -> 0 | I32: =契約内容!R9 -> 0 | J32: =契約内容!T9 -> 0 | L32: 0
A33: =契約内容!P10 -> 0 | D33: =契約内容!Q10 -> 0 | F33: =契約内容!S10 -> 0 | I33: =契約内容!R10 -> 0 | J33: =契約内容!T10 -> 0 | L33: 0
A34: =契約内容!P11 -> 0 | D34: =契約内容!Q11 -> 0 | F34: =契約内容!S11 -> 0 | I34: =契約内容!R11 -> 0 | J34: =契約内容!T11 -> 0 | L34: 0
A35: =契約内容!P12 -> 0 | D35: =契約内容!Q12 -> 0 | F35: =契約内容!S12 -> 0 | I35: =契約内容!R12 -> 0 | J35: =契約内容!T12 -> 0 | L35: 0
A36: =契約内容!P13 -> 0 | D36: =契約内容!Q13 -> 0 | F36: =契約内容!S13 -> 0 | I36: =契約内容!R13 -> 0 | J36: =契約内容!T13 -> 0 | L36: 0
A37: =契約内容!P14 -> 0 | D37: =契約内容!Q14 -> 0 | F37: =契約内容!S14 -> 0 | I37: =契約内容!R14 -> 0 | J37: =契約内容!T14 -> 0 | L37: 0
A38: =契約内容!P15 -> 0 | D38: =契約内容!Q15 -> 0 | F38: =契約内容!S15 -> 0 | I38: =契約内容!R15 -> 0 | J38: =契約内容!T15 -> 0 | L38: 0
A39: =契約内容!P16 -> 0 | D39: =契約内容!Q16 -> 0 | F39: =契約内容!S16 -> 0 | I39: =契約内容!R16 -> 0 | J39: =契約内容!T16 -> 0 | L39: 0
A40: =契約内容!P17 -> 0 | D40: =契約内容!Q17 -> 0 | F40: =契約内容!S17 -> 0 | I40: =契約内容!R17 -> 0 | J40: =契約内容!T17 -> 0 | L40: 0
A41: =契約内容!P18 -> 0 | D41: =契約内容!Q18 -> 0 | F41: =契約内容!S18 -> 0 | I41: =契約内容!R18 -> 0 | J41: =契約内容!T18 -> 0 | L41: 0
A42: =契約内容!P19 -> 0 | D42: =契約内容!Q19 -> 0 | F42: =契約内容!S19 -> 0 | I42: =契約内容!R19 -> 0 | J42: =契約内容!T19 -> 0 | L42: 0
A43: =契約内容!P20 -> 0 | D43: =契約内容!Q20 -> 0 | F43: =契約内容!S20 -> 0 | I43: =契約内容!R20 -> 0 | J43: =契約内容!T20 -> 0 | L43: 0
A44: =契約内容!P21 -> 0 | D44: =契約内容!Q21 -> 0 | F44: =契約内容!S21 -> 0 | I44: =契約内容!R21 -> 0 | J44: =契約内容!T21 -> 0 | L44: 0
A45: =契約内容!P22 -> 0 | D45: =契約内容!Q22 -> 0 | F45: =契約内容!S22 -> 0 | I45: =契約内容!R22 -> 0 | J45: =契約内容!T22 -> 0 | L45: 0
A46: 小計 | L46: =SUM(L26:L45) -> 0
A47: 消費税 | D47: 10% | L47: =INT(L26*D47) -> 0
A48: 合計 | L48: =L46+L47 -> 0

Sheet 請求書 (税込) (hidden)
A2: 請 求 書
J5: 令和 年 月 日
B7: =基本情報!B16 -> 分任資金前渡官吏 | E7: 殿
B8: =基本情報!B17 -> 陸上自衛隊宮古島駐屯地
B9: =基本情報!B18 -> 第４４４会計隊長 藤澤 竹広
B11: ￥ | C11: =INT(L48) -> 0-
E14: 住 所 | H14: =VLOOKUP(業者一覧!$A$2,業者一覧!$B$2:$J$233,7) -> 
E16: 社 名 | H16: =VLOOKUP(業者一覧!$A$2,業者一覧!$B$2:$J$233,3) -> 
E18: 役 職 | H18: =VLOOKUP(業者一覧!$A$2,業者一覧!$B$2:$J$233,8) ->  | K18: =VLOOKUP(業者一覧!$A$2,業者一覧!$B$2:$J$233,9) -> 
E20: 氏 名
G21: ="担当者 " & VLOOKUP(業者一覧!$A$2,業者一覧!$B$2:$J$233,9)& " (" &VLOOKUP(業者一覧!$A$2,業者一覧!$B$2:$J$233,4) & ")" -> 
B22: 上記のとおり請求致します。
B23: 内 訳 | Q23: =入札書!K8 -> 税込（うち消費税 円）
A25: 品 名 | D25: 規 格 | F25: 数 量 | I25: 単位 | J25: 単 価 | L25: 金 額 | N25: 摘 要
A26: =契約内容!P3 -> オープン券（航空券） 宮古／石垣⇔九州内各空港 | D26: =契約内容!Q3 -> 仕様書のとおり | F26: =契約内容!S3 -> 150 | I26: =契約内容!R3 -> SH | J26: =契約内容!T3 -> 0 | L26: =F26*J26 -> 0
A27: =契約内容!P4 -> 0 | D27: =契約内容!Q4 -> 以下余白 | F27: =契約内容!S4 -> 0 | I27: =契約内容!R4 -> 0 | J27: =契約内容!T4 -> 0 | L27: =F27*J27 -> 0
A28: =契約内容!P5 -> 0 | D28: =契約内容!Q5 -> 0 | F28: =契約内容!S5 -> 0 | I28: =契約内容!R5 -> 0 | J28: =契約内容!T5 -> 0 | L28: =F28*J28 -> 0
A29: =契約内容!P6 -> 0 | D29: =契約内容!Q6 -> 0 | F29: =契約内容!S6 -> 0 | I29: =契約内容!R6 -> 0 | J29: =契約内容!T6 -> 0 | L29: =F29*J29 -> 0
A30: =契約内容!P7 -> 0 | D30: =契約内容!Q7 -> 0 | F30: =契約内容!S7 -> 0 | I30: =契約内容!R7 -> 0 | J30: =契約内容!T7 -> 0 | L30: =F30*J30 -> 0
A31: =契約内容!P8 -> 0 | D31: =契約内容!Q8 -> 0 | F31: =契約内容!S8 -> 0 | I31: =契約内容!R8 -> 0 | J31: =契約内容!T8 -> 0 | L31: =F31*J31 -> 0
A32: =契約内容!P9 -> 0 | D32: =契約内容!Q9 -> 0 | F32: =契約内容!S9 -> 0 | I32: =契約内容!R9 -> 0 | J32: =契約内容!T9 -> 0 | L32: 0
A33: =契約内容!P10 -> 0 | D33: =契約内容!Q10 -> 0 | F33: =契約内容!S10 -> 0 | I33: =契約内容!R10 -> 0 | J33: =契約内容!T10 -> 0 | L33: 0
A34: =契約内容!P11 -> 0 | D34: =契約内容!Q11 -> 0 | F34: =契約内容!S11 -> 0 | I34: =契約内容!R11 -> 0 | J34: =契約内容!T11 -> 0 | L34: 0
A35: =契約内容!P12 -> 0 | D35: =契約内容!Q12 -> 0 | F35: =契約内容!S12 -> 0 | I35: =契約内容!R12 -> 0 | J35: =契約内容!T12 -> 0 | L35: 0
A36: =契約内容!P13 -> 0 | D36: =契約内容!Q13 -> 0 | F36: =契約内容!S13 -> 0 | I36: =契約内容!R13 -> 0 | J36: =契約内容!T13 -> 0 | L36: 0
A37: =契約内容!P14 -> 0 | D37: =契約内容!Q14 -> 0 | F37: =契約内容!S14 -> 0 | I37: =契約内容!R14 -> 0 | J37: =契約内容!T14 -> 0 | L37: 0
A38: =契約内容!P15 -> 0 | D38: =契約内容!Q15 -> 0 | F38: =契約内容!S15 -> 0 | I38: =契約内容!R15 -> 0 | J38: =契約内容!T15 -> 0 | L38: 0
A39: =契約内容!P16 -> 0 | D39: =契約内容!Q16 -> 0 | F39: =契約内容!S16 -> 0 | I39: =契約内容!R16 -> 0 | J39: =契約内容!T16 -> 0 | L39: 0
A40: =契約内容!P17 -> 0 | D40: =契約内容!Q17 -> 0 | F40: =契約内容!S17 -> 0 | I40: =契約内容!R17 -> 0 | J40: =契約内容!T17 -> 0 | L40: 0
A41: =契約内容!P18 -> 0 | D41: =契約内容!Q18 -> 0 | F41: =契約内容!S18 -> 0 | I41: =契約内容!R18 -> 0 | J41: =契約内容!T18 -> 0 | L41: 0
A42: =契約内容!P19 -> 0 | D42: =契約内容!Q19 -> 0 | F42: =契約内容!S19 -> 0 | I42: =契約内容!R19 -> 0 | J42: =契約内容!T19 -> 0 | L42: 0
A43: =契約内容!P20 -> 0 | D43: =契約内容!Q20 -> 0 | F43: =契約内容!S20 -> 0 | I43: =契約内容!R20 -> 0 | J43: =契約内容!T20 -> 0 | L43: 0
A44: =契約内容!P21 -> 0 | D44: =契約内容!Q21 -> 0 | F44: =契約内容!S21 -> 0 | I44: =契約内容!R21 -> 0 | J44: =契約内容!T21 -> 0 | L44: 0
D45: =契約内容!Q22 -> 0 | F45: =契約内容!S22 -> 0 | I45: =契約内容!R22 -> 0 | J45: =契約内容!T22 -> 0 | L45: 0
A48: 合計 | D48: １０％対象 | L48: =SUM(L26:L47) -> 0 | N48: 税込（うち消費税 5,212円） | P48: =INT(L48*100/110) -> 0 | Q48: =入札書!K8 -> 税込（うち消費税 円）

Sheet 請求書 (うち) (hidden)
A2: 請 求 書
E5: =IF(D47=8%,"（軽減税率対象）","") ->  | J5: 令和 年 月 日
B7: =基本情報!B16 -> 分任資金前渡官吏 | E7: 殿
B8: =基本情報!B17 -> 陸上自衛隊宮古島駐屯地
B9: =基本情報!B18 -> 第４４４会計隊長 藤澤 竹広
B11: ￥ | C11: =INT(L48) -> 1,498,299-
E14: 住 所 | H14: =VLOOKUP(業者一覧!$A$2,業者一覧!$B$2:$J$233,7) -> 
E16: 社 名 | H16: =VLOOKUP(業者一覧!$A$2,業者一覧!$B$2:$J$233,3) -> 
E18: 役 職 | H18: =VLOOKUP(業者一覧!$A$2,業者一覧!$B$2:$J$233,8) ->  | K18: =VLOOKUP(業者一覧!$A$2,業者一覧!$B$2:$J$233,9) -> 
E20: 氏 名
H21: ="担当者 " & VLOOKUP(業者一覧!$A$2,業者一覧!$B$2:$M$233,11) & " （" &VLOOKUP(業者一覧!$A$2,業者一覧!$B$2:$M$233,4) &"）" -> 
B22: 上記のとおり請求致します。 | Q22: =MID('見積書 (うち)'!B10,1,LEN('見積書 (うち)'!B10)-LEN(RIGHT('見積書 (うち)'!B10,7))) -> オープン券（航空券） 宮古／石垣⇔九州内各空港 ほか 19件
B23: 内 訳 | Q23: =IF(C11>=500000,"契約書のとおり","内訳書のとおり") -> 契約書のとおり
A25: 品 名 | D25: 規 格 | F25: 数 量 | I25: 単位 | J25: 単 価 | L25: 金 額 | N25: 摘 要
A26: =Q22&Q23 -> オープン券（航空券） 宮古／石垣⇔九州内各空港 ほか 19件 契約書のとおり | L26: 1,362,090
A27: 以下余白
A46: 小計 | L46: =SUM(L26:L45) -> 1,362,090
A47: 消費税 | D47: 10% | L47: =INT(L46*D47) -> 136,209
A48: 合計 | L48: =L46+L47 -> 1,498,299

Sheet 売掛 (hidden)
D1: 売 掛 票
H3: 年月日
H4: 部隊名 | J4: 第４４４会計隊
H5: 機関名 | J5: 第４４４会計隊
H8: 代表者名 | J8: １尉 白井 剛
A10: 下記の商品の売掛を申込みます。
A12: 商品の代金は 年 月 日の予定で支払います。
A14: 売掛年月日 | F14: 売掛先 部隊名又は 機関名 | H14: 第４４４会計隊
A17: 品名 | E17: 数量 | G17: 単価 | I17: 金額 | K17: 備考
A19: =契約内容!P3 -> オープン券（航空券） 宮古／石垣⇔九州内各空港 | C19: =契約内容!Q3 -> 仕様書のとおり | E19: =契約内容!S3 -> 150 | G19: =契約内容!T3 -> 0 | I19: =E19*G19 -> 0 | K19: =契約内容!M3 -> 58LL1A50096
A20: =契約内容!P4 -> 0 | C20: =契約内容!Q4 -> 以下余白 | E20: =契約内容!S4 -> 0 | G20: =契約内容!T4 -> 0 | I20: =E20*G20 -> 0
A21: =契約内容!P5 -> 0 | C21: =契約内容!Q5 -> 0 | E21: =契約内容!S5 -> 0 | G21: =契約内容!T5 -> 0 | I21: 0
A22: =契約内容!P6 -> 0 | C22: =契約内容!Q6 -> 0 | E22: =契約内容!S6 -> 0 | G22: =契約内容!T6 -> 0 | I22: 0
A23: =契約内容!P7 -> 0 | C23: =契約内容!Q7 -> 0 | E23: =契約内容!S7 -> 0 | G23: =契約内容!T7 -> 0 | I23: 0
A24: =契約内容!P8 -> 0 | C24: =契約内容!Q8 -> 0 | E24: =契約内容!S8 -> 0 | G24: =契約内容!T8 -> 0 | I24: 0
A25: =契約内容!P9 -> 0 | C25: =契約内容!Q9 -> 0 | E25: =契約内容!S9 -> 0 | G25: =契約内容!T9 -> 0 | I25: 0
A26: =契約内容!P10 -> 0 | C26: =契約内容!Q10 -> 0 | E26: =契約内容!S10 -> 0 | G26: =契約内容!T10 -> 0 | I26: 0
A27: =契約内容!P11 -> 0 | C27: =契約内容!Q11 -> 0 | E27: =契約内容!S11 -> 0 | G27: =契約内容!T11 -> 0 | I27: 0 | K27: =契約内容!M11 -> 0
A28: =契約内容!P12 -> 0 | C28: =契約内容!Q12 -> 0 | E28: =契約内容!S12 -> 0 | G28: =契約内容!T12 -> 0 | I28: 0 | K28: =契約内容!M12 -> 0
A29: =契約内容!P13 -> 0 | C29: =契約内容!Q13 -> 0 | E29: =契約内容!S13 -> 0 | G29: =契約内容!T13 -> 0 | I29: 0 | K29: =契約内容!M13 -> 0
A30: =契約内容!P14 -> 0 | C30: =契約内容!Q14 -> 0 | E30: =契約内容!S14 -> 0 | G30: =契約内容!T14 -> 0 | I30: 0 | K30: =契約内容!M14 -> 0
A31: =契約内容!P15 -> 0 | C31: =契約内容!Q15 -> 0 | E31: =契約内容!S15 -> 0 | G31: =契約内容!T15 -> 0 | I31: 0 | K31: =契約内容!M15 -> 0
A32: =契約内容!P16 -> 0 | C32: =契約内容!Q16 -> 0 | E32: =契約内容!S16 -> 0 | G32: =契約内容!T16 -> 0 | I32: 0 | K32: =契約内容!M16 -> 0
A33: 合計 | I33: =SUM(I19:K32) -> 0
C36: 上記の商品確かに受領いたしました。
G37: 令和 年 月 日
H39: 受領者 | K39: ㊞

Sheet 総額（物件１件） (hidden)
B2: 契約番号 | D2: =契約内容!M2 -> 5S8P1KT216000
B5: 物品売買契約書
B7: 契約要件 | C7: 契約金額 | D7: =K15 -> 0 | H7: ="（うち消費税額 " & DBCS(TEXT(K14,"#,#")) -> （うち消費税額 | L7: 円）
C8: 品名（件名） | E8: 規格 | G8: 単位 | H8: 数量 | J8: 単価 | K8: 金額
C9: =契約内容!D3 -> オープン券（航空券） 宮古／石垣⇔九州内各空港 | E9: =契約内容!E3 -> 仕様書のとおり | G9: =契約内容!F3 -> SH | H9: =契約内容!G3 -> 150 | J9: =契約内容!H3 -> 0 | K9: =H9*J9 -> 0
C10: =契約内容!D4 -> 0 | E10: =契約内容!E4 -> 以下余白 | G10: =契約内容!F4 -> 0 | H10: =契約内容!G4 -> 0 | J10: =契約内容!H4 -> 0 | K10: =H10*J10 -> 0 | N10: ='見積書 (うち)'!J11 -> 19
C11: =契約内容!D5 -> 0 | E11: =契約内容!E5 -> 0 | G11: =契約内容!F5 -> 0 | H11: =契約内容!G5 -> 0 | J11: =契約内容!H5 -> 0 | K11: 0
C12: =契約内容!D6 -> 0 | E12: =契約内容!E6 -> 0 | G12: =契約内容!F6 -> 0 | H12: =契約内容!G6 -> 0 | J12: =契約内容!H6 -> 0 | K12: 0
C13: =N13 -> 小計 | K13: =SUM(K9:L12) -> 0 | N13: =IF(N10<30,"小計","合計") -> 小計
C14: 消費税 | E14: 10% | K14: =INT(K13*E14) -> 0
C15: =N15 -> 合計 | K15: =K13+K14 -> 0 | N15: =IF(N13="小計","合計","総合計") -> 合計
C16: 契約保証金 | D16: 免除 | H16: 納入（履行）場所 | J16: 陸上自衛隊宮古島駐屯地
C17: 代金支払回数 | D17: １回 | H17: 納期（工期） | J17: =契約内容!M5 -> 2026-02-27
B19: =" 上記の契約について、" & C32 & " " & C33 & " " & C34 & " を甲とし、" &C37 & " " & C38 & " を乙として、次の条項により契約を締結する。" -> 
B22: 第１条 本契約については、駐屯地用標準契約書物品売買契約条項を適用する。
B24: 第２条 特約条項は、談合等の不正行為に関する特約条項、暴力団排除に関する特約条項を付す。
B30: =契約内容!M4 -> 2026-02-20
C32: =基本情報!$B$6 -> 分任契約担当官
B33: 甲 | C33: =基本情報!$B$7 -> 陸上自衛隊宮古島駐屯地
C34: =基本情報!$B$8 -> 第４４４会計隊長 藤澤 竹広
C36: =基本情報!$B$11 -> 
B37: 乙 | C37: =基本情報!$B$12 -> 
C38: =基本情報!$B$13 -> 

Sheet 総額（物件品目） (hidden)
B2: 契約番号 | D2: =契約内容!M2 -> 5S8P1KT216000
B5: 物品売買契約書
B7: 契約要件 | C7: 契約金額 | D7: =K15 -> 1498299 | H7: ="（うち消費税額 " & DBCS(TEXT(K14,"#,#")) -> （うち消費税額 １３６，２０９ | L7: 円）
C8: 品名（件名） | E8: 規格 | G8: 単位 | H8: 数量 | J8: 単価 | K8: 金額
C9: ='見積書 (うち)'!B10 -> オープン券（航空券） 宮古／石垣⇔九州内各空港 ほか 19件 内訳書のとおり | K9: 1,362,090
C10: 以下余白 | N10: ='見積書 (うち)'!J11 -> 19
C13: =N13 -> 小計 | K13: =SUM(K9:L12) -> 1,362,090 | N13: =IF(N10<30,"小計","合計") -> 小計
C14: 消費税 | E14: 10% | K14: =INT(K13*E14) -> 136,209
C15: =N15 -> 合計 | K15: =K13+K14 -> 1,498,299 | N15: =IF(N13="小計","合計","総合計") -> 合計
C16: 契約保証金 | D16: 免除 | H16: 納入（履行）場所 | J16: 陸上自衛隊宮古島駐屯地
C17: 代金支払回数 | D17: １回 | H17: 納期（工期） | J17: =契約内容!M5 -> 2026-02-27
B19: =" 上記の契約について、" & C32 & " " & C33 & " " & C34 & " を甲とし、" &C37 & " " & C38 & " を乙として、次の条項により契約を締結する。" -> 
B22: 第１条 本契約については、駐屯地用標準契約書物品売買契約条項を適用する。
B24: 第２条 特約条項は、談合等の不正行為に関する特約条項、暴力団排除に関する特約条項を付す。
B30: =契約内容!M4 -> 2026-02-20
C32: =基本情報!$B$6 -> 分任契約担当官
B33: 甲 | C33: =基本情報!$B$7 -> 陸上自衛隊宮古島駐屯地
C34: =基本情報!$B$8 -> 第４４４会計隊長 藤澤 竹広
C36: =基本情報!$B$11 -> 
B37: 乙 | C37: =基本情報!$B$12 -> 
C38: =基本情報!$B$13 -> 

Sheet 総額（役務） (hidden)
B2: 契約番号 | D2: =契約内容!M2 -> 5S8P1KT216000 | K2: 収入 印紙
B5: 役務請負契約書
B7: 契約要件 | C7: 契約金額 | D7: =K15 -> 0 | H7: ="（うち消費税額 " & DBCS(TEXT(K14,"#,#")) -> （うち消費税額 | L7: 円）
C8: 品名（件名） | E8: 規格 | G8: 単位 | H8: 数量 | J8: 単価 | K8: 金額
C9: =契約内容!P3 -> オープン券（航空券） 宮古／石垣⇔九州内各空港 | E9: =契約内容!Q3 -> 仕様書のとおり | G9: =契約内容!R3 -> SH | H9: =契約内容!S3 -> 150 | J9: =契約内容!T3 -> 0 | K9: =J9*H9 -> 0
E10: =契約内容!Q4 -> 以下余白
C13: 小計 | K13: =SUM(K9:L12) -> 0
C14: 消費税 | E14: 10% | K14: =INT(K13*E14) -> 0
C15: 合計 | K15: =K13+K14 -> 0
C16: 契約保証金 | D16: 免除 | H16: 納入（履行）場所 | J16: 陸上自衛隊 宮古島駐屯地
C17: 代金支払回数 | D17: １回 | H17: 納期（工期） | J17: 2024-03-31
B19: =" 上記の契約について、" & C32 & " " & C33 & " " & C34 & " を甲とし、" &C37 & " " & C38 & " を乙として、次の条項により契約を締結する。" -> 
B22: 第１条 本契約については、駐屯地用標準契約書役務請負契約条項を適用する。
B24: 第２条 特約条項は、談合等の不正行為に関する特約条項、暴力団排除に関する特約条項を付す。
B30: =契約内容!M4 -> 2026-02-20
C32: =基本情報!$B$6 -> 分任契約担当官
B33: 甲 | C33: =基本情報!$B$7 -> 陸上自衛隊宮古島駐屯地
C34: =基本情報!$B$8 -> 第４４４会計隊長 藤澤 竹広
C36: =基本情報!$B$11 -> 
B37: 乙 | C37: =基本情報!$B$12 -> 
C38: =基本情報!$B$13 -> 
